{"text_format":"1","workbook":"xlsx","n_sheets":18,"sheets":["Instructions","Summary","Open Pit","UG Mine","Tailings","Rock Pile","Bldgs & Equip","Chemicals","Water Management","Water Treatment","ICM","PostClosure","LongTerm Monitoring","Mobilization","SBB Comp. Est.","Unit_Costs","Estimator","Tools"],"not_rendered":{"charts":0,"images":3,"macros":1,"external_links":72,"defined_names":10079,"comments":0,"pivot_tables":0},"unopened":[],"bounds":{"document_bytes":16777216,"sheet_cells":100000,"rows_first":2000,"rows_last":500,"rows_between":2000,"halvings":0,"cell_chars":16384,"cell_head_chars":4096},"cells_cut":0,"cells_raw":0,"read":"whole","date_system":"1900"}

{"sheet":"Instructions","index":0,"n_rows":69,"n_cols":8,"rows_kept":69,"cut":false,"hidden":false,"merged":[[58,0,67,1],[32,0,32,1],[33,0,38,1],[39,0,46,1],[47,0,53,1],[54,0,57,1]]}
["Project Name:",null,"Reclaim Model - Overview of Program"]
[null,"Back River Project       ","All users are urged to read the Reclaim Model User Manual - Scroll down for overview description of program.",null,null,"","",""]
[null,null,"Important!  Reclaim 7.0 works better with no other excel files open."]
[null,null,"If other excel files are open ignore run time error and proceed"]
["Reclaim Menu",null,"The default Excel menu bar has an additional tab labelled \"Add-Ins\" that provides options specific to the Reclaim Model.",null,null,"","",""]
[null,"Clear","This option deletes all input data, deletes any duplicated elements and blanks out the project name.  It also allows for segregation into land costs vs water costs if required.",null,null,"","",""]
[null,"Duplicate","This option Duplicates components of the project. E.g. if there is more than one Open Pit, use duplicate to add a second Open Pit.  Quantities for the new Open Pit are erased, but the Activities and Cost Codes are carried over from the original Open Pit.  The new Open Pit subtotal is added to the Summary page.",null,null,"","",""]
[null,"Unit Costs","This option opens a window of unit costs to provide easy reference.  NOTE:  the unit cost table has a filter in the 'UNITS' column.   You can select to only see a particular unit (eg km) or multiple units (km and m3) or all units.",null,null,"","",""]
[null,"Print All ","This option prints the Summary Worksheet, Unit Cost Worksheet, and the individual component worksheets having non-zero balances.  Individual worksheets can be printed directly using standard printing methods, such as Ctl - P.",null,null,"","",""]
[null,"Quit","Select Quit to exit the program",null,null,"","",""]
[null,"Help","Redirects user to Instructions worksheet.",null,null,"","",""]
[null,null,null,null,null,"","",""]
["WorkSheets",null,null,null,null,"","",""]
[null,"Summary ","This worksheet contains a cumulative summary of costs for each component of the project.     Associated costs such as engineering and project management are added as a percentage of the component costs.\n",null,null,"","",""]
[null,"Components","Costs are derived for individual closure and reclamation activities by multiplying a \"quantity\" of activity by a \"unit cost\".      \nAn activity can be edited, added, or deleted from worksheet.  However, care should be taken not to modify cells that are defined and used elsewhere in the program.",null,null,"","",""]
[null,null,"Do not change the content or column width of the first column of each component worksheet.",null,null,"","",""]
[null,"Unit Costs","This worksheet contains a look up table with costs for typical work associated with each closure and reclamation activity",null,null,"","",""]
[null,null,null,null,null,"","",""]
["Limitations",null,"The Reclaim Program will NOT work if the worksheets are changed such that the following requirements are not met.  Please review the following prior to modifiying worksheets.",null,null,"","",""]
[null,"WorkSheet Names","The names of the worksheets must not be changed.",null,null,"","",""]
[null,"Defined Names","Certain cells have defined names, which must not be changed.  Where the cell is named, the name will appear in the \"Name Box\" to the left of the formula bar.",null,null,"","",""]
[null,"First line of data","The first line of data for any component worksheet starts on line 4.  Do not change the first line of a component worksheet, ie the component name.",null,null,"","",""]
[null,"Cell A1","Cell A1 on the component sheet MUST always contain the count of that component for the duplicate function to operate.  DO NOT CHANGE.",null,null,"","",""]
[null,"Adding Lines","You can add lines to components and the unit cost table, as long as they are not the last lines.\nThe last line might fall outside the named ranges.  You can check the size of the named range by selecting the name from the drop down box at the top left of the sheet.  Usually this box has a cell reference, or a name.  ",null,null,"","",""]
[null,"Printing","A component will only be printed if its sub-total is greater than zero.  In addition, a component and the summary sheet cannot be printed if there is an error.  Printing has been set to print 1 page per component. ",null,null,"","",""]
[null,null,null,null,null,"","",""]
["Conditions of Use",null,"The Reclamation Cost Estimating Model was prepared to serve as a guide for Government Agencies, mining companies, and others to estimate the cost of mine reclamation.  This model is not intended to replace reclamation planning or to be used to determine the activities required to reclaim a site or to dictate how much should be spent on reclamation.",null,null,"","",""]
[null,null,null,null,null,"","",""]
[null,null,"Reclaim was prepared by Brodie Consulting Ltd. on behalf of AANDC.  AANDC and Brodie Consulting Ltd. are not responsible for the completeness or accuracy of any reclamation estimate made using this model.  The user agrees to check and take responsibility for all aspects of any cost estimate made using this model.",null,null,"","",""]
[null,null,null,null,null,"","",""]
["The following table provides guidance as to whether water management and treatment is considered short term or long term.  Short term closure activities",null,null,null,null,"","",""]
["may be costed within a component (eg 'Open Pit' or 'Rock Pile') or 'Water Management'.  Long term or post-closure water treatment is costed in 'Water Treatment'."]
[null,null,null,"Short Term/ Capital Ex.","Long term/ NPV","","",""]
["Open Pit",null,"flood pit - install/operate pumping system","x",null,"","",""]
[null,null,"construct diversion ditches","x",null,"","",""]
[null,null,"treat 1st filling","x",null,"","",""]
[null,null,"install pump/decant system","x",null,"","",""]
[null,null,"passive/biological treatment","x",null,"","",""]
[null,null,"overflow treatment",null,"x","","",""]
["Rock Pile/Heap Leach Facility",null,"construct diversion ditches","x",null,"","",""]
[null,null,"install groundwater collection system","x",null,"","",""]
[null,null,"install toe seepage collection system","x",null,"","",""]
[null,null,"collect and treat groundwater",null,"x"]
[null,null,"collect and treat seepage (ARD/ML)",null,"x"]
[null,null,"install passive treatment system","x",null,"","",""]
[null,null,"operate and maintain passive treatment system",null,"x","","",""]
[null,null,"operate pump and detoxify heap leach pile (cyanide destruction)","x",null,"","",""]
["Tailings Facility",null,"construct diversion ditches","x",null,"","",""]
[null,null,"pump supernatant (to pit, U/G)","x",null,"","",""]
[null,null,"treat supernatant","x",null,"","",""]
[null,null,"install toe seepage collection system","x",null,"","",""]
[null,null,"collect and treat seepage (ARD/ML)",null,"x","","",""]
[null,null,"install passive treatment system","x",null,"","",""]
[null,null,"operate and maintain passive treatment system",null,"x","","",""]
["U/G Mine",null,"accelerate flooding","x",null,"","",""]
[null,null,"install seepage collection system","x",null,"","",""]
[null,null,"install dewatering/pumping system","x",null,"","",""]
[null,null,"operate seepage/dewatering system (ARD/ML)",null,"x","","",""]
["Water Management",null,"refill lakes",null,null,"","",""]
[null,null,"redirect creeks/streams","x",null,"","",""]
[null,null,"stabilize water management ponds","x",null,"","",""]
[null,null,"stabilize/close sediment ponds","x"]
[null,null,"fresh water supply - breach embankment","x"]
[null,null,"fresh water supply - remove piping system","x"]
[null,null,"construct water treatment plant","x"]
[null,null,"construct sludge pond","x"]
[null,null,"water control in reclamation quarry","x"]
[null,null,"operate/maintain water treatment plant",null,"x","","",""]
[null,null,null,null,null,"","",""]

{"sheet":"Summary","index":1,"n_rows":37,"n_cols":19,"rows_kept":37,"cut":false,"hidden":false,"merged":[[1,9,1,17]]}
[null,"SUMMARY OF COSTS",null,null,null,null,null,null,null,null,null,null,"STAGING"]
[null,null,null,null,null,null,null,null,null,"Approximate Timing as proposed in Type A Water Licence"]
[null,null,null,null,null,null,null,null,null,"Y-3","Y-2","Y-1","Y1","Y-1","Y1","Y2","Y4","Y4 & Y5"]
["CAPITAL COSTS","COMPONENT NAME",null,"COST",null,"LAND LIABILITY",null,"TOTAL LIABILITY",null,"Initial Infrastructure","Umwelt OP","TSF","Llama OP","Llama UG","Umwelt UG","Goose Main OP","Goose Main UG","Echo OP & UG","Rationale"]
["OPEN PIT",{"$f":"IF(ISBLANK('Open Pit'!$C$1),\"\",'Open Pit'!$C$1)","v":"Umwelt"},null,{"$f":"Pit1Total","v":50424.887590743681},null,{"$f":"Pit1LandTotal","v":0},null,{"$f":"Pit1WaterTotal","v":50424.887490743684},null,null,{"$f":"H5","v":50424.887490743684},null,null,null,null,null,null,null,"The Umwelt Open Pit closure costs tie directly to commencement of Umwelt development."]
[null,{"$f":"IF(ISBLANK('Open Pit'!$N$1),\"\",'Open Pit'!$N$1)","v":"Llama "},null,{"$f":"'Open Pit'!$S$63","v":26176.6001},null,{"$f":"'Open Pit'!$U$63","v":0},null,{"$f":"'Open Pit'!$V$63","v":26176.6},null,null,null,null,{"$f":"H6","v":26176.6},null,null,null,null,null,"The Llama Open Pit closure costs tie directly to commencement of Llama development."]
[null,{"$f":"IF(ISBLANK('Open Pit'!$Y$1),\"\",'Open Pit'!$Y$1)","v":"Echo"},null,{"$f":"'Open Pit'!$AD$63","v":25934.312600000001},null,{"$f":"'Open Pit'!$AF$63","v":0},null,{"$f":"'Open Pit'!$AG$63","v":25934.3125},null,null,null,null,null,null,null,null,null,{"$f":"H7","v":25934.3125},"The Echo Open Pit closure costs tie directly to commencement of Echo development."]
[null,{"$f":"IF(ISBLANK('Open Pit'!$AJ$1),\"\",'Open Pit'!$AJ$1)","v":"Goose Main"},null,{"$f":"'Open Pit'!$AO$63","v":84849.581345371844},null,{"$f":"'Open Pit'!$AQ$63","v":0},null,{"$f":"'Open Pit'!$AR$63","v":84849.581245371839},null,null,null,null,null,null,null,{"$f":"H8","v":84849.581245371839},null,null,"The Goose Main Open Pit closure costs tie directly to commencement of Goose Main development."]
["QUARRY (under OPEN PIT TAB estimate)",{"$f":"IF(ISBLANK('Open Pit'!$AU$1),\"\",'Open Pit'!$AU$1)","v":"Airstrip Quarry"},null,{"$f":"'Open Pit'!$AZ$63","v":3800.0001000000002},null,{"$f":"'Open Pit'!$BB$63","v":0},null,{"$f":"'Open Pit'!$BC$63","v":3800},null,{"$f":"H9","v":3800},null,null,null,null,null,null,null,null,"The Airstrip Quarry closure costs tie directly to commencement of Initial Infastructure Development"]
["UNDERGROUND MINE",{"$f":"IF(ISBLANK('UG Mine'!$C$1),\"\",'UG Mine'!$C$1)","v":"Umwelt"},null,{"$f":"UG1Total","v":320806.54009999998},null,{"$f":"UG1LandTotal","v":0},null,{"$f":"UG1WaterTotal","v":320806.53999999998},null,null,null,null,null,null,{"$f":"H10","v":320806.53999999998},null,null,null,"The Umwelt Underground closure costs tie directly to commencement of Umwelt development."]
[null,{"$f":"IF(ISBLANK('UG Mine'!$N$1),\"\",'UG Mine'!$N$1)","v":"Llama"},null,{"$f":"'UG Mine'!$S$42","v":103655.60010000001},null,{"$f":"'UG Mine'!$U$42","v":0},null,{"$f":"'UG Mine'!$V$42","v":103655.6},null,null,null,null,null,{"$f":"H11","v":103655.6},null,null,null,null,"The Llama Underground closure costs tie directly to commencement of Llama development."]
[null,{"$f":"IF(ISBLANK('UG Mine'!$Y$1),\"\",'UG Mine'!$Y$1)","v":"Goose Main"},null,{"$f":"'UG Mine'!$AD$42","v":284414.6529945145},null,{"$f":"'UG Mine'!$AF$42","v":0},null,{"$f":"'UG Mine'!$AG$42","v":284414.6528945145},null,null,null,null,null,null,null,null,{"$f":"H12","v":284414.6528945145},null,"The Goose Main Underground closure costs tie directly to commencement of Goose Main development."]
[null,{"$f":"IF(ISBLANK('UG Mine'!$AJ$1),\"\",'UG Mine'!$AJ$1)","v":"Echo"},null,{"$f":"'UG Mine'!$AO$42","v":96205.600100000011},null,{"$f":"'UG Mine'!$AQ$42","v":0},null,{"$f":"'UG Mine'!$AR$42","v":96205.6},null,null,null,null,null,null,null,null,null,{"$f":"H13","v":96205.6},"The Echo Underground closure costs tie directly to commencement of Echo development."]
["TAILINGS FACILITIES",{"$f":"IF(ISBLANK(Tailings!$C$1),\"\",Tailings!$C$1)","v":"TSF"},null,{"$f":"Tailings1Total","v":344568.90010000003},null,{"$f":"Tailings1LandTotal","v":0},null,{"$f":"Tailings1WaterTotal","v":344568.9},null,null,null,{"$f":"H14","v":344568.9},null,null,null,null,null,null,"The TSF closure costs tie directly to commencement of TSF development."]
["ROCK PILE",{"$f":"IF(ISBLANK('Rock Pile'!$C$1),\"\",'Rock Pile'!$C$1)","v":"Umwelt, Llama, Echo and TSF"},null,{"$f":"RP1Total","v":16800000.000100002},null,{"$f":"RP1LandTotal","v":0},null,{"$f":"D15","v":16800000.000100002},null,null,{"$f":"$H$15*0.2","v":3360000.0000200006},{"$f":"$H$15*0.59","v":9912000.0000590011},{"$f":"$H$15*0.19","v":3192000.0000190004},null,null,null,null,{"$f":"$H$15*0.02","v":336000.00000200002},"Split determined by WRSA Disturbance Footprint (ICRP Table B-012): Umwelt (20%), Llama (19%), TSF (59%), Echo (2%). Timing tied directly to commencement of Open Pit development; exception is Goose Main portion tied directly with TSF development."]
["BUILDINGS AND EQUIPMENT",{"$f":"IF(ISBLANK('Bldgs & Equip'!$C$1),\"\",'Bldgs & Equip'!$C$1)","v":""},null,{"$f":"Bldg1Total","v":2069430.616766667},null,{"$f":"Bldg1LandTotal","v":0},null,{"$f":"Bldg1WaterTotal","v":2069430.6166666669},null,{"$f":"$H$16*0.8","v":1655544.4933333336},{"$f":"$H$16*0.05","v":103471.53083333335},null,{"$f":"$H$16*0.05","v":103471.53083333335},null,null,103471.53083333335,null,{"$f":"$H$16*0.05","v":103471.53083333335},"Building and Equipment costs tie to construction activities in each area.  80% of the total is estimated in the Initial Infrastructure with 5% in Umwelt, Llama, Echo, and Goose Main."]
["CHEMICALS AND CONTAMINATED SOIL MANAGEMENT",{"$f":"IF(ISBLANK(Chemicals!$C$1),\"\",Chemicals!$C$1)","v":""},null,{"$f":"Chem1Total","v":1393130.0001000001},null,{"$f":"Chem1LandTotal","v":0},null,{"$f":"Chem1WaterTotal","v":1393130},null,{"$f":"$H$17*0.6","v":835878},{"$f":"$H$17*0.1","v":139313},null,{"$f":"$H$17*0.1","v":139313},null,null,139313,null,139313,"Chemical and Contaminated Soil Management costs tie to construction activities in each area.  60% of the total is estimated in the Initial Infrastructure with 10% in Umwelt, Llama, Echo, and Goose Main."]
["SURFACE AND GROUNDWATER MANAGEMENT",{"$f":"IF(ISBLANK('Water Treatment'!$C$1),\"\",'Water Treatment'!$C$1)","v":""},null,{"$f":"Water1Total","v":346699.32845820894},null,"-",null,{"$f":"Water1Total","v":346699.32845820894},null,{"$f":"'Water Management'!K77","v":50964.477192678562},{"$f":"'Water Management'!L77","v":112720.37707142445},{"$f":"'Water Management'!M77","v":21400},{"$f":"'Water Management'!N77","v":7962.5364339742482},{"$f":"'Water Management'!O77","v":13000.000000000002},null,{"$f":"'Water Management'!Q77","v":693.5},null,{"$f":"'Water Management'!S77","v":139958.43766013169},"Surface and Groundwater Management costs tie to construction of individual infrastructure components."]
["INTERIM CARE AND MAINTENANCE",{"$f":"IF(ISBLANK(ICM!$C$1),\"\",ICM!$C$1)","v":""},null,{"$f":"ICMTotal","v":952618.79999999993},null,"-",null,{"$f":"ICMTotal","v":952618.79999999993},null,{"$f":"H19*0.6","v":571571.27999999991},{"$f":"$H$19*0.08","v":76209.504000000001},{"$f":"$H$19*0.08","v":76209.504000000001},76209.504000000001,null,null,76209.504000000001,null,76209.504000000001,"Interim Care and Maintenance costs tie to construction activities in each area.  60% of the total is estimated in the Initial Infrastructure with 8% in TSF, Umwelt, Llama, Echo, and Goose Main."]
[null,"SUBTOTAL: Capital Costs",null,{"$f":"SUM(D5:D19)","v":22902715.42055551},null,{"$f":"SUM(F5:F19)","v":0},null,{"$f":"SUM(H5:H19)","v":22902715.419355508},null,{"$f":"SUM(J5:J19)","v":3117758.2505260119},{"$f":"SUM(K5:K19)","v":3842139.2994155022},10354178.404059002,3545133.1712863082,116655.6,320806.53999999998,404537.11607870524,284414.6528945145,917092.38499546505,{"$f":"SUM(J20:R20)","v":22902715.41925551}]
[null,"PERCENT OF SUBTOTAL ",null,null,null,{"$f":"IF(F20<0.01,0,F20/D20)","v":0},null,{"$f":"IF(H20<0.01,0,H20/D20)","v":0.99999999994760436},null,{"$f":"J20/$H$20","v":0.1361305065115177},{"$f":"K20/$H$20","v":0.16775911629100709},0.45209392050116881,0.1547909541018988,5.0935270278655341E-3,1.400735825974943E-2,1.7663281784343503E-2,1.241838130050511E-2,4.0042954217577767E-2]
[]
["INDIRECT COSTS",null,null,"COST",null,"LAND LIABILITY",null,"TOTAL LIABILITY"]
["MOBILIZATION/DEMOBILIZATION",{"$f":"IF(ISBLANK(Mobilization!$C$1),\"\",Mobilization!$C$1)","v":""},null,{"$f":"MobTotal","v":4244387.8334333329},null,{"$f":"D24*$F$21","v":0},null,{"$f":"D24*$H$21","v":4244387.8332109451},null,{"$f":"$H$24*J21","v":577790.66556632903},{"$f":"$H$24*K21","v":712034.75209577056},1918861.9356437973,656992.84228121315,21618.904145203578,59452.660973107319,74969.818300044077,52708.4265000382,169957.82768690996,"Mobilization Costs are a direct proportion of the Direct Cost percentages."]
["POST-CLOSURE MONITORING AND MAINTENANCE",{"$f":"IF(ISBLANK(PostClosure!$K$1),\"\",PostClosure!$K$1)","v":""},null,{"$f":"PC1Total","v":7568243.1952678133},null,{"$f":"D25*$F$21","v":0},null,{"$f":"D25*$H$21","v":7568243.1948712701},null,{"$f":"($H$25-6000000)*J21","v":213485.74045106675},{"$f":"($H$25-6000000)*K21+6000000*0.21","v":1523087.0925009898},{"$f":"($H$25-6000000)*L21","v":708993.21426863095},{"$f":"($H$25-6000000)*M21+6000000*0.09","v":782749.86039793398},{"$f":"($H$25-6000000)*N21+6000000*0.06","v":367987.88909934298},{"$f":"($H$25-6000000)*O21+6000000*0.27","v":1641966.9442689759},{"$f":"($H$25-6000000)*P21+6000000*0.26","v":1587700.3214573904},{"$f":"($H$25-6000000)*Q21+6000000*0.07","v":439475.04196583381},{"$f":"($H$25-6000000)*R21+6000000*(0.01+0.03)","v":302797.09045425814},"Distribution of Water Treatment ($6M) split based on ore volumes by deposit (Ore MP Table 5.3-1): Umwet OP (21%), Llama OP (9%), Goose Main OP (26%), Echo OP (1%), Umwelt UG (27%), Llama UG (6%), Goose Main UG (7%), Echo UG (3%); remainder of costs based on Direct Cost percentages."]
["ENGINEERING ",0.1,null,{"$f":"B26*$D$20","v":2290271.542055551},null,{"$f":"+$F$21*D26","v":0},null,{"$f":"+$H$21*D26","v":2290271.5419355505},null,{"$f":"$H$26*J21","v":311775.82505260117},{"$f":"$H$26*K21","v":384213.92994155013},1035417.8404059,354513.31712863082,11665.56,32080.653999999995,40453.711607870515,28441.465289451444,91709.238499546482,"Engineering costs are a direct proportion (10%) of the Direct Costs percentages."]
["PROJECT MANAGEMENT",0.05,null,1145135.7710277755,null,0,null,1145135.7709677753,null,{"$f":"$H$27*J21","v":155887.91252630058},{"$f":"$H$27*K21","v":192106.96497077507},517708.92020295002,177256.65856431541,5832.78,16040.326999999997,20226.855803935257,14220.732644725722,45854.619249773241,"Project Management costs are a direct proportion (5%) of the Direct Cost percentages."]
["HEALTH AND SAFETY PLANS/MONITORING & QA/QC",0.01,null,229027.1542055551,null,0,null,229027.15419355506,null,{"$f":"$H$28*J21","v":31177.582505260118},{"$f":"$H$28*K21","v":38421.392994155016},103541.78404059002,35451.331712863081,1166.5559999999998,3208.0653999999995,4045.3711607870518,2844.1465289451444,9170.92384995465,"Health and Safety Plans/Monitoring & QA/QC costs are a direct proportion (1%) of the Direct Cost percentages."]
["BONDING/INSURANCE",0.01,null,229027.1542055551,null,0,null,229027.15419355506,null,{"$f":"$H$29*J21","v":31177.582505260118},{"$f":"$H$29*K21","v":38421.392994155016},103541.78404059002,35451.331712863081,1166.5559999999998,3208.0653999999995,4045.3711607870518,2844.1465289451444,9170.92384995465,"Bonding/Insurance costs are a direct proportion (1%) of the subtotal capital costs."]
["CONTINGENCY ",0.2,null,4580543.0841111019,null,0,null,4580543.083871101,null,{"$f":"$H$30*J21","v":623551.65010520234},{"$f":"$H$30*K21","v":768427.85988310026},2070835.6808118001,709026.63425726164,23331.119999999999,64161.30799999999,80907.42321574103,56882.930578902888,183418.47699909296,"Contingency costs are a direct proportion (20%) of the subtotal capital costs."]
["MARKET PRICE FACTOR ADJUSTMENT",0,null,0,null,0,null,0,null,{"$f":"$H$31*J21","v":0},{"$f":"$H$31*K21","v":0},0,0,0,0,0,0,0,"There are no Market Price Factor Adjustments."]
[null,"SUBTOTAL: Indirect Costs",null,{"$f":"SUM(D24:D31)","v":20286635.734306686},null,{"$f":"SUM(F24:F31)","v":0},null,{"$f":"SUM(H24:H31)","v":20286635.733243752},null,{"$f":"SUM(J24:J31)","v":1944846.9587120202},{"$f":"SUM(K24:K31)","v":3656713.3853804958},6458901.1594142579,2751441.976055081,432769.36524454656,1820118.0250420831,1812348.8727065555,597416.89003684232,812079.10058948991,{"$f":"SUM(J32:R32)","v":20286635.733181372}]
[]
["TOTAL COSTS",null,null,{"$f":"D20+D32","v":43189351.154862195},null,{"$f":"F20+F32","v":0},null,{"$f":"H20+H32","v":43189351.15259926},null,{"$f":"J20+J32","v":5062605.2092380319},{"$f":"K20+K32","v":7498852.684795998},16813079.563473262,6296575.1473413892,549424.96524454653,2140924.5650420832,2216885.9887852608,881831.54293135682,1729171.485584955]
[]
[]
[null,null,null,null,null,null,null,null,null,"Y-3","Y-2","Y-1","Y1","Y-1","Y1","Y2","Y4","Y4 & Y5"]

{"sheet":"Open Pit","index":2,"n_rows":64,"n_cols":58,"rows_kept":64,"cut":false,"hidden":false,"merged":[[22,46,23,46]]}
[5,"Open Pit Name: ","Umwelt",null,null,null,"Pit #",1,null,null,{"$f":"H1","v":1},null,"Open Pit Name: ","Llama ",null,null,null,"Pit #",{"$f":"H1+1","v":2},null,null,{"$f":"S1","v":2},null,"Open Pit Name: ","Echo",null,null,null,"Pit #",{"$f":"S1+1","v":3},null,null,{"$f":"AD1","v":3},null,"Open Pit Name: ","Goose Main",null,null,null,"Pit #",{"$f":"AD1+1","v":4},null,null,{"$f":"AO1","v":4},null,"Quarry Name: ","Airstrip Quarry",null,null,null,"Quarry #",1,null,null,{"$f":"AZ1","v":1},null,"ICRP Section ","Comments"]
[]
[null,"ACTIVITY/MATERIAL","Notes","Units","Quantity","Cost Code","Unit Cost","Cost","% Land","Land Cost","Total Cost",null,"ACTIVITY/MATERIAL","Notes","Units","Quantity","Cost Code","Unit Cost","Cost","% Land","Land Cost","Total Cost",null,"ACTIVITY/MATERIAL","Notes","Units","Quantity","Cost Code","Unit Cost","Cost","% Land","Land Cost","Total Cost",null,"ACTIVITY/MATERIAL","Notes","Units","Quantity","Cost Code","Unit Cost","Cost","% Land","Land Cost","Total Cost",null,"ACTIVITY/MATERIAL","Notes","Units","Quantity","Cost Code","Unit Cost","Cost","% Land","Land Cost","Total Cost"]
[null,"CONTROL ACCESS",null,null,null,null,null,null,null,null,null,null,"CONTROL ACCESS",null,null,null,null,null,null,null,null,null,null,"CONTROL ACCESS",null,null,null,null,null,null,null,null,null,null,"CONTROL ACCESS",null,null,null,null,null,null,null,null,null,null,"CONTROL ACCESS"]
[null,"Fence",null,"m",null,{"$f":"NA()","v":{"$error":"#N/A"}},{"$f":"IF(ISNA(F5),0,INDEX(IF(UPPER(RIGHT(F5,1))=Low,UnitCostLow, IF(UPPER(RIGHT(F5,1))=High,UnitCostHigh,UnitCostSpecified)),MATCH(UPPER(LEFT(F5,LEN(F5)-1)),CostCode,0)))","v":0},{"$f":"G5*E5","v":0},null,{"$f":"H5*I5","v":0},{"$f":"H5*(1-I5)","v":0},null,"Fence",null,"m",null,{"$f":"NA()","v":{"$error":"#N/A"}},{"$f":"IF(ISNA(Q5),0,INDEX(IF(UPPER(RIGHT(Q5,1))=Low,UnitCostLow, IF(UPPER(RIGHT(Q5,1))=High,UnitCostHigh,UnitCostSpecified)),MATCH(UPPER(LEFT(Q5,LEN(Q5)-1)),CostCode,0)))","v":0},{"$f":"R5*P5","v":0},null,{"$f":"S5*T5","v":0},{"$f":"S5*(1-T5)","v":0},null,"Fence",null,"m",null,{"$f":"NA()","v":{"$error":"#N/A"}},{"$f":"IF(ISNA(AB5),0,INDEX(IF(UPPER(RIGHT(AB5,1))=Low,UnitCostLow, IF(UPPER(RIGHT(AB5,1))=High,UnitCostHigh,UnitCostSpecified)),MATCH(UPPER(LEFT(AB5,LEN(AB5)-1)),CostCode,0)))","v":0},{"$f":"AC5*AA5","v":0},null,{"$f":"AD5*AE5","v":0},{"$f":"AD5*(1-AE5)","v":0},null,"Fence",null,"m",null,{"$f":"NA()","v":{"$error":"#N/A"}},{"$f":"IF(ISNA(AM5),0,INDEX(IF(UPPER(RIGHT(AM5,1))=Low,UnitCostLow, IF(UPPER(RIGHT(AM5,1))=High,UnitCostHigh,UnitCostSpecified)),MATCH(UPPER(LEFT(AM5,LEN(AM5)-1)),CostCode,0)))","v":0},{"$f":"AN5*AL5","v":0},null,{"$f":"AO5*AP5","v":0},{"$f":"AO5*(1-AP5)","v":0},null,"Fence",null,"m",null,{"$f":"NA()","v":{"$error":"#N/A"}},{"$f":"IF(ISNA(AX5),0,INDEX(IF(UPPER(RIGHT(AX5,1))=Low,UnitCostLow, IF(UPPER(RIGHT(AX5,1))=High,UnitCostHigh,UnitCostSpecified)),MATCH(UPPER(LEFT(AX5,LEN(AX5)-1)),CostCode,0)))","v":0},{"$f":"AY5*AW5","v":0},null,{"$f":"AZ5*BA5","v":0},{"$f":"AZ5*(1-BA5)","v":0}]
[null,"Signs","Assumed","each",4,"Sabina",75,{"$f":"G6*E6","v":300},null,{"$f":"H6*I6","v":0},{"$f":"H6*(1-I6)","v":300},null,"Signs","Assumed","each",4,"Sabina",75,{"$f":"R6*P6","v":300},null,0,300,null,"Signs","Assumed","each",4,"Sabina",75,{"$f":"AC6*AA6","v":300},null,0,300,null,"Signs","Assumed","each",4,"Sabina",75,{"$f":"AN6*AL6","v":300},null,0,300,null,"Signs",null,"each",null,{"$f":"NA()","v":{"$error":"#N/A"}},{"$f":"IF(ISNA(AX6),0,INDEX(IF(UPPER(RIGHT(AX6,1))=Low,UnitCostLow, IF(UPPER(RIGHT(AX6,1))=High,UnitCostHigh,UnitCostSpecified)),MATCH(UPPER(LEFT(AX6,LEN(AX6)-1)),CostCode,0)))","v":0},{"$f":"AY6*AW6","v":0},null,{"$f":"AZ6*BA6","v":0},{"$f":"AZ6*(1-BA6)","v":0}]
[null,"Berm at crest","Estimated for continous berm with 1m diameter boulders, no spacing between boulders - 0.52 m3/m - assumed 50 % done during Operations","m3",{"$f":"ROUNDUP('SBB Comp. Est.'!F7*0.52*0.5,0)*1.05","v":447.3},"RR1H",17.75,{"$f":"G7*E7","v":7939.5749999999998},null,0,7939.5749999999998,null,"Berm at crest","Estimated for berm with 1m diameter boulders, no spacing between boulders - 0.52 m3/m; berm needed only where pit edge will not abute the final flooded lake footprint.","m3",{"$f":"ROUNDUP('SBB Comp. Est.'!F10*0.52,0)*1.05","v":218.4},"RR1H",17.75,{"$f":"R7*P7","v":3876.6},null,0,3876.6,null,"Berm at crest","Estimated for continous berm with 1m diameter boulders, no spacing between boulders - 0.52 m3/m - assumed 50 % done during Operations","m3",{"$f":"ROUNDUP('SBB Comp. Est.'!F8*0.52*0.5,0)*1.05","v":204.75},"RR1H",17.75,{"$f":"AC7*AA7","v":3634.3125},null,0,3634.3125,null,"Berm at crest","Estimated for continous berm with 1m diameter boulders, no spacing between boulders - 0.52 m3/m  - assumed 50 % done during Operations","m3",{"$f":"ROUNDUP('SBB Comp. Est.'!F9*0.52*0.5,0)*1.05","v":518.70000000000005},"RR1H",17.75,{"$f":"AN7*AL7","v":9206.9250000000011},null,0,9206.9250000000011,null,"Berm at crest",null,"m3",null,"RB1H",{"$f":"IF(ISNA(AX7),0,INDEX(IF(UPPER(RIGHT(AX7,1))=Low,UnitCostLow, IF(UPPER(RIGHT(AX7,1))=High,UnitCostHigh,UnitCostSpecified)),MATCH(UPPER(LEFT(AX7,LEN(AX7)-1)),CostCode,0)))","v":17.05},{"$f":"AY7*AW7","v":0},null,0,0,null,"Section 5.2.1.4 for pits"]
[null,"Block roads","Temporary gate installation to allow water monitoring. It includes decommissioning of gate when no longer required. Exposed area after gate has been decommissioned will be blocked with boulders (exposed area along with block of roads with boulders included in berm cost above) ","allow",1,"Sabina",5000,{"$f":"G8*E8","v":5000},null,0,5000,null,"Block roads","Temporary gate installation to allow water monitoring. It includes decommissioning of gate when no longer required. Exposed area after gate has been decommissioned will be blocked with boulders (exposed area along with block of roads with boulders included in berm cost above) ","allow",1,"Sabina",5000,{"$f":"R8*P8","v":5000},null,0,5000,null,"Block roads","Temporary gate installation to allow water monitoring. It includes decommissioning of gate when no longer required. Exposed area after gate has been decommissioned will be blocked with boulders (exposed area along with block of roads with boulders included in berm cost above) ","allow",1,"Sabina",5000,{"$f":"AC8*AA8","v":5000},null,0,5000,null,"Block roads","Temporary gate installation to allow water monitoring. It includes decommissioning of gate when no longer required. Exposed area after gate has been decommissioned will be blocked with boulders (exposed area along with block of roads with boulders included in berm cost above) ","allow",1,"Sabina",5000,{"$f":"AN8*AL8","v":5000},null,0,5000,null,"Block roads",null,"allow",null,{"$f":"NA()","v":{"$error":"#N/A"}},0,{"$f":"AY8*AW8","v":0},null,0,0]
[null,"Other",null,null,null,{"$f":"NA()","v":{"$error":"#N/A"}},{"$f":"IF(ISNA(F9),0,INDEX(IF(UPPER(RIGHT(F9,1))=Low,UnitCostLow, IF(UPPER(RIGHT(F9,1))=High,UnitCostHigh,UnitCostSpecified)),MATCH(UPPER(LEFT(F9,LEN(F9)-1)),CostCode,0)))","v":0},{"$f":"G9*E9","v":0},null,{"$f":"H9*I9","v":0},{"$f":"H9*(1-I9)","v":0},null,"Other",null,null,null,{"$f":"NA()","v":{"$error":"#N/A"}},{"$f":"IF(ISNA(Q9),0,INDEX(IF(UPPER(RIGHT(Q9,1))=Low,UnitCostLow, IF(UPPER(RIGHT(Q9,1))=High,UnitCostHigh,UnitCostSpecified)),MATCH(UPPER(LEFT(Q9,LEN(Q9)-1)),CostCode,0)))","v":0},{"$f":"R9*P9","v":0},null,{"$f":"S9*T9","v":0},{"$f":"S9*(1-T9)","v":0},null,"Other",null,null,null,{"$f":"NA()","v":{"$error":"#N/A"}},{"$f":"IF(ISNA(AB9),0,INDEX(IF(UPPER(RIGHT(AB9,1))=Low,UnitCostLow, IF(UPPER(RIGHT(AB9,1))=High,UnitCostHigh,UnitCostSpecified)),MATCH(UPPER(LEFT(AB9,LEN(AB9)-1)),CostCode,0)))","v":0},{"$f":"AC9*AA9","v":0},null,{"$f":"AD9*AE9","v":0},{"$f":"AD9*(1-AE9)","v":0},null,"Other",null,null,null,{"$f":"NA()","v":{"$error":"#N/A"}},{"$f":"IF(ISNA(AM9),0,INDEX(IF(UPPER(RIGHT(AM9,1))=Low,UnitCostLow, IF(UPPER(RIGHT(AM9,1))=High,UnitCostHigh,UnitCostSpecified)),MATCH(UPPER(LEFT(AM9,LEN(AM9)-1)),CostCode,0)))","v":0},{"$f":"AN9*AL9","v":0},null,{"$f":"AO9*AP9","v":0},{"$f":"AO9*(1-AP9)","v":0},null,"Other",null,null,null,{"$f":"NA()","v":{"$error":"#N/A"}},{"$f":"IF(ISNA(AX9),0,INDEX(IF(UPPER(RIGHT(AX9,1))=Low,UnitCostLow, IF(UPPER(RIGHT(AX9,1))=High,UnitCostHigh,UnitCostSpecified)),MATCH(UPPER(LEFT(AX9,LEN(AX9)-1)),CostCode,0)))","v":0},{"$f":"AY9*AW9","v":0},null,{"$f":"AZ9*BA9","v":0},{"$f":"AZ9*(1-BA9)","v":0}]
[null,"STABILITY STUDY",null,null,null,null,null,null,null,null,null,null,"STABILITY STUDY",null,null,null,null,null,null,null,null,null,null,"STABILITY STUDY",null,null,null,null,null,null,null,null,null,null,"STABILITY STUDY",null,null,null,null,null,null,null,null,null,null,"STABILITY STUDY"]
[null,"Conduct stability and setback study",null,"allow",1,"Sabina",17000,{"$f":"G11*E11","v":17000},null,{"$f":"H11*I11","v":0},{"$f":"H11*(1-I11)","v":17000},null,"Conduct stability and setback study",null,"allow",1,"Sabina",17000,{"$f":"R11*P11","v":17000},null,{"$f":"S11*T11","v":0},{"$f":"S11*(1-T11)","v":17000},null,"Conduct stability and setback study",null,"allow",1,"Sabina",17000,{"$f":"AC11*AA11","v":17000},null,{"$f":"AD11*AE11","v":0},{"$f":"AD11*(1-AE11)","v":17000},null,"Conduct stability and setback study",null,"allow",1,"Sabina",17000,{"$f":"AN11*AL11","v":17000},null,{"$f":"AO11*AP11","v":0},{"$f":"AO11*(1-AP11)","v":17000},null,"Conduct stability and setback study","Not required for quarry","allow",null,{"$f":"NA()","v":{"$error":"#N/A"}},{"$f":"IF(ISNA(AX11),0,INDEX(IF(UPPER(RIGHT(AX11,1))=Low,UnitCostLow, IF(UPPER(RIGHT(AX11,1))=High,UnitCostHigh,UnitCostSpecified)),MATCH(UPPER(LEFT(AX11,LEN(AX11)-1)),CostCode,0)))","v":0},{"$f":"AY11*AW11","v":0},null,{"$f":"AZ11*BA11","v":0},{"$f":"AZ11*(1-BA11)","v":0}]
[null,"STABILIZE SLOPES",null,null,null,null,null,null,null,null,null,null,"STABILIZE SLOPES",null,null,null,null,null,null,null,null,null,null,"STABILIZE SLOPES",null,null,null,null,null,null,null,null,null,null,"STABILIZE SLOPES",null,null,null,null,null,null,null,null,null,null,"STABILIZE SLOPES"]
[null,"Off-load crest, soil A",null,"m3",null,{"$f":"NA()","v":{"$error":"#N/A"}},0,{"$f":"G13*E13","v":0},null,0,0,null,"Off-load crest, soil A",null,"m3",null,{"$f":"NA()","v":{"$error":"#N/A"}},{"$f":"IF(ISNA(Q13),0,INDEX(IF(UPPER(RIGHT(Q13,1))=Low,UnitCostLow, IF(UPPER(RIGHT(Q13,1))=High,UnitCostHigh,UnitCostSpecified)),MATCH(UPPER(LEFT(Q13,LEN(Q13)-1)),CostCode,0)))","v":0},{"$f":"R13*P13","v":0},null,{"$f":"S13*T13","v":0},{"$f":"S13*(1-T13)","v":0},null,"Off-load crest, soil A",null,"m3",null,{"$f":"NA()","v":{"$error":"#N/A"}},{"$f":"IF(ISNA(AB13),0,INDEX(IF(UPPER(RIGHT(AB13,1))=Low,UnitCostLow, IF(UPPER(RIGHT(AB13,1))=High,UnitCostHigh,UnitCostSpecified)),MATCH(UPPER(LEFT(AB13,LEN(AB13)-1)),CostCode,0)))","v":0},{"$f":"AC13*AA13","v":0},null,{"$f":"AD13*AE13","v":0},{"$f":"AD13*(1-AE13)","v":0},null,"Off-load crest, soil A",null,"m3",null,{"$f":"NA()","v":{"$error":"#N/A"}},{"$f":"IF(ISNA(AM13),0,INDEX(IF(UPPER(RIGHT(AM13,1))=Low,UnitCostLow, IF(UPPER(RIGHT(AM13,1))=High,UnitCostHigh,UnitCostSpecified)),MATCH(UPPER(LEFT(AM13,LEN(AM13)-1)),CostCode,0)))","v":0},{"$f":"AN13*AL13","v":0},null,{"$f":"AO13*AP13","v":0},{"$f":"AO13*(1-AP13)","v":0},null,"Off-load crest, soil A",null,"m3",null,{"$f":"NA()","v":{"$error":"#N/A"}},{"$f":"IF(ISNA(AX13),0,INDEX(IF(UPPER(RIGHT(AX13,1))=Low,UnitCostLow, IF(UPPER(RIGHT(AX13,1))=High,UnitCostHigh,UnitCostSpecified)),MATCH(UPPER(LEFT(AX13,LEN(AX13)-1)),CostCode,0)))","v":0},{"$f":"AY13*AW13","v":0},null,{"$f":"AZ13*BA13","v":0},{"$f":"AZ13*(1-BA13)","v":0}]
[null,"Off-load crest, soil B",null,"m3",null,{"$f":"NA()","v":{"$error":"#N/A"}},0,0,null,0,0,null,"Off-load crest, soil B",null,"m3",null,{"$f":"NA()","v":{"$error":"#N/A"}},0,0,null,0,0,null,"Off-load crest, soil B",null,"m3",null,{"$f":"NA()","v":{"$error":"#N/A"}},0,0,null,0,0,null,"Off-load crest, soil B",null,"m3",null,{"$f":"NA()","v":{"$error":"#N/A"}},0,0,null,0,0,null,"Off-load crest, soil B",null,"m3",null,{"$f":"NA()","v":{"$error":"#N/A"}},0,0,null,0,0]
[null,"Doze/trim overburden at crest",null,"m3",null,{"$f":"NA()","v":{"$error":"#N/A"}},0,0,null,0,0,null,"Doze/trim overburden at crest",null,"m3",null,{"$f":"NA()","v":{"$error":"#N/A"}},0,0,null,0,0,null,"Doze/trim overburden at crest",null,"m3",null,{"$f":"NA()","v":{"$error":"#N/A"}},0,0,null,0,0,null,"Doze/trim overburden at crest",null,"m3",null,{"$f":"NA()","v":{"$error":"#N/A"}},0,0,null,0,0,null,"Doze/trim overburden at crest",null,"m3",null,{"$f":"NA()","v":{"$error":"#N/A"}},0,0,null,0,0]
[null,"Drill & blast pit crest",null,"m3",null,{"$f":"NA()","v":{"$error":"#N/A"}},0,0,null,0,0,null,"Drill & blast pit crest",null,"m3",null,{"$f":"NA()","v":{"$error":"#N/A"}},0,0,null,0,0,null,"Drill & blast pit crest",null,"m3",null,{"$f":"NA()","v":{"$error":"#N/A"}},0,0,null,0,0,null,"Drill & blast pit crest",null,"m3",null,{"$f":"NA()","v":{"$error":"#N/A"}},0,0,null,0,0,null,"Drill & blast pit crest",null,"m3",null,{"$f":"NA()","v":{"$error":"#N/A"}},0,0,null,0,0]
[null,"Buttress slope",null,"m3",null,{"$f":"NA()","v":{"$error":"#N/A"}},0,0,null,0,0,null,"Buttress slope",null,"m3",null,{"$f":"NA()","v":{"$error":"#N/A"}},0,0,null,0,0,null,"Buttress slope",null,"m3",null,{"$f":"NA()","v":{"$error":"#N/A"}},0,0,null,0,0,null,"Buttress slope",null,"m3",null,{"$f":"NA()","v":{"$error":"#N/A"}},0,0,null,0,0,null,"Buttress slope",null,"m3",null,{"$f":"NA()","v":{"$error":"#N/A"}},0,0,null,0,0]
[null,"Other",null,null,null,{"$f":"NA()","v":{"$error":"#N/A"}},0,0,null,0,0,null,"Other",null,null,null,{"$f":"NA()","v":{"$error":"#N/A"}},0,0,null,0,0,null,"Other",null,null,null,{"$f":"NA()","v":{"$error":"#N/A"}},0,0,null,0,0,null,"Other",null,null,null,{"$f":"NA()","v":{"$error":"#N/A"}},0,0,null,0,0,null,"Other","Backhoe to pull down loose rock on bedrock backslope - assumed","hrs",20,"exc-sL",190,3800,null,0,3800]
[null,"COVER/CONTOUR SLOPES",null,null,null,null,null,null,null,null,null,null,"COVER/CONTOUR SLOPES",null,null,null,null,null,null,null,null,null,null,"COVER/CONTOUR SLOPES",null,null,null,null,null,null,null,null,null,null,"COVER/CONTOUR SLOPES",null,null,null,null,null,null,null,null,null,null,"COVER/CONTOUR SLOPES"]
[null,"Place fill, soil A",null,"m3",null,{"$f":"NA()","v":{"$error":"#N/A"}},0,{"$f":"G20*E20","v":0},null,0,0,null,"Place fill, soil A",null,"m3",null,{"$f":"NA()","v":{"$error":"#N/A"}},{"$f":"IF(ISNA(Q20),0,INDEX(IF(UPPER(RIGHT(Q20,1))=Low,UnitCostLow, IF(UPPER(RIGHT(Q20,1))=High,UnitCostHigh,UnitCostSpecified)),MATCH(UPPER(LEFT(Q20,LEN(Q20)-1)),CostCode,0)))","v":0},{"$f":"R20*P20","v":0},null,{"$f":"S20*T20","v":0},{"$f":"S20*(1-T20)","v":0},null,"Place fill, soil A",null,"m3",null,{"$f":"NA()","v":{"$error":"#N/A"}},{"$f":"IF(ISNA(AB20),0,INDEX(IF(UPPER(RIGHT(AB20,1))=Low,UnitCostLow, IF(UPPER(RIGHT(AB20,1))=High,UnitCostHigh,UnitCostSpecified)),MATCH(UPPER(LEFT(AB20,LEN(AB20)-1)),CostCode,0)))","v":0},{"$f":"AC20*AA20","v":0},null,{"$f":"AD20*AE20","v":0},{"$f":"AD20*(1-AE20)","v":0},null,"Place fill, soil A",null,"m3",null,{"$f":"NA()","v":{"$error":"#N/A"}},{"$f":"IF(ISNA(AM20),0,INDEX(IF(UPPER(RIGHT(AM20,1))=Low,UnitCostLow, IF(UPPER(RIGHT(AM20,1))=High,UnitCostHigh,UnitCostSpecified)),MATCH(UPPER(LEFT(AM20,LEN(AM20)-1)),CostCode,0)))","v":0},{"$f":"AN20*AL20","v":0},null,{"$f":"AO20*AP20","v":0},{"$f":"AO20*(1-AP20)","v":0},null,"Place fill, soil A",null,"m3",null,{"$f":"NA()","v":{"$error":"#N/A"}},{"$f":"IF(ISNA(AX20),0,INDEX(IF(UPPER(RIGHT(AX20,1))=Low,UnitCostLow, IF(UPPER(RIGHT(AX20,1))=High,UnitCostHigh,UnitCostSpecified)),MATCH(UPPER(LEFT(AX20,LEN(AX20)-1)),CostCode,0)))","v":0},{"$f":"AY20*AW20","v":0},null,{"$f":"AZ20*BA20","v":0},{"$f":"AZ20*(1-BA20)","v":0}]
[null,"Place fill, soil B",null,"m3",null,{"$f":"NA()","v":{"$error":"#N/A"}},0,0,null,0,0,null,"Place fill, soil B",null,"m3",null,{"$f":"NA()","v":{"$error":"#N/A"}},0,0,null,0,0,null,"Place fill, soil B",null,"m3",null,{"$f":"NA()","v":{"$error":"#N/A"}},0,0,null,0,0,null,"Place fill, soil B",null,"m3",null,{"$f":"NA()","v":{"$error":"#N/A"}},0,0,null,0,0,null,"Place fill, soil B",null,"m3",null,{"$f":"NA()","v":{"$error":"#N/A"}},0,0,null,0,0]
[null,"Rip rap",null,"m3",null,{"$f":"NA()","v":{"$error":"#N/A"}},0,0,null,0,0,null,"Rip rap",null,"m3",null,{"$f":"NA()","v":{"$error":"#N/A"}},0,0,null,0,0,null,"Rip rap",null,"m3",null,{"$f":"NA()","v":{"$error":"#N/A"}},0,0,null,0,0,null,"Rip rap",null,"m3",null,{"$f":"NA()","v":{"$error":"#N/A"}},0,0,null,0,0,null,"Rip rap",null,"m3",null,{"$f":"NA()","v":{"$error":"#N/A"}},0,0,null,0,0]
[null,"Vegetate slopes",null,"ha",null,{"$f":"NA()","v":{"$error":"#N/A"}},0,0,null,0,0,null,"Vegetate slopes",null,"ha",null,{"$f":"NA()","v":{"$error":"#N/A"}},0,0,null,0,0,null,"Vegetate slopes",null,"ha",null,{"$f":"NA()","v":{"$error":"#N/A"}},0,0,null,0,0,null,"Vegetate slopes",null,"ha",null,{"$f":"NA()","v":{"$error":"#N/A"}},0,0,null,0,0,null,"Vegetate slopes","Allow to revegetate naturally","ha",null,{"$f":"NA()","v":{"$error":"#N/A"}},0,0,null,0,0]
[null,"Vegetate pit floor",null,"ha",null,{"$f":"NA()","v":{"$error":"#N/A"}},0,0,null,0,0,null,"Vegetate pit floor",null,"ha",null,{"$f":"NA()","v":{"$error":"#N/A"}},0,0,null,0,0,null,"Vegetate pit floor",null,"ha",null,{"$f":"NA()","v":{"$error":"#N/A"}},0,0,null,0,0,null,"Vegetate pit floor",null,"ha",null,{"$f":"NA()","v":{"$error":"#N/A"}},0,0,null,0,0,null,"Vegetate pit floor",null,"ha",null,{"$f":"NA()","v":{"$error":"#N/A"}},0,0,null,0,0]
[null,"Other",null,null,null,{"$f":"NA()","v":{"$error":"#N/A"}},0,0,null,0,0,null,"Other",null,null,null,{"$f":"NA()","v":{"$error":"#N/A"}},0,0,null,0,0,null,"Other",null,null,null,{"$f":"NA()","v":{"$error":"#N/A"}},0,0,null,0,0,null,"Other",null,null,null,{"$f":"NA()","v":{"$error":"#N/A"}},0,0,null,0,0,null,"Other",null,null,null,{"$f":"NA()","v":{"$error":"#N/A"}},0,0,null,0,0]
[null,"CONSTRUCT DIVERSION DITCHES",null,null,null,null,null,null,null,null,null,null,"CONSTRUCT DIVERSION DITCHES",null,null,null,null,null,null,null,null,null,null,"CONSTRUCT DIVERSION DITCHES",null,null,null,null,null,null,null,null,null,null,"CONSTRUCT DIVERSION DITCHES",null,null,null,null,null,null,null,null,null,null,"CONSTRUCT DIVERSION DITCHES"]
[null,"Excavate ditches -soil",null,"m3",null,{"$f":"NA()","v":{"$error":"#N/A"}},{"$f":"IF(ISNA(F27),0,INDEX(IF(UPPER(RIGHT(F27,1))=Low,UnitCostLow, IF(UPPER(RIGHT(F27,1))=High,UnitCostHigh,UnitCostSpecified)),MATCH(UPPER(LEFT(F27,LEN(F27)-1)),CostCode,0)))","v":0},{"$f":"G27*E27","v":0},null,{"$f":"H27*I27","v":0},{"$f":"H27*(1-I27)","v":0},null,"Excavate ditches -soil",null,"m3",null,{"$f":"NA()","v":{"$error":"#N/A"}},{"$f":"IF(ISNA(Q27),0,INDEX(IF(UPPER(RIGHT(Q27,1))=Low,UnitCostLow, IF(UPPER(RIGHT(Q27,1))=High,UnitCostHigh,UnitCostSpecified)),MATCH(UPPER(LEFT(Q27,LEN(Q27)-1)),CostCode,0)))","v":0},{"$f":"R27*P27","v":0},null,{"$f":"S27*T27","v":0},{"$f":"S27*(1-T27)","v":0},null,"Excavate ditches -soil",null,"m3",null,{"$f":"NA()","v":{"$error":"#N/A"}},{"$f":"IF(ISNA(AB27),0,INDEX(IF(UPPER(RIGHT(AB27,1))=Low,UnitCostLow, IF(UPPER(RIGHT(AB27,1))=High,UnitCostHigh,UnitCostSpecified)),MATCH(UPPER(LEFT(AB27,LEN(AB27)-1)),CostCode,0)))","v":0},{"$f":"AC27*AA27","v":0},null,{"$f":"AD27*AE27","v":0},{"$f":"AD27*(1-AE27)","v":0},null,"Excavate ditches -soil",null,"m3",null,{"$f":"NA()","v":{"$error":"#N/A"}},{"$f":"IF(ISNA(AM27),0,INDEX(IF(UPPER(RIGHT(AM27,1))=Low,UnitCostLow, IF(UPPER(RIGHT(AM27,1))=High,UnitCostHigh,UnitCostSpecified)),MATCH(UPPER(LEFT(AM27,LEN(AM27)-1)),CostCode,0)))","v":0},{"$f":"AN27*AL27","v":0},null,{"$f":"AO27*AP27","v":0},{"$f":"AO27*(1-AP27)","v":0},null,"Excavate ditches -soil",null,"m3",null,{"$f":"NA()","v":{"$error":"#N/A"}},{"$f":"IF(ISNA(AX27),0,INDEX(IF(UPPER(RIGHT(AX27,1))=Low,UnitCostLow, IF(UPPER(RIGHT(AX27,1))=High,UnitCostHigh,UnitCostSpecified)),MATCH(UPPER(LEFT(AX27,LEN(AX27)-1)),CostCode,0)))","v":0},{"$f":"AY27*AW27","v":0},null,{"$f":"AZ27*BA27","v":0},{"$f":"AZ27*(1-BA27)","v":0},null,"Section 5.2.1.5 for pits"]
[null,"Excavate ditches -rock",null,"m3",null,{"$f":"NA()","v":{"$error":"#N/A"}},{"$f":"IF(ISNA(F28),0,INDEX(IF(UPPER(RIGHT(F28,1))=Low,UnitCostLow, IF(UPPER(RIGHT(F28,1))=High,UnitCostHigh,UnitCostSpecified)),MATCH(UPPER(LEFT(F28,LEN(F28)-1)),CostCode,0)))","v":0},{"$f":"G28*E28","v":0},null,0,0,null,"Excavate ditches -rock",null,"m3",null,{"$f":"NA()","v":{"$error":"#N/A"}},{"$f":"IF(ISNA(Q28),0,INDEX(IF(UPPER(RIGHT(Q28,1))=Low,UnitCostLow, IF(UPPER(RIGHT(Q28,1))=High,UnitCostHigh,UnitCostSpecified)),MATCH(UPPER(LEFT(Q28,LEN(Q28)-1)),CostCode,0)))","v":0},{"$f":"R28*P28","v":0},null,0,0,null,"Excavate ditches -rock",null,"m3",null,{"$f":"NA()","v":{"$error":"#N/A"}},{"$f":"IF(ISNA(AB28),0,INDEX(IF(UPPER(RIGHT(AB28,1))=Low,UnitCostLow, IF(UPPER(RIGHT(AB28,1))=High,UnitCostHigh,UnitCostSpecified)),MATCH(UPPER(LEFT(AB28,LEN(AB28)-1)),CostCode,0)))","v":0},{"$f":"AC28*AA28","v":0},null,0,0,null,"Excavate ditches -rock",null,"m3",null,{"$f":"NA()","v":{"$error":"#N/A"}},{"$f":"IF(ISNA(AM28),0,INDEX(IF(UPPER(RIGHT(AM28,1))=Low,UnitCostLow, IF(UPPER(RIGHT(AM28,1))=High,UnitCostHigh,UnitCostSpecified)),MATCH(UPPER(LEFT(AM28,LEN(AM28)-1)),CostCode,0)))","v":0},{"$f":"AN28*AL28","v":0},null,0,0,null,"Excavate ditches -rock",null,"m3",null,{"$f":"NA()","v":{"$error":"#N/A"}},{"$f":"IF(ISNA(AX28),0,INDEX(IF(UPPER(RIGHT(AX28,1))=Low,UnitCostLow, IF(UPPER(RIGHT(AX28,1))=High,UnitCostHigh,UnitCostSpecified)),MATCH(UPPER(LEFT(AX28,LEN(AX28)-1)),CostCode,0)))","v":0},{"$f":"AY28*AW28","v":0},null,0,0]
[null,"Rip rap in channel base",null,"m3",null,{"$f":"NA()","v":{"$error":"#N/A"}},{"$f":"IF(ISNA(F29),0,INDEX(IF(UPPER(RIGHT(F29,1))=Low,UnitCostLow, IF(UPPER(RIGHT(F29,1))=High,UnitCostHigh,UnitCostSpecified)),MATCH(UPPER(LEFT(F29,LEN(F29)-1)),CostCode,0)))","v":0},{"$f":"G29*E29","v":0},null,0,0,null,"Rip rap in channel base",null,"m3",null,{"$f":"NA()","v":{"$error":"#N/A"}},{"$f":"IF(ISNA(Q29),0,INDEX(IF(UPPER(RIGHT(Q29,1))=Low,UnitCostLow, IF(UPPER(RIGHT(Q29,1))=High,UnitCostHigh,UnitCostSpecified)),MATCH(UPPER(LEFT(Q29,LEN(Q29)-1)),CostCode,0)))","v":0},{"$f":"R29*P29","v":0},null,0,0,null,"Rip rap in channel base",null,"m3",null,{"$f":"NA()","v":{"$error":"#N/A"}},{"$f":"IF(ISNA(AB29),0,INDEX(IF(UPPER(RIGHT(AB29,1))=Low,UnitCostLow, IF(UPPER(RIGHT(AB29,1))=High,UnitCostHigh,UnitCostSpecified)),MATCH(UPPER(LEFT(AB29,LEN(AB29)-1)),CostCode,0)))","v":0},{"$f":"AC29*AA29","v":0},null,0,0,null,"Rip rap in channel base",null,"m3",null,{"$f":"NA()","v":{"$error":"#N/A"}},{"$f":"IF(ISNA(AM29),0,INDEX(IF(UPPER(RIGHT(AM29,1))=Low,UnitCostLow, IF(UPPER(RIGHT(AM29,1))=High,UnitCostHigh,UnitCostSpecified)),MATCH(UPPER(LEFT(AM29,LEN(AM29)-1)),CostCode,0)))","v":0},{"$f":"AN29*AL29","v":0},null,0,0,null,"Rip rap in channel base",null,"m3",null,{"$f":"NA()","v":{"$error":"#N/A"}},{"$f":"IF(ISNA(AX29),0,INDEX(IF(UPPER(RIGHT(AX29,1))=Low,UnitCostLow, IF(UPPER(RIGHT(AX29,1))=High,UnitCostHigh,UnitCostSpecified)),MATCH(UPPER(LEFT(AX29,LEN(AX29)-1)),CostCode,0)))","v":0},{"$f":"AY29*AW29","v":0},null,0,0]
[null,"CONSTRUCT SPILLWAY",null,null,null,null,null,null,null,null,null,null,"CONSTRUCT SPILLWAY",null,null,null,null,null,null,null,null,null,null,"CONSTRUCT SPILLWAY",null,null,null,null,null,null,null,null,null,null,"CONSTRUCT SPILLWAY",null,null,null,null,null,null,null,null,null,null,"CONSTRUCT SPILLWAY"]
[null,"Excavate channel","200 m long, 6 m wide and 1 m deep","m3",{"$f":"'SBB Comp. Est.'!F17","v":1200},"SB1L",4.3,{"$f":"G31*E31","v":5160},null,0,5160,null,"Excavate channel","Spillway not required; will follow natural drainage to Umwelt Lake.","m3",null,{"$f":"NA()","v":{"$error":"#N/A"}},{"$f":"IF(ISNA(Q31),0,INDEX(IF(UPPER(RIGHT(Q31,1))=Low,UnitCostLow, IF(UPPER(RIGHT(Q31,1))=High,UnitCostHigh,UnitCostSpecified)),MATCH(UPPER(LEFT(Q31,LEN(Q31)-1)),CostCode,0)))","v":0},{"$f":"R31*P31","v":0},null,{"$f":"S31*T31","v":0},{"$f":"S31*(1-T31)","v":0},null,"Excavate channel","Spillway not required; will follow natural drainage to Goose Lake.","m3",null,{"$f":"NA()","v":{"$error":"#N/A"}},{"$f":"IF(ISNA(AB31),0,INDEX(IF(UPPER(RIGHT(AB31,1))=Low,UnitCostLow, IF(UPPER(RIGHT(AB31,1))=High,UnitCostHigh,UnitCostSpecified)),MATCH(UPPER(LEFT(AB31,LEN(AB31)-1)),CostCode,0)))","v":0},{"$f":"AC31*AA31","v":0},null,{"$f":"AD31*AE31","v":0},{"$f":"AD31*(1-AE31)","v":0},null,"Excavate channel","100 m long, 6 m wide and 1 m deep","m3",{"$f":"'SBB Comp. Est.'!F20","v":600},"SB1L",{"$f":"IF(ISNA(AM31),0,INDEX(IF(UPPER(RIGHT(AM31,1))=Low,UnitCostLow, IF(UPPER(RIGHT(AM31,1))=High,UnitCostHigh,UnitCostSpecified)),MATCH(UPPER(LEFT(AM31,LEN(AM31)-1)),CostCode,0)))","v":4.3},{"$f":"AN31*AL31","v":2580},null,{"$f":"AO31*AP31","v":0},{"$f":"AO31*(1-AP31)","v":2580},null,"Excavate channel","Not required.  Quarry base will be graded for sheet drainage.","m3",null,"SB1L",{"$f":"IF(ISNA(AX31),0,INDEX(IF(UPPER(RIGHT(AX31,1))=Low,UnitCostLow, IF(UPPER(RIGHT(AX31,1))=High,UnitCostHigh,UnitCostSpecified)),MATCH(UPPER(LEFT(AX31,LEN(AX31)-1)),CostCode,0)))","v":4.3},{"$f":"AY31*AW31","v":0},null,{"$f":"AZ31*BA31","v":0},{"$f":"AZ31*(1-BA31)","v":0},null,"Section 5.2.1.5 for pits"]
[null,"Concrete",null,"m3",null,{"$f":"NA()","v":{"$error":"#N/A"}},0,{"$f":"G32*E32","v":0},null,0,0,null,"Concrete",null,"m3",null,{"$f":"NA()","v":{"$error":"#N/A"}},0,{"$f":"R32*P32","v":0},null,0,0,null,"Concrete",null,"m3",null,{"$f":"NA()","v":{"$error":"#N/A"}},0,{"$f":"AC32*AA32","v":0},null,0,0,null,"Concrete",null,"m3",null,{"$f":"NA()","v":{"$error":"#N/A"}},0,{"$f":"AN32*AL32","v":0},null,0,0,null,"Concrete",null,"m3",null,{"$f":"NA()","v":{"$error":"#N/A"}},0,{"$f":"AY32*AW32","v":0},null,0,0]
[null,"Rip rap",null,"m3",400,"RR1H",17.75,{"$f":"G33*E33","v":7100},null,0,7100,null,"Rip rap",null,"m3",null,{"$f":"NA()","v":{"$error":"#N/A"}},0,{"$f":"R33*P33","v":0},null,0,0,null,"Rip rap",null,"m3",null,{"$f":"NA()","v":{"$error":"#N/A"}},0,{"$f":"AC33*AA33","v":0},null,0,0,null,"Rip rap",null,"m3",200,"RR1H",17.75,{"$f":"AN33*AL33","v":3550},null,0,3550,null,"Rip rap",null,"m3",null,"RR1L",13.5,{"$f":"AY33*AW33","v":0},null,0,0]
[null,"Other","Geotextile","m2",{"$f":"((SQRT(1^2+2^2))*2+6)*200*1.1","v":2303.8699100999079},"GSTL",3.44,{"$f":"G34*E34","v":7925.3124907436832},null,0,7925.3124907436832,null,"Other",null,null,null,{"$f":"NA()","v":{"$error":"#N/A"}},0,{"$f":"R34*P34","v":0},null,0,0,null,"Other",null,null,null,{"$f":"NA()","v":{"$error":"#N/A"}},0,{"$f":"AC34*AA34","v":0},null,0,0,null,"Other","Geotextile","m2",{"$f":"((SQRT(1^2+2^2))*2+6)*100*1.1","v":1151.9349550499539},"GSTL",3.44,{"$f":"AN34*AL34","v":3962.6562453718416},null,0,3962.6562453718416,null,"Other",null,"m2",null,"GSTL",3.44,{"$f":"AY34*AW34","v":0},null,0,0]
[null,"RECLAIM QUARRIES",null,null,null,null,null,null,null,null,null,null,"RECLAIM QUARRIES",null,null,null,null,null,null,null,null,null,null,"RECLAIM QUARRIES",null,null,null,null,null,null,null,null,null,null,"RECLAIM QUARRIES",null,null,null,null,null,null,null,null,null,null,"RECLAIM QUARRIES",null,null,null,null,null,null,null,null,null,null,"See Section 5.2.10.5 for quarry"]
[null,"Contour slopes",null,"m3",null,{"$f":"NA()","v":{"$error":"#N/A"}},{"$f":"IF(ISNA(F36),0,INDEX(IF(UPPER(RIGHT(F36,1))=Low,UnitCostLow, IF(UPPER(RIGHT(F36,1))=High,UnitCostHigh,UnitCostSpecified)),MATCH(UPPER(LEFT(F36,LEN(F36)-1)),CostCode,0)))","v":0},{"$f":"G36*E36","v":0},null,{"$f":"H36*I36","v":0},{"$f":"H36*(1-I36)","v":0},null,"Contour slopes",null,"m3",null,{"$f":"NA()","v":{"$error":"#N/A"}},{"$f":"IF(ISNA(Q36),0,INDEX(IF(UPPER(RIGHT(Q36,1))=Low,UnitCostLow, IF(UPPER(RIGHT(Q36,1))=High,UnitCostHigh,UnitCostSpecified)),MATCH(UPPER(LEFT(Q36,LEN(Q36)-1)),CostCode,0)))","v":0},{"$f":"R36*P36","v":0},null,{"$f":"S36*T36","v":0},{"$f":"S36*(1-T36)","v":0},null,"Contour slopes",null,"m3",null,{"$f":"NA()","v":{"$error":"#N/A"}},{"$f":"IF(ISNA(AB36),0,INDEX(IF(UPPER(RIGHT(AB36,1))=Low,UnitCostLow, IF(UPPER(RIGHT(AB36,1))=High,UnitCostHigh,UnitCostSpecified)),MATCH(UPPER(LEFT(AB36,LEN(AB36)-1)),CostCode,0)))","v":0},{"$f":"AC36*AA36","v":0},null,{"$f":"AD36*AE36","v":0},{"$f":"AD36*(1-AE36)","v":0},null,"Contour slopes",null,"m3",null,{"$f":"NA()","v":{"$error":"#N/A"}},{"$f":"IF(ISNA(AM36),0,INDEX(IF(UPPER(RIGHT(AM36,1))=Low,UnitCostLow, IF(UPPER(RIGHT(AM36,1))=High,UnitCostHigh,UnitCostSpecified)),MATCH(UPPER(LEFT(AM36,LEN(AM36)-1)),CostCode,0)))","v":0},{"$f":"AN36*AL36","v":0},null,{"$f":"AO36*AP36","v":0},{"$f":"AO36*(1-AP36)","v":0},null,"Contour slopes","Quarry will not be flooded - development will occur below water level and the areas will be contoured to drain positively","m3",null,{"$f":"NA()","v":{"$error":"#N/A"}},{"$f":"IF(ISNA(AX36),0,INDEX(IF(UPPER(RIGHT(AX36,1))=Low,UnitCostLow, IF(UPPER(RIGHT(AX36,1))=High,UnitCostHigh,UnitCostSpecified)),MATCH(UPPER(LEFT(AX36,LEN(AX36)-1)),CostCode,0)))","v":0},{"$f":"AY36*AW36","v":0},null,{"$f":"AZ36*BA36","v":0},{"$f":"AZ36*(1-BA36)","v":0}]
[null,"Place overburden",null,"m3",null,{"$f":"NA()","v":{"$error":"#N/A"}},{"$f":"IF(ISNA(F37),0,INDEX(IF(UPPER(RIGHT(F37,1))=Low,UnitCostLow, IF(UPPER(RIGHT(F37,1))=High,UnitCostHigh,UnitCostSpecified)),MATCH(UPPER(LEFT(F37,LEN(F37)-1)),CostCode,0)))","v":0},{"$f":"G37*E37","v":0},null,{"$f":"H37*I37","v":0},{"$f":"H37*(1-I37)","v":0},null,"Place overburden",null,"m3",null,{"$f":"NA()","v":{"$error":"#N/A"}},{"$f":"IF(ISNA(Q37),0,INDEX(IF(UPPER(RIGHT(Q37,1))=Low,UnitCostLow, IF(UPPER(RIGHT(Q37,1))=High,UnitCostHigh,UnitCostSpecified)),MATCH(UPPER(LEFT(Q37,LEN(Q37)-1)),CostCode,0)))","v":0},{"$f":"R37*P37","v":0},null,{"$f":"S37*T37","v":0},{"$f":"S37*(1-T37)","v":0},null,"Place overburden",null,"m3",null,{"$f":"NA()","v":{"$error":"#N/A"}},{"$f":"IF(ISNA(AB37),0,INDEX(IF(UPPER(RIGHT(AB37,1))=Low,UnitCostLow, IF(UPPER(RIGHT(AB37,1))=High,UnitCostHigh,UnitCostSpecified)),MATCH(UPPER(LEFT(AB37,LEN(AB37)-1)),CostCode,0)))","v":0},{"$f":"AC37*AA37","v":0},null,{"$f":"AD37*AE37","v":0},{"$f":"AD37*(1-AE37)","v":0},null,"Place overburden",null,"m3",null,{"$f":"NA()","v":{"$error":"#N/A"}},{"$f":"IF(ISNA(AM37),0,INDEX(IF(UPPER(RIGHT(AM37,1))=Low,UnitCostLow, IF(UPPER(RIGHT(AM37,1))=High,UnitCostHigh,UnitCostSpecified)),MATCH(UPPER(LEFT(AM37,LEN(AM37)-1)),CostCode,0)))","v":0},{"$f":"AN37*AL37","v":0},null,{"$f":"AO37*AP37","v":0},{"$f":"AO37*(1-AP37)","v":0},null,"Place overburden",null,"m3",null,{"$f":"NA()","v":{"$error":"#N/A"}},{"$f":"IF(ISNA(AX37),0,INDEX(IF(UPPER(RIGHT(AX37,1))=Low,UnitCostLow, IF(UPPER(RIGHT(AX37,1))=High,UnitCostHigh,UnitCostSpecified)),MATCH(UPPER(LEFT(AX37,LEN(AX37)-1)),CostCode,0)))","v":0},{"$f":"AY37*AW37","v":0},null,{"$f":"AZ37*BA37","v":0},{"$f":"AZ37*(1-BA37)","v":0}]
[null,"Vegetate",null,"m3",null,{"$f":"NA()","v":{"$error":"#N/A"}},{"$f":"IF(ISNA(F38),0,INDEX(IF(UPPER(RIGHT(F38,1))=Low,UnitCostLow, IF(UPPER(RIGHT(F38,1))=High,UnitCostHigh,UnitCostSpecified)),MATCH(UPPER(LEFT(F38,LEN(F38)-1)),CostCode,0)))","v":0},{"$f":"G38*E38","v":0},null,{"$f":"H38*I38","v":0},{"$f":"H38*(1-I38)","v":0},null,"Vegetate",null,"m3",null,{"$f":"NA()","v":{"$error":"#N/A"}},{"$f":"IF(ISNA(Q38),0,INDEX(IF(UPPER(RIGHT(Q38,1))=Low,UnitCostLow, IF(UPPER(RIGHT(Q38,1))=High,UnitCostHigh,UnitCostSpecified)),MATCH(UPPER(LEFT(Q38,LEN(Q38)-1)),CostCode,0)))","v":0},{"$f":"R38*P38","v":0},null,{"$f":"S38*T38","v":0},{"$f":"S38*(1-T38)","v":0},null,"Vegetate",null,"m3",null,{"$f":"NA()","v":{"$error":"#N/A"}},{"$f":"IF(ISNA(AB38),0,INDEX(IF(UPPER(RIGHT(AB38,1))=Low,UnitCostLow, IF(UPPER(RIGHT(AB38,1))=High,UnitCostHigh,UnitCostSpecified)),MATCH(UPPER(LEFT(AB38,LEN(AB38)-1)),CostCode,0)))","v":0},{"$f":"AC38*AA38","v":0},null,{"$f":"AD38*AE38","v":0},{"$f":"AD38*(1-AE38)","v":0},null,"Vegetate",null,"m3",null,{"$f":"NA()","v":{"$error":"#N/A"}},{"$f":"IF(ISNA(AM38),0,INDEX(IF(UPPER(RIGHT(AM38,1))=Low,UnitCostLow, IF(UPPER(RIGHT(AM38,1))=High,UnitCostHigh,UnitCostSpecified)),MATCH(UPPER(LEFT(AM38,LEN(AM38)-1)),CostCode,0)))","v":0},{"$f":"AN38*AL38","v":0},null,{"$f":"AO38*AP38","v":0},{"$f":"AO38*(1-AP38)","v":0},null,"Vegetate",null,"m3",null,{"$f":"NA()","v":{"$error":"#N/A"}},{"$f":"IF(ISNA(AX38),0,INDEX(IF(UPPER(RIGHT(AX38,1))=Low,UnitCostLow, IF(UPPER(RIGHT(AX38,1))=High,UnitCostHigh,UnitCostSpecified)),MATCH(UPPER(LEFT(AX38,LEN(AX38)-1)),CostCode,0)))","v":0},{"$f":"AY38*AW38","v":0},null,{"$f":"AZ38*BA38","v":0},{"$f":"AZ38*(1-BA38)","v":0}]
[null,"FLOOD PIT-Capital",null,null,null,null,null,null,null,null,null,null,"FLOOD PIT-Captital",null,null,null,null,null,null,null,null,null,null,"FLOOD PIT-Captital",null,null,null,null,null,null,null,null,null,null,"FLOOD PIT-Captital",null,null,null,null,null,null,null,null,null,null,"FLOOD PIT-Capital"]
[null,"Remove stationary equipment \n(sump pumps) and Pipeline","Umwelt TF will be used to store tailings in Years 2 to 6 and it will then passively flood with site runoff and direct precipitation through the remainder of Operations and into the Closure Phase. \nPipelines/pumps will be relocated for use in the other active pits (Llama Pit and Goose Main Pit) and removed to closure landfill once they are no longer needed.\nDispose of fuel in diesel day tank and oil from pump and landfill cleaned pump.   \nRemove of pumps and pipelines will occur during Operations.","m",null,{"$f":"NA()","v":{"$error":"#N/A"}},{"$f":"IF(ISNA(F40),0,INDEX(IF(UPPER(RIGHT(F40,1))=Low,UnitCostLow, IF(UPPER(RIGHT(F40,1))=High,UnitCostHigh,UnitCostSpecified)),MATCH(UPPER(LEFT(F40,LEN(F40)-1)),CostCode,0)))","v":0},{"$f":"G40*E40","v":0},null,{"$f":"H40*I40","v":0},{"$f":"H40*(1-I40)","v":0},null,"Remove stationary equipment\n(sump pumps) and Pipeline","In Year 6, the exhausted Llama Pit will be converted to a water reservoir. Water from the Saline Water Pond will be pumped into Llama Reservoir between Year 4 and Year 9. The Llama Reservoir will continue to passively flood with site runoff and direct precipitation through the remainder of Operations and into the Closure Phase. \nPipelines/pumps will be relocated for use in the other active pits (Goose Main Pit and Echo Pit) and removed to closure landfill once they are no longer needed.\nDispose of fuel in diesel day tank and oil from pump and landfill cleaned pump.   \nRemove of pumps and pipelines will occur during Operations.","m",null,{"$f":"NA()","v":{"$error":"#N/A"}},{"$f":"IF(ISNA(Q40),0,INDEX(IF(UPPER(RIGHT(Q40,1))=Low,UnitCostLow, IF(UPPER(RIGHT(Q40,1))=High,UnitCostHigh,UnitCostSpecified)),MATCH(UPPER(LEFT(Q40,LEN(Q40)-1)),CostCode,0)))","v":0},{"$f":"R40*P40","v":0},null,{"$f":"S40*T40","v":0},{"$f":"S40*(1-T40)","v":0},null,"Remove stationary equipment\n (sump pumps) and Pipeline","Once mining of the Echo Pit concludes in Year 5, dewatering will continue until Year 9 (i.e., the end of Echo U/G mining) as the two mines will be connected. Starting in Year 10, Echo Pit will passively flood with site runoff and direct precipitation through the remainder of Operations and into the Closure Phase.\nPipelines/pumps will be removed to closure landfill.\nDispose of fuel in diesel day tank and oil from pump and landfill cleaned pump.   \nRemove of pumps and pipeline will occur during Operations.","m",null,{"$f":"NA()","v":{"$error":"#N/A"}},{"$f":"IF(ISNA(AB40),0,INDEX(IF(UPPER(RIGHT(AB40,1))=Low,UnitCostLow, IF(UPPER(RIGHT(AB40,1))=High,UnitCostHigh,UnitCostSpecified)),MATCH(UPPER(LEFT(AB40,LEN(AB40)-1)),CostCode,0)))","v":0},{"$f":"AC40*AA40","v":0},null,{"$f":"AD40*AE40","v":0},{"$f":"AD40*(1-AE40)","v":0},null,"Remove stationary equipment \n(sump pumps) and Pipeline","At closure, pump will be at top of TF and pipeline leads to WTP. Remove pipeline to closure landfill; dispose of fuel in diesel day tank and oil from pump and landfill cleaned pump. ","m",{"$f":"'SBB Comp. Est.'!F14","v":4325},"Sabina",{"$f":"'SBB Comp. Est.'!W14","v":10},{"$f":"AN40*AL40","v":43250},null,{"$f":"AO40*AP40","v":0},{"$f":"AO40*(1-AP40)","v":43250},null,"Remove stationary equipment \n(sump pumps) and Pipeline",null,"m",null,{"$f":"NA()","v":{"$error":"#N/A"}},{"$f":"IF(ISNA(AX40),0,INDEX(IF(UPPER(RIGHT(AX40,1))=Low,UnitCostLow, IF(UPPER(RIGHT(AX40,1))=High,UnitCostHigh,UnitCostSpecified)),MATCH(UPPER(LEFT(AX40,LEN(AX40)-1)),CostCode,0)))","v":0},{"$f":"AY40*AW40","v":0},null,{"$f":"AZ40*BA40","v":0},{"$f":"AZ40*(1-BA40)","v":0},null,"Various Sections for pits - 6.2.1 for example"]
[null,"Remove dewatering pipeline",null,"m",null,{"$f":"NA()","v":{"$error":"#N/A"}},{"$f":"IF(ISNA(F41),0,INDEX(IF(UPPER(RIGHT(F41,1))=Low,UnitCostLow, IF(UPPER(RIGHT(F41,1))=High,UnitCostHigh,UnitCostSpecified)),MATCH(UPPER(LEFT(F41,LEN(F41)-1)),CostCode,0)))","v":0},{"$f":"G41*E41","v":0},null,{"$f":"H41*I41","v":0},{"$f":"H41*(1-I41)","v":0},null,"Remove dewatering pipeline",null,"m",null,{"$f":"NA()","v":{"$error":"#N/A"}},{"$f":"IF(ISNA(Q41),0,INDEX(IF(UPPER(RIGHT(Q41,1))=Low,UnitCostLow, IF(UPPER(RIGHT(Q41,1))=High,UnitCostHigh,UnitCostSpecified)),MATCH(UPPER(LEFT(Q41,LEN(Q41)-1)),CostCode,0)))","v":0},{"$f":"R41*P41","v":0},null,{"$f":"S41*T41","v":0},{"$f":"S41*(1-T41)","v":0},null,"Remove dewatering pipeline",null,"m",null,{"$f":"NA()","v":{"$error":"#N/A"}},{"$f":"IF(ISNA(AB41),0,INDEX(IF(UPPER(RIGHT(AB41,1))=Low,UnitCostLow, IF(UPPER(RIGHT(AB41,1))=High,UnitCostHigh,UnitCostSpecified)),MATCH(UPPER(LEFT(AB41,LEN(AB41)-1)),CostCode,0)))","v":0},{"$f":"AC41*AA41","v":0},null,{"$f":"AD41*AE41","v":0},{"$f":"AD41*(1-AE41)","v":0},null,"Remove dewatering pipeline",null,"m",null,{"$f":"NA()","v":{"$error":"#N/A"}},{"$f":"IF(ISNA(AM41),0,INDEX(IF(UPPER(RIGHT(AM41,1))=Low,UnitCostLow, IF(UPPER(RIGHT(AM41,1))=High,UnitCostHigh,UnitCostSpecified)),MATCH(UPPER(LEFT(AM41,LEN(AM41)-1)),CostCode,0)))","v":0},{"$f":"AN41*AL41","v":0},null,{"$f":"AO41*AP41","v":0},{"$f":"AO41*(1-AP41)","v":0},null,"Remove dewatering pipeline",null,"m",null,{"$f":"NA()","v":{"$error":"#N/A"}},{"$f":"IF(ISNA(AX41),0,INDEX(IF(UPPER(RIGHT(AX41,1))=Low,UnitCostLow, IF(UPPER(RIGHT(AX41,1))=High,UnitCostHigh,UnitCostSpecified)),MATCH(UPPER(LEFT(AX41,LEN(AX41)-1)),CostCode,0)))","v":0},{"$f":"AY41*AW41","v":0},null,{"$f":"AZ41*BA41","v":0},{"$f":"AZ41*(1-BA41)","v":0}]
[null,"Remove power lines",null,"each",null,{"$f":"NA()","v":{"$error":"#N/A"}},0,{"$f":"G42*E42","v":0},null,0,0,null,"Remove power lines",null,"each",null,{"$f":"NA()","v":{"$error":"#N/A"}},{"$f":"IF(ISNA(Q42),0,INDEX(IF(UPPER(RIGHT(Q42,1))=Low,UnitCostLow, IF(UPPER(RIGHT(Q42,1))=High,UnitCostHigh,UnitCostSpecified)),MATCH(UPPER(LEFT(Q42,LEN(Q42)-1)),CostCode,0)))","v":0},{"$f":"R42*P42","v":0},null,{"$f":"S42*T42","v":0},{"$f":"S42*(1-T42)","v":0},null,"Remove power lines",null,"each",null,{"$f":"NA()","v":{"$error":"#N/A"}},{"$f":"IF(ISNA(AB42),0,INDEX(IF(UPPER(RIGHT(AB42,1))=Low,UnitCostLow, IF(UPPER(RIGHT(AB42,1))=High,UnitCostHigh,UnitCostSpecified)),MATCH(UPPER(LEFT(AB42,LEN(AB42)-1)),CostCode,0)))","v":0},{"$f":"AC42*AA42","v":0},null,{"$f":"AD42*AE42","v":0},{"$f":"AD42*(1-AE42)","v":0},null,"Remove power lines",null,"each",null,{"$f":"NA()","v":{"$error":"#N/A"}},{"$f":"IF(ISNA(AM42),0,INDEX(IF(UPPER(RIGHT(AM42,1))=Low,UnitCostLow, IF(UPPER(RIGHT(AM42,1))=High,UnitCostHigh,UnitCostSpecified)),MATCH(UPPER(LEFT(AM42,LEN(AM42)-1)),CostCode,0)))","v":0},{"$f":"AN42*AL42","v":0},null,{"$f":"AO42*AP42","v":0},{"$f":"AO42*(1-AP42)","v":0},null,"Remove power lines",null,"each",null,{"$f":"NA()","v":{"$error":"#N/A"}},{"$f":"IF(ISNA(AX42),0,INDEX(IF(UPPER(RIGHT(AX42,1))=Low,UnitCostLow, IF(UPPER(RIGHT(AX42,1))=High,UnitCostHigh,UnitCostSpecified)),MATCH(UPPER(LEFT(AX42,LEN(AX42)-1)),CostCode,0)))","v":0},{"$f":"AY42*AW42","v":0},null,{"$f":"AZ42*BA42","v":0},{"$f":"AZ42*(1-BA42)","v":0}]
[null,"Construct diversion ditches",null,"m3",null,{"$f":"NA()","v":{"$error":"#N/A"}},{"$f":"IF(ISNA(F43),0,INDEX(IF(UPPER(RIGHT(F43,1))=Low,UnitCostLow, IF(UPPER(RIGHT(F43,1))=High,UnitCostHigh,UnitCostSpecified)),MATCH(UPPER(LEFT(F43,LEN(F43)-1)),CostCode,0)))","v":0},{"$f":"G43*E43","v":0},null,{"$f":"H43*I43","v":0},{"$f":"H43*(1-I43)","v":0},null,"Construct diversion ditches",null,"m3",null,{"$f":"NA()","v":{"$error":"#N/A"}},0,0,null,0,0,null,"Construct diversion ditches",null,"m3",null,{"$f":"NA()","v":{"$error":"#N/A"}},0,0,null,0,0,null,"Construct diversion ditches",null,"m3",null,{"$f":"NA()","v":{"$error":"#N/A"}},0,0,null,0,0,null,"Construct diversion ditches",null,"m3",null,{"$f":"NA()","v":{"$error":"#N/A"}},0,0,null,0,0]
[null,"    -Ditch, mat'l A",null,"m3",null,{"$f":"NA()","v":{"$error":"#N/A"}},0,{"$f":"G44*E44","v":0},null,0,{"$f":"+H44*(1-I44)","v":0},null,"    -Ditch, mat'l A",null,"m3",null,{"$f":"NA()","v":{"$error":"#N/A"}},0,{"$f":"R44*P44","v":0},null,0,{"$f":"+S44*(1-T44)","v":0},null,"    -Ditch, mat'l A",null,"m3",null,{"$f":"NA()","v":{"$error":"#N/A"}},0,{"$f":"AC44*AA44","v":0},null,0,{"$f":"+AD44*(1-AE44)","v":0},null,"    -Ditch, mat'l A",null,"m3",null,{"$f":"NA()","v":{"$error":"#N/A"}},0,{"$f":"AN44*AL44","v":0},null,0,{"$f":"+AO44*(1-AP44)","v":0},null,"    -Ditch, mat'l A",null,"m3",null,{"$f":"NA()","v":{"$error":"#N/A"}},0,{"$f":"AY44*AW44","v":0},null,0,{"$f":"+AZ44*(1-BA44)","v":0}]
[null,"    -Ditch, mat'l B",null,"m3",null,{"$f":"NA()","v":{"$error":"#N/A"}},0,{"$f":"G45*E45","v":0},null,0,0,null,"    -Ditch, mat'l B",null,"m3",null,{"$f":"NA()","v":{"$error":"#N/A"}},0,{"$f":"R45*P45","v":0},null,0,0,null,"    -Ditch, mat'l B",null,"m3",null,{"$f":"NA()","v":{"$error":"#N/A"}},0,{"$f":"AC45*AA45","v":0},null,0,0,null,"    -Ditch, mat'l B",null,"m3",null,{"$f":"NA()","v":{"$error":"#N/A"}},0,{"$f":"AN45*AL45","v":0},null,0,0,null,"    -Ditch, mat'l B",null,"m3",null,{"$f":"NA()","v":{"$error":"#N/A"}},0,{"$f":"AY45*AW45","v":0},null,0,0]
[null,"Construct embankment/dam",null,"m3",null,{"$f":"NA()","v":{"$error":"#N/A"}},0,0,null,0,0,null,"Construct embankment/dam",null,"m3",null,{"$f":"NA()","v":{"$error":"#N/A"}},0,{"$f":"R46*P46","v":0},null,0,{"$f":"S46*(1-T46)","v":0},null,"Construct embankment/dam",null,"m3",null,{"$f":"NA()","v":{"$error":"#N/A"}},0,{"$f":"AC46*AA46","v":0},null,0,{"$f":"AD46*(1-AE46)","v":0},null,"Construct embankment/dam",null,"m3",null,{"$f":"NA()","v":{"$error":"#N/A"}},0,{"$f":"AN46*AL46","v":0},null,0,{"$f":"AO46*(1-AP46)","v":0},null,"Construct embankment/dam",null,"m3",null,{"$f":"NA()","v":{"$error":"#N/A"}},0,{"$f":"AY46*AW46","v":0},null,0,{"$f":"AZ46*(1-BA46)","v":0}]
[null,"Supply/install pump station",null,"each",null,{"$f":"NA()","v":{"$error":"#N/A"}},0,0,null,0,0,null,"Supply/install pump station",null,"each",null,{"$f":"NA()","v":{"$error":"#N/A"}},0,0,null,0,0,null,"Supply/install pump station",null,"each",null,{"$f":"NA()","v":{"$error":"#N/A"}},0,0,null,0,0,null,"Supply/install pump station",null,"each",null,{"$f":"NA()","v":{"$error":"#N/A"}},0,0,null,0,0,null,"Supply/install pump station",null,"each",null,{"$f":"NA()","v":{"$error":"#N/A"}},0,0,null,0,0]
[null,"Supply/install piping system",null,"m",null,{"$f":"NA()","v":{"$error":"#N/A"}},{"$f":"IF(ISNA(F48),0,INDEX(IF(UPPER(RIGHT(F48,1))=Low,UnitCostLow, IF(UPPER(RIGHT(F48,1))=High,UnitCostHigh,UnitCostSpecified)),MATCH(UPPER(LEFT(F48,LEN(F48)-1)),CostCode,0)))","v":0},{"$f":"G48*E48","v":0},null,{"$f":"H48*I48","v":0},{"$f":"H48*(1-I48)","v":0},null,"Supply/install piping system",null,"m",null,{"$f":"NA()","v":{"$error":"#N/A"}},0,0,null,0,0,null,"Supply/install piping system",null,"m",null,{"$f":"NA()","v":{"$error":"#N/A"}},0,0,null,0,0,null,"Supply/install piping system",null,"m",null,{"$f":"NA()","v":{"$error":"#N/A"}},0,0,null,0,0,null,"Supply/install piping system",null,"m",null,{"$f":"NA()","v":{"$error":"#N/A"}},0,0,null,0,0]
[null,"Remove pump post-closure",null,"each",null,{"$f":"NA()","v":{"$error":"#N/A"}},{"$f":"IF(ISNA(F49),0,INDEX(IF(UPPER(RIGHT(F49,1))=Low,UnitCostLow, IF(UPPER(RIGHT(F49,1))=High,UnitCostHigh,UnitCostSpecified)),MATCH(UPPER(LEFT(F49,LEN(F49)-1)),CostCode,0)))","v":0},{"$f":"G49*E49","v":0},null,{"$f":"H49*I49","v":0},{"$f":"H49*(1-I49)","v":0},null,"Remove pump post-closure",null,"each",null,{"$f":"NA()","v":{"$error":"#N/A"}},0,0,null,0,0,null,"Remove pump post-closure",null,"each",null,{"$f":"NA()","v":{"$error":"#N/A"}},0,0,null,0,0,null,"Remove pump post-closure",null,"each",null,{"$f":"NA()","v":{"$error":"#N/A"}},0,0,null,0,0,null,"Remove pump post-closure",null,"each",null,{"$f":"NA()","v":{"$error":"#N/A"}},0,0,null,0,0]
[null,"Remove pipeline post-closure",null,"m",null,{"$f":"NA()","v":{"$error":"#N/A"}},{"$f":"IF(ISNA(F50),0,INDEX(IF(UPPER(RIGHT(F50,1))=Low,UnitCostLow, IF(UPPER(RIGHT(F50,1))=High,UnitCostHigh,UnitCostSpecified)),MATCH(UPPER(LEFT(F50,LEN(F50)-1)),CostCode,0)))","v":0},{"$f":"G50*E50","v":0},null,{"$f":"H50*I50","v":0},{"$f":"H50*(1-I50)","v":0},null,"Remove pipeline post-closure",null,"m",null,{"$f":"NA()","v":{"$error":"#N/A"}},0,0,null,0,0,null,"Remove pipeline post-closure",null,"m",null,{"$f":"NA()","v":{"$error":"#N/A"}},0,0,null,0,0,null,"Remove pipeline post-closure",null,"m",null,{"$f":"NA()","v":{"$error":"#N/A"}},0,0,null,0,0,null,"Remove pipeline post-closure",null,"m",null,{"$f":"NA()","v":{"$error":"#N/A"}},0,0,null,0,0]
[null,"FLOOD PIT-Annual Cost",null,null,null,null,null,null,null,null,null,null,"FLOOD PIT-Annual Cost",null,null,null,null,null,null,null,null,null,null,"FLOOD PIT-Annual Cost",null,null,null,null,null,null,null,null,null,null,"FLOOD PIT-Annual Cost",null,null,null,null,null,null,null,null,null,null,"FLOOD PIT-Annual Cost"]
[null,"Operate pumps (power)",null,"m3",null,{"$f":"NA()","v":{"$error":"#N/A"}},0,0,null,0,0,null,"Operate pumps (power)",null,"m3",null,{"$f":"NA()","v":{"$error":"#N/A"}},{"$f":"IF(ISNA(Q52),0,INDEX(IF(UPPER(RIGHT(Q52,1))=Low,UnitCostLow, IF(UPPER(RIGHT(Q52,1))=High,UnitCostHigh,UnitCostSpecified)),MATCH(UPPER(LEFT(Q52,LEN(Q52)-1)),CostCode,0)))","v":0},{"$f":"R52*P52","v":0},null,{"$f":"S52*T52","v":0},{"$f":"S52*(1-T52)","v":0},null,"Operate pumps (power)",null,"m3",null,{"$f":"NA()","v":{"$error":"#N/A"}},{"$f":"IF(ISNA(AB52),0,INDEX(IF(UPPER(RIGHT(AB52,1))=Low,UnitCostLow, IF(UPPER(RIGHT(AB52,1))=High,UnitCostHigh,UnitCostSpecified)),MATCH(UPPER(LEFT(AB52,LEN(AB52)-1)),CostCode,0)))","v":0},{"$f":"AC52*AA52","v":0},null,{"$f":"AD52*AE52","v":0},{"$f":"AD52*(1-AE52)","v":0},null,"Operate pumps (power)",null,"m3",null,{"$f":"NA()","v":{"$error":"#N/A"}},{"$f":"IF(ISNA(AM52),0,INDEX(IF(UPPER(RIGHT(AM52,1))=Low,UnitCostLow, IF(UPPER(RIGHT(AM52,1))=High,UnitCostHigh,UnitCostSpecified)),MATCH(UPPER(LEFT(AM52,LEN(AM52)-1)),CostCode,0)))","v":0},{"$f":"AN52*AL52","v":0},null,{"$f":"AO52*AP52","v":0},{"$f":"AO52*(1-AP52)","v":0},null,"Operate pumps (power)",null,"m3",null,{"$f":"NA()","v":{"$error":"#N/A"}},{"$f":"IF(ISNA(AX52),0,INDEX(IF(UPPER(RIGHT(AX52,1))=Low,UnitCostLow, IF(UPPER(RIGHT(AX52,1))=High,UnitCostHigh,UnitCostSpecified)),MATCH(UPPER(LEFT(AX52,LEN(AX52)-1)),CostCode,0)))","v":0},{"$f":"AY52*AW52","v":0},null,{"$f":"AZ52*BA52","v":0},{"$f":"AZ52*(1-BA52)","v":0}]
[null,"Maintain pump/pipeline",null,"allow",null,{"$f":"NA()","v":{"$error":"#N/A"}},{"$f":"IF(ISNA(F53),0,INDEX(IF(UPPER(RIGHT(F53,1))=Low,UnitCostLow, IF(UPPER(RIGHT(F53,1))=High,UnitCostHigh,UnitCostSpecified)),MATCH(UPPER(LEFT(F53,LEN(F53)-1)),CostCode,0)))","v":0},{"$f":"G53*E53","v":0},null,{"$f":"H53*I53","v":0},{"$f":"H53*(1-I53)","v":0},null,"Maintain pump/pipeline",null,"allow",null,{"$f":"NA()","v":{"$error":"#N/A"}},0,0,null,0,0,null,"Maintain pump/pipeline",null,"allow",null,{"$f":"NA()","v":{"$error":"#N/A"}},0,0,null,0,0,null,"Maintain pump/pipeline",null,"allow",null,{"$f":"NA()","v":{"$error":"#N/A"}},0,0,null,0,0,null,"Maintain pump/pipeline",null,"allow",null,{"$f":"NA()","v":{"$error":"#N/A"}},0,0,null,0,0]
[null,"Labour:fuel management, comissioning/decom",null,"$/h",null,{"$f":"NA()","v":{"$error":"#N/A"}},{"$f":"IF(ISNA(F54),0,INDEX(IF(UPPER(RIGHT(F54,1))=Low,UnitCostLow, IF(UPPER(RIGHT(F54,1))=High,UnitCostHigh,UnitCostSpecified)),MATCH(UPPER(LEFT(F54,LEN(F54)-1)),CostCode,0)))","v":0},{"$f":"G54*E54","v":0},null,{"$f":"H54*I54","v":0},{"$f":"H54*(1-I54)","v":0},null,"Labour:fuel management, comissioning/decom",null,"$/h",null,{"$f":"NA()","v":{"$error":"#N/A"}},0,0,null,0,0,null,"Labour:fuel management, comissioning/decom",null,"$/h",null,{"$f":"NA()","v":{"$error":"#N/A"}},0,0,null,0,0,null,"Labour:fuel management, comissioning/decom",null,"$/h",null,{"$f":"NA()","v":{"$error":"#N/A"}},0,0,null,0,0,null,"Labour:fuel management, comissioning/decom",null,"$/h",null,{"$f":"NA()","v":{"$error":"#N/A"}},0,0,null,0,0]
[null,"Chemical addition,  _____ kg/m3 of water",null,"tonne",null,{"$f":"NA()","v":{"$error":"#N/A"}},0,0,null,0,0,null,"Chemical addition,  _____ kg/m3 of water",null,"tonne",null,{"$f":"NA()","v":{"$error":"#N/A"}},0,0,null,0,0,null,"Chemical addition,  _____ kg/m3 of water",null,"tonne",null,{"$f":"NA()","v":{"$error":"#N/A"}},0,0,null,0,0,null,"Chemical addition,  _____ kg/m3 of water",null,"tonne",null,{"$f":"NA()","v":{"$error":"#N/A"}},0,0,null,0,0,null,"Chemical addition,  _____ kg/m3 of water",null,"tonne",null,{"$f":"NA()","v":{"$error":"#N/A"}},0,0,null,0,0]
[null,"Chemicals, purchase and shipping",null,"tonne",null,{"$f":"NA()","v":{"$error":"#N/A"}},0,0,null,0,0,null,"Chemicals, purchase and shipping",null,"tonne",null,{"$f":"NA()","v":{"$error":"#N/A"}},0,0,null,0,0,null,"Chemicals, purchase and shipping",null,"tonne",null,{"$f":"NA()","v":{"$error":"#N/A"}},0,0,null,0,0,null,"Chemicals, purchase and shipping",null,"tonne",null,{"$f":"NA()","v":{"$error":"#N/A"}},0,0,null,0,0,null,"Chemicals, purchase and shipping",null,"tonne",null,{"$f":"NA()","v":{"$error":"#N/A"}},0,0,null,0,0]
[null,"Passive/biological additives",null,"$/ha",null,{"$f":"NA()","v":{"$error":"#N/A"}},{"$f":"IF(ISNA(F57),0,INDEX(IF(UPPER(RIGHT(F57,1))=Low,UnitCostLow, IF(UPPER(RIGHT(F57,1))=High,UnitCostHigh,UnitCostSpecified)),MATCH(UPPER(LEFT(F57,LEN(F57)-1)),CostCode,0)))","v":0},{"$f":"G57*E57","v":0},null,{"$f":"H57*I57","v":0},{"$f":"H57*(1-I57)","v":0},null,"Passive/biological additives",null,"$/ha",null,{"$f":"NA()","v":{"$error":"#N/A"}},{"$f":"IF(ISNA(Q57),0,INDEX(IF(UPPER(RIGHT(Q57,1))=Low,UnitCostLow, IF(UPPER(RIGHT(Q57,1))=High,UnitCostHigh,UnitCostSpecified)),MATCH(UPPER(LEFT(Q57,LEN(Q57)-1)),CostCode,0)))","v":0},{"$f":"R57*P57","v":0},null,{"$f":"S57*T57","v":0},{"$f":"S57*(1-T57)","v":0},null,"Passive/biological additives",null,"$/ha",null,{"$f":"NA()","v":{"$error":"#N/A"}},{"$f":"IF(ISNA(AB57),0,INDEX(IF(UPPER(RIGHT(AB57,1))=Low,UnitCostLow, IF(UPPER(RIGHT(AB57,1))=High,UnitCostHigh,UnitCostSpecified)),MATCH(UPPER(LEFT(AB57,LEN(AB57)-1)),CostCode,0)))","v":0},{"$f":"AC57*AA57","v":0},null,{"$f":"AD57*AE57","v":0},{"$f":"AD57*(1-AE57)","v":0},null,"Passive/biological additives",null,"$/ha",null,{"$f":"NA()","v":{"$error":"#N/A"}},{"$f":"IF(ISNA(AM57),0,INDEX(IF(UPPER(RIGHT(AM57,1))=Low,UnitCostLow, IF(UPPER(RIGHT(AM57,1))=High,UnitCostHigh,UnitCostSpecified)),MATCH(UPPER(LEFT(AM57,LEN(AM57)-1)),CostCode,0)))","v":0},{"$f":"AN57*AL57","v":0},null,{"$f":"AO57*AP57","v":0},{"$f":"AO57*(1-AP57)","v":0},null,"Passive/biological additives",null,"$/ha",null,{"$f":"NA()","v":{"$error":"#N/A"}},{"$f":"IF(ISNA(AX57),0,INDEX(IF(UPPER(RIGHT(AX57,1))=Low,UnitCostLow, IF(UPPER(RIGHT(AX57,1))=High,UnitCostHigh,UnitCostSpecified)),MATCH(UPPER(LEFT(AX57,LEN(AX57)-1)),CostCode,0)))","v":0},{"$f":"AY57*AW57","v":0},null,{"$f":"AZ57*BA57","v":0},{"$f":"AZ57*(1-BA57)","v":0}]
[null,"Passive additives purchase and shipping",null,"tonne",null,{"$f":"NA()","v":{"$error":"#N/A"}},{"$f":"IF(ISNA(F58),0,INDEX(IF(UPPER(RIGHT(F58,1))=Low,UnitCostLow, IF(UPPER(RIGHT(F58,1))=High,UnitCostHigh,UnitCostSpecified)),MATCH(UPPER(LEFT(F58,LEN(F58)-1)),CostCode,0)))","v":0},{"$f":"G58*E58","v":0},null,{"$f":"H58*I58","v":0},{"$f":"H58*(1-I58)","v":0},null,"Passive additives purchase and shipping",null,"tonne",null,{"$f":"NA()","v":{"$error":"#N/A"}},{"$f":"IF(ISNA(Q58),0,INDEX(IF(UPPER(RIGHT(Q58,1))=Low,UnitCostLow, IF(UPPER(RIGHT(Q58,1))=High,UnitCostHigh,UnitCostSpecified)),MATCH(UPPER(LEFT(Q58,LEN(Q58)-1)),CostCode,0)))","v":0},{"$f":"R58*P58","v":0},null,{"$f":"S58*T58","v":0},{"$f":"S58*(1-T58)","v":0},null,"Passive additives purchase and shipping",null,"tonne",null,{"$f":"NA()","v":{"$error":"#N/A"}},{"$f":"IF(ISNA(AB58),0,INDEX(IF(UPPER(RIGHT(AB58,1))=Low,UnitCostLow, IF(UPPER(RIGHT(AB58,1))=High,UnitCostHigh,UnitCostSpecified)),MATCH(UPPER(LEFT(AB58,LEN(AB58)-1)),CostCode,0)))","v":0},{"$f":"AC58*AA58","v":0},null,{"$f":"AD58*AE58","v":0},{"$f":"AD58*(1-AE58)","v":0},null,"Passive additives purchase and shipping",null,"tonne",null,{"$f":"NA()","v":{"$error":"#N/A"}},{"$f":"IF(ISNA(AM58),0,INDEX(IF(UPPER(RIGHT(AM58,1))=Low,UnitCostLow, IF(UPPER(RIGHT(AM58,1))=High,UnitCostHigh,UnitCostSpecified)),MATCH(UPPER(LEFT(AM58,LEN(AM58)-1)),CostCode,0)))","v":0},{"$f":"AN58*AL58","v":0},null,{"$f":"AO58*AP58","v":0},{"$f":"AO58*(1-AP58)","v":0},null,"Passive additives purchase and shipping",null,"tonne",null,{"$f":"NA()","v":{"$error":"#N/A"}},{"$f":"IF(ISNA(AX58),0,INDEX(IF(UPPER(RIGHT(AX58,1))=Low,UnitCostLow, IF(UPPER(RIGHT(AX58,1))=High,UnitCostHigh,UnitCostSpecified)),MATCH(UPPER(LEFT(AX58,LEN(AX58)-1)),CostCode,0)))","v":0},{"$f":"AY58*AW58","v":0},null,{"$f":"AZ58*BA58","v":0},{"$f":"AZ58*(1-BA58)","v":0}]
[null,"Other",null,null,null,{"$f":"NA()","v":{"$error":"#N/A"}},0,0,null,{"$f":"H59*I59","v":0},0,null,"Other",null,null,null,{"$f":"NA()","v":{"$error":"#N/A"}},{"$f":"IF(ISNA(Q59),0,INDEX(IF(UPPER(RIGHT(Q59,1))=Low,UnitCostLow, IF(UPPER(RIGHT(Q59,1))=High,UnitCostHigh,UnitCostSpecified)),MATCH(UPPER(LEFT(Q59,LEN(Q59)-1)),CostCode,0)))","v":0},{"$f":"R59*P59","v":0},null,{"$f":"S59*T59","v":0},{"$f":"S59*(1-T59)","v":0},null,"Other",null,null,null,{"$f":"NA()","v":{"$error":"#N/A"}},{"$f":"IF(ISNA(AB59),0,INDEX(IF(UPPER(RIGHT(AB59,1))=Low,UnitCostLow, IF(UPPER(RIGHT(AB59,1))=High,UnitCostHigh,UnitCostSpecified)),MATCH(UPPER(LEFT(AB59,LEN(AB59)-1)),CostCode,0)))","v":0},{"$f":"AC59*AA59","v":0},null,{"$f":"AD59*AE59","v":0},{"$f":"AD59*(1-AE59)","v":0},null,"Other",null,null,null,{"$f":"NA()","v":{"$error":"#N/A"}},{"$f":"IF(ISNA(AM59),0,INDEX(IF(UPPER(RIGHT(AM59,1))=Low,UnitCostLow, IF(UPPER(RIGHT(AM59,1))=High,UnitCostHigh,UnitCostSpecified)),MATCH(UPPER(LEFT(AM59,LEN(AM59)-1)),CostCode,0)))","v":0},{"$f":"AN59*AL59","v":0},null,{"$f":"AO59*AP59","v":0},{"$f":"AO59*(1-AP59)","v":0},null,"Other",null,null,null,{"$f":"NA()","v":{"$error":"#N/A"}},{"$f":"IF(ISNA(AX59),0,INDEX(IF(UPPER(RIGHT(AX59,1))=Low,UnitCostLow, IF(UPPER(RIGHT(AX59,1))=High,UnitCostHigh,UnitCostSpecified)),MATCH(UPPER(LEFT(AX59,LEN(AX59)-1)),CostCode,0)))","v":0},{"$f":"AY59*AW59","v":0},null,{"$f":"AZ59*BA59","v":0},{"$f":"AZ59*(1-BA59)","v":0}]
[null,null,null,null,null,null,"Annual pumping costs",{"$f":"SUM(H52:H59)+0.0001","v":1E-4},null,null,null,null,null,null,null,null,null,"Annual pumping costs",{"$f":"SUM(S52:S59)+0.0001","v":1E-4},null,null,null,null,null,null,null,null,null,"Annual pumping costs",{"$f":"SUM(AD52:AD59)+0.0001","v":1E-4},null,null,null,null,null,null,null,null,null,"Annual pumping costs",{"$f":"SUM(AO52:AO59)+0.0001","v":1E-4},null,null,null,null,null,null,null,null,null,"Annual pumping costs",{"$f":"SUM(AZ52:AZ59)+0.0001","v":1E-4}]
[null,"Number of years of pump flooding","passive pit flooding","years",0,null,null,null,null,null,null,null,"Number of years of pump flooding","passive pit flooding","years",0,null,null,null,null,null,null,null,"Number of years of pump flooding","passive pit flooding","years",0,null,null,null,null,null,null,null,"Number of years of pump flooding","passive pit flooding","years",0,null,null,null,null,null,null,null,"Number of years of pump flooding","No flooding","years",0]
[null,null,null,null,null,null,"Total pumping costs",{"$f":"H60*E61","v":0},null,{"$f":"H62*I62","v":0},{"$f":"H62*(1-I62)","v":0},null,null,null,null,null,null,"Total pumping costs",{"$f":"S60*P61","v":0},null,{"$f":"S62*T62","v":0},{"$f":"S62*(1-T62)","v":0},null,null,null,null,null,null,"Total pumping costs",{"$f":"AD60*AA61","v":0},null,{"$f":"AD62*AE62","v":0},{"$f":"AD62*(1-AE62)","v":0},null,null,null,null,null,null,"Total pumping costs",{"$f":"AO60*AL61","v":0},null,{"$f":"AO62*AP62","v":0},{"$f":"AO62*(1-AP62)","v":0},null,null,null,null,null,null,"Total pumping costs",{"$f":"AZ60*AW61","v":0},null,{"$f":"AZ62*BA62","v":0},{"$f":"AZ62*(1-BA62)","v":0}]
[null,null,null,null,null,null,"Total",{"$f":"SUM(H5:H50)+H62+0.0001","v":50424.887590743681},null,{"$f":"SUM(J5:J50)+J62","v":0},{"$f":"SUM(K5:K50)+K62","v":50424.887490743684},null,null,null,null,null,null,"Total",{"$f":"SUM(S5:S50)+S62+0.0001","v":26176.6001},null,{"$f":"SUM(U5:U50)+U62","v":0},{"$f":"SUM(V5:V50)+V62","v":26176.6},null,null,null,null,null,null,"Total",{"$f":"SUM(AD5:AD50)+AD62+0.0001","v":25934.312600000001},null,{"$f":"SUM(AF5:AF50)+AF62","v":0},{"$f":"SUM(AG5:AG50)+AG62","v":25934.3125},null,null,null,null,null,null,"Total",{"$f":"SUM(AO5:AO50)+AO62+0.0001","v":84849.581345371844},null,{"$f":"SUM(AQ5:AQ50)+AQ62","v":0},{"$f":"SUM(AR5:AR50)+AR62","v":84849.581245371839},null,null,null,null,null,null,"Total",{"$f":"SUM(AZ5:AZ50)+AZ62+0.0001","v":3800.0001000000002},null,{"$f":"SUM(BB5:BB50)+BB62","v":0},{"$f":"SUM(BC5:BC50)+BC62","v":3800}]
[null,null,null,null,null,null,"% of Total",null,null,{"$f":"J63/H63","v":0},{"$f":"K63/H63","v":0.99999999801685235},null,null,null,null,null,null,"% of Total",null,null,{"$f":"U63/S63","v":0},{"$f":"V63/S63","v":0.99999999617979418},null,null,null,null,null,null,"% of Total",null,null,{"$f":"AF63/AD63","v":0},{"$f":"AG63/AD63","v":0.9999999961441044},null,null,null,null,null,null,"% of Total",null,null,{"$f":"AQ63/AO63","v":0},{"$f":"AR63/AO63","v":0.99999999882144375},null,null,null,null,null,null,"% of Total",null,null,{"$f":"BB63/AZ63","v":0},{"$f":"BC63/AZ63","v":0.99999997368421112}]

{"sheet":"UG Mine","index":3,"n_rows":43,"n_cols":44,"rows_kept":43,"cut":false,"hidden":false,"merged":[]}
[4,"Underground Mine Name","Umwelt",null,null,null,"UG Mine #",1,null,null,{"$f":"H1","v":1},null,"Underground Mine Name","Llama",null,null,null,"UG Mine #",{"$f":"H1+1","v":2},null,null,{"$f":"S1","v":2},null,"Underground Mine Name","Goose Main",null,null,null,"UG Mine #",{"$f":"S1+1","v":3},null,null,{"$f":"AD1","v":3},null,"Underground Mine Name","Echo",null,null,null,"UG Mine #",{"$f":"AD1+1","v":4},null,null,{"$f":"AO1","v":4}]
[]
[null,"ACTIVITY/MATERIAL","Notes","Unit","Qty","Cost Code","Unit Cost","Cost","% Land","Land Cost","Total Cost",null,"ACTIVITY/MATERIAL","Notes","Unit","Qty","Cost Code","Unit Cost","Cost","% Land","Land Cost","Total Cost",null,"ACTIVITY/MATERIAL","Notes","Unit","Qty","Cost Code","Unit Cost","Cost","% Land","Land Cost","Total Cost",null,"ACTIVITY/MATERIAL","Notes","Unit","Qty","Cost Code","Unit Cost","Cost","% Land","Land Cost","Total Cost"]
[null,"CONTROL ACCESS",null,null,null,null,null,null,null,null,null,null,"CONTROL ACCESS",null,null,null,null,null,null,null,null,null,null,"CONTROL ACCESS",null,null,null,null,null,null,null,null,null,null,"CONTROL ACCESS"]
[null,"Fence",null,"m",null,{"$f":"NA()","v":{"$error":"#N/A"}},{"$f":"IF(ISNA(F5),0,INDEX(IF(UPPER(RIGHT(F5,1))=Low,UnitCostLow, IF(UPPER(RIGHT(F5,1))=High,UnitCostHigh,UnitCostSpecified)),MATCH(UPPER(LEFT(F5,LEN(F5)-1)),CostCode,0)))","v":0},{"$f":"G5*E5","v":0},null,{"$f":"H5*I5","v":0},{"$f":"H5*(1-I5)","v":0},null,"Fence",null,"m",null,{"$f":"NA()","v":{"$error":"#N/A"}},{"$f":"IF(ISNA(Q5),0,INDEX(IF(UPPER(RIGHT(Q5,1))=Low,UnitCostLow, IF(UPPER(RIGHT(Q5,1))=High,UnitCostHigh,UnitCostSpecified)),MATCH(UPPER(LEFT(Q5,LEN(Q5)-1)),CostCode,0)))","v":0},{"$f":"R5*P5","v":0},null,{"$f":"S5*T5","v":0},{"$f":"S5*(1-T5)","v":0},null,"Fence",null,"m",null,{"$f":"NA()","v":{"$error":"#N/A"}},{"$f":"IF(ISNA(AB5),0,INDEX(IF(UPPER(RIGHT(AB5,1))=Low,UnitCostLow, IF(UPPER(RIGHT(AB5,1))=High,UnitCostHigh,UnitCostSpecified)),MATCH(UPPER(LEFT(AB5,LEN(AB5)-1)),CostCode,0)))","v":0},{"$f":"AC5*AA5","v":0},null,{"$f":"AD5*AE5","v":0},{"$f":"AD5*(1-AE5)","v":0},null,"Fence",null,"m",null,{"$f":"NA()","v":{"$error":"#N/A"}},{"$f":"IF(ISNA(AM5),0,INDEX(IF(UPPER(RIGHT(AM5,1))=Low,UnitCostLow, IF(UPPER(RIGHT(AM5,1))=High,UnitCostHigh,UnitCostSpecified)),MATCH(UPPER(LEFT(AM5,LEN(AM5)-1)),CostCode,0)))","v":0},{"$f":"AN5*AL5","v":0},null,{"$f":"AO5*AP5","v":0},{"$f":"AO5*(1-AP5)","v":0}]
[null,"Signs",null,"each",null,{"$f":"NA()","v":{"$error":"#N/A"}},0,0,null,{"$f":"H6*I6","v":0},0,null,"Signs",null,"each",null,{"$f":"NA()","v":{"$error":"#N/A"}},0,0,null,{"$f":"S6*T6","v":0},{"$f":"S6*(1-T6)","v":0},null,"Signs",null,"each",null,{"$f":"NA()","v":{"$error":"#N/A"}},0,0,null,{"$f":"AD6*AE6","v":0},{"$f":"AD6*(1-AE6)","v":0},null,"Signs",null,"each",null,{"$f":"NA()","v":{"$error":"#N/A"}},0,0,null,{"$f":"AO6*AP6","v":0},{"$f":"AO6*(1-AP6)","v":0}]
[null,"Block roads",null,"m3",null,{"$f":"NA()","v":{"$error":"#N/A"}},0,{"$f":"G7*E7","v":0},null,0,0,null,"Block roads",null,"m3",null,{"$f":"NA()","v":{"$error":"#N/A"}},0,{"$f":"R7*P7","v":0},null,0,0,null,"Block roads",null,"m3",null,{"$f":"NA()","v":{"$error":"#N/A"}},0,{"$f":"AC7*AA7","v":0},null,0,0,null,"Block roads",null,"m3",null,{"$f":"NA()","v":{"$error":"#N/A"}},0,{"$f":"AN7*AL7","v":0},null,0,0]
[null,"Berm",null,"m3",null,{"$f":"NA()","v":{"$error":"#N/A"}},0,0,null,0,0,null,"Berm",null,"m3",null,{"$f":"NA()","v":{"$error":"#N/A"}},0,{"$f":"R8*P8","v":0},null,0,0,null,"Berm",null,"m3",null,{"$f":"NA()","v":{"$error":"#N/A"}},0,{"$f":"AC8*AA8","v":0},null,0,0,null,"Berm",null,"m3",null,{"$f":"NA()","v":{"$error":"#N/A"}},0,{"$f":"AN8*AL8","v":0},null,0,0]
[null,"Backfill Portal  \n(NPAG waste rock plug)","At least 5 m deep into 5x4.5m portal and slope at least 2:1 outside of portal","m3",{"$f":"'SBB Comp. Est.'!F38","v":150},"PORL",18.8,2820,null,{"$f":"H9*I9","v":0},2820,null,"Backfill Portal  \n(NPAG waste rock plug)","At least 5 m deep into 5x4.5m portal and slope at least 2:1 outside of portal","m3",{"$f":"'SBB Comp. Est.'!F40","v":150},"PORL",18.8,2820,null,{"$f":"S9*T9","v":0},{"$f":"S9*(1-T9)","v":2820},null,"Backfill Portal  \n(NPAG waste rock plug)","At least 5 m deep into 5x4.5m portal and slope at least 2:1 outside of portal","m3",{"$f":"'SBB Comp. Est.'!F42","v":150},"PORL",18.8,2820,null,{"$f":"AD9*AE9","v":0},{"$f":"AD9*(1-AE9)","v":2820},null,"Backfill Portal  \n(NPAG waste rock plug)","At least 5 m deep into 5x4.5m portal and slope at least 2:1 outside of portal","m3",{"$f":"'SBB Comp. Est.'!F44","v":150},"PORL",18.8,2820,null,{"$f":"AO9*AP9","v":0},{"$f":"AO9*(1-AP9)","v":2820}]
[null,"Backfill portal #2",null,"m3",null,{"$f":"NA()","v":{"$error":"#N/A"}},0,0,null,0,0,null,"Backfill portal #2",null,"m3",null,{"$f":"NA()","v":{"$error":"#N/A"}},{"$f":"IF(ISNA(Q10),0,INDEX(IF(UPPER(RIGHT(Q10,1))=Low,UnitCostLow, IF(UPPER(RIGHT(Q10,1))=High,UnitCostHigh,UnitCostSpecified)),MATCH(UPPER(LEFT(Q10,LEN(Q10)-1)),CostCode,0)))","v":0},0,null,{"$f":"S10*T10","v":0},{"$f":"S10*(1-T10)","v":0},null,"Backfill portal #2",null,"m3",null,{"$f":"NA()","v":{"$error":"#N/A"}},{"$f":"IF(ISNA(AB10),0,INDEX(IF(UPPER(RIGHT(AB10,1))=Low,UnitCostLow, IF(UPPER(RIGHT(AB10,1))=High,UnitCostHigh,UnitCostSpecified)),MATCH(UPPER(LEFT(AB10,LEN(AB10)-1)),CostCode,0)))","v":0},0,null,{"$f":"AD10*AE10","v":0},{"$f":"AD10*(1-AE10)","v":0},null,"Backfill portal #2",null,"m3",null,{"$f":"NA()","v":{"$error":"#N/A"}},{"$f":"IF(ISNA(AM10),0,INDEX(IF(UPPER(RIGHT(AM10,1))=Low,UnitCostLow, IF(UPPER(RIGHT(AM10,1))=High,UnitCostHigh,UnitCostSpecified)),MATCH(UPPER(LEFT(AM10,LEN(AM10)-1)),CostCode,0)))","v":0},0,null,{"$f":"AO10*AP10","v":0},{"$f":"AO10*(1-AP10)","v":0}]
[null,"Cap raise # 1","Concrete plug over 4m-dia. vent raise ","m3",28.3,"SRH",2132,60335.6,null,0,60335.6,null,"Cap raise # 1","Concrete plug over 4m-dia. vent raise","LS",28.3,"SRH",2132,60335.6,null,0,60335.6,null,"Cap raise # 1","Concrete plug over 4m-dia. vent raise","LS",28.3,"SRH",2132,60335.6,null,0,60335.6,null,"Cap raise # 1","Concrete plug over 4m-dia. vent raise","LS",28.3,"SRH",2132,60335.6,null,0,60335.6]
[null,"Cap raise #2","Concrete plug over 4m-dia. vent raise ","m3",28.3,"SRH",{"$f":"IF(ISNA(F12),0,INDEX(IF(UPPER(RIGHT(F12,1))=Low,UnitCostLow, IF(UPPER(RIGHT(F12,1))=High,UnitCostHigh,UnitCostSpecified)),MATCH(UPPER(LEFT(F12,LEN(F12)-1)),CostCode,0)))","v":2132},{"$f":"G12*E12","v":60335.6},null,{"$f":"H12*I12","v":0},{"$f":"H12*(1-I12)","v":60335.6},null,"Cap raise #2",null,"m3",null,{"$f":"NA()","v":{"$error":"#N/A"}},{"$f":"IF(ISNA(Q12),0,INDEX(IF(UPPER(RIGHT(Q12,1))=Low,UnitCostLow, IF(UPPER(RIGHT(Q12,1))=High,UnitCostHigh,UnitCostSpecified)),MATCH(UPPER(LEFT(Q12,LEN(Q12)-1)),CostCode,0)))","v":0},0,null,0,0,null,"Cap raise #2",null,"m3",null,{"$f":"NA()","v":{"$error":"#N/A"}},{"$f":"IF(ISNA(AB12),0,INDEX(IF(UPPER(RIGHT(AB12,1))=Low,UnitCostLow, IF(UPPER(RIGHT(AB12,1))=High,UnitCostHigh,UnitCostSpecified)),MATCH(UPPER(LEFT(AB12,LEN(AB12)-1)),CostCode,0)))","v":0},0,null,0,0,null,"Cap raise #2",null,"m3",null,{"$f":"NA()","v":{"$error":"#N/A"}},{"$f":"IF(ISNA(AM12),0,INDEX(IF(UPPER(RIGHT(AM12,1))=Low,UnitCostLow, IF(UPPER(RIGHT(AM12,1))=High,UnitCostHigh,UnitCostSpecified)),MATCH(UPPER(LEFT(AM12,LEN(AM12)-1)),CostCode,0)))","v":0},0,null,0,0]
[null,"Cap shaft #1","Concrete plug over 4m-dia. fresh air vent","m3",28.3,"SRH",2132,60335.6,null,0,60335.6,null,"Cap shaft #1",null,"m3",null,{"$f":"NA()","v":{"$error":"#N/A"}},0,0,null,0,0,null,"Cap shaft #1",null,"m3",null,{"$f":"NA()","v":{"$error":"#N/A"}},0,0,null,0,0,null,"Cap shaft #1",null,"m3",null,{"$f":"NA()","v":{"$error":"#N/A"}},0,0,null,0,0]
[null,"Cap shaft #2",null,"m3",null,{"$f":"NA()","v":{"$error":"#N/A"}},0,0,null,0,0,null,"Cap shaft #2",null,"m3",null,{"$f":"NA()","v":{"$error":"#N/A"}},0,0,null,0,0,null,"Cap shaft #2",null,"m3",null,{"$f":"NA()","v":{"$error":"#N/A"}},0,0,null,0,0,null,"Cap shaft #2",null,"m3",null,{"$f":"NA()","v":{"$error":"#N/A"}},0,0,null,0,0]
[null,"Backfill adits",null,"m3",null,{"$f":"NA()","v":{"$error":"#N/A"}},0,0,null,{"$f":"H15*I15","v":0},0,null,"Backfill adits",null,"m3",null,{"$f":"NA()","v":{"$error":"#N/A"}},0,0,null,{"$f":"S15*T15","v":0},{"$f":"S15*(1-T15)","v":0},null,"Backfill adits",null,"m3",null,{"$f":"NA()","v":{"$error":"#N/A"}},0,0,null,{"$f":"AD15*AE15","v":0},{"$f":"AD15*(1-AE15)","v":0},null,"Backfill adits",null,"m3",null,{"$f":"NA()","v":{"$error":"#N/A"}},0,0,null,{"$f":"AO15*AP15","v":0},{"$f":"AO15*(1-AP15)","v":0}]
[null,"Backfill open stope",null,"m3",null,{"$f":"NA()","v":{"$error":"#N/A"}},0,0,null,0,0,null,"Backfill open stope",null,"m3",null,{"$f":"NA()","v":{"$error":"#N/A"}},0,0,null,{"$f":"S16*T16","v":0},{"$f":"S16*(1-T16)","v":0},null,"Backfill open stope",null,"m3",null,{"$f":"NA()","v":{"$error":"#N/A"}},0,0,null,{"$f":"AD16*AE16","v":0},{"$f":"AD16*(1-AE16)","v":0},null,"Backfill open stope",null,"m3",{"$f":"'SBB Comp. Est.'!F54","v":3550},"Sabina",{"$f":"'SBB Comp. Est.'!W54","v":6},21300,null,{"$f":"AO16*AP16","v":0},{"$f":"AO16*(1-AP16)","v":21300}]
[null,"Concrete cap over open stope",null,"m3",null,{"$f":"NA()","v":{"$error":"#N/A"}},0,0,null,0,0,null,"Concrete cap over open stope",null,"m3",null,{"$f":"NA()","v":{"$error":"#N/A"}},0,0,null,0,0,null,"Concrete cap over open stope",null,"m3",null,{"$f":"NA()","v":{"$error":"#N/A"}},0,0,null,0,0,null,"Concrete cap over open stope",null,"m3",null,{"$f":"NA()","v":{"$error":"#N/A"}},0,0,null,0,0]
[null,"Other",null,null,null,{"$f":"NA()","v":{"$error":"#N/A"}},0,0,null,0,0,null,"Other",null,null,null,null,null,null,null,null,null,null,"Other",null,null,null,null,null,null,null,null,null,null,"Other",null,null,null,{"$f":"NA()","v":{"$error":"#N/A"}},0,0,null,0,0]
[null,"REMOVE HAZARDOUS MATERIALS",null,null,null,null,null,null,null,null,null,null,"REMOVE HAZARDOUS MATERIALS",null,null,null,null,null,null,null,null,null,null,"REMOVE HAZARDOUS MATERIALS",null,null,null,null,null,null,null,null,null,null,"REMOVE HAZARDOUS MATERIALS"]
[null,"Remove hazardous materials, U/G labor","Two shifts with loader, incl. operator and fuel","manhour",20,"load-s",175,{"$f":"G20*E20","v":3500},null,{"$f":"H20*I20","v":0},{"$f":"H20*(1-I20)","v":3500},null,"Remove hazardous materials, U/G labor","Two shifts with loader, incl. operator and fuel","manhour",20,"load-s",175,{"$f":"R20*P20","v":3500},null,{"$f":"S20*T20","v":0},{"$f":"S20*(1-T20)","v":3500},null,"Remove hazardous materials, U/G labor","Two shifts with loader, incl. operator and fuel","manhour",20,"load-s",175,{"$f":"AC20*AA20","v":3500},null,{"$f":"AD20*AE20","v":0},{"$f":"AD20*(1-AE20)","v":3500},null,"Remove hazardous materials, U/G labor","One shift with loader, incl. operator and fuel","manhour",10,"load-s",175,{"$f":"AN20*AL20","v":1750},null,{"$f":"AO20*AP20","v":0},{"$f":"AO20*(1-AP20)","v":1750}]
[null,"Remove/decontam. stationary & elect. equip",null,"mandays",null,{"$f":"NA()","v":{"$error":"#N/A"}},{"$f":"IF(ISNA(F21),0,INDEX(IF(UPPER(RIGHT(F21,1))=Low,UnitCostLow, IF(UPPER(RIGHT(F21,1))=High,UnitCostHigh,UnitCostSpecified)),MATCH(UPPER(LEFT(F21,LEN(F21)-1)),CostCode,0)))","v":0},{"$f":"G21*E21","v":0},null,{"$f":"H21*I21","v":0},{"$f":"H21*(1-I21)","v":0},null,"Remove/decontam. stationary & elect. equip",null,"mandays",null,{"$f":"NA()","v":{"$error":"#N/A"}},{"$f":"IF(ISNA(Q21),0,INDEX(IF(UPPER(RIGHT(Q21,1))=Low,UnitCostLow, IF(UPPER(RIGHT(Q21,1))=High,UnitCostHigh,UnitCostSpecified)),MATCH(UPPER(LEFT(Q21,LEN(Q21)-1)),CostCode,0)))","v":0},{"$f":"R21*P21","v":0},null,{"$f":"S21*T21","v":0},{"$f":"S21*(1-T21)","v":0},null,"Remove/decontam. stationary & elect. equip",null,"mandays",null,{"$f":"NA()","v":{"$error":"#N/A"}},{"$f":"IF(ISNA(AB21),0,INDEX(IF(UPPER(RIGHT(AB21,1))=Low,UnitCostLow, IF(UPPER(RIGHT(AB21,1))=High,UnitCostHigh,UnitCostSpecified)),MATCH(UPPER(LEFT(AB21,LEN(AB21)-1)),CostCode,0)))","v":0},{"$f":"AC21*AA21","v":0},null,{"$f":"AD21*AE21","v":0},{"$f":"AD21*(1-AE21)","v":0},null,"Remove/decontam. stationary & elect. equip",null,"mandays",null,{"$f":"NA()","v":{"$error":"#N/A"}},{"$f":"IF(ISNA(AM21),0,INDEX(IF(UPPER(RIGHT(AM21,1))=Low,UnitCostLow, IF(UPPER(RIGHT(AM21,1))=High,UnitCostHigh,UnitCostSpecified)),MATCH(UPPER(LEFT(AM21,LEN(AM21)-1)),CostCode,0)))","v":0},{"$f":"AN21*AL21","v":0},null,{"$f":"AO21*AP21","v":0},{"$f":"AO21*(1-AP21)","v":0}]
[null,"Remove/decontam. mobile equipment",null,"each",null,{"$f":"NA()","v":{"$error":"#N/A"}},{"$f":"IF(ISNA(F22),0,INDEX(IF(UPPER(RIGHT(F22,1))=Low,UnitCostLow, IF(UPPER(RIGHT(F22,1))=High,UnitCostHigh,UnitCostSpecified)),MATCH(UPPER(LEFT(F22,LEN(F22)-1)),CostCode,0)))","v":0},{"$f":"G22*E22","v":0},null,{"$f":"H22*I22","v":0},{"$f":"H22*(1-I22)","v":0},null,"Remove/decontam. mobile equipment",null,"each",null,{"$f":"NA()","v":{"$error":"#N/A"}},{"$f":"IF(ISNA(Q22),0,INDEX(IF(UPPER(RIGHT(Q22,1))=Low,UnitCostLow, IF(UPPER(RIGHT(Q22,1))=High,UnitCostHigh,UnitCostSpecified)),MATCH(UPPER(LEFT(Q22,LEN(Q22)-1)),CostCode,0)))","v":0},{"$f":"R22*P22","v":0},null,{"$f":"S22*T22","v":0},{"$f":"S22*(1-T22)","v":0},null,"Remove/decontam. mobile equipment",null,"each",null,{"$f":"NA()","v":{"$error":"#N/A"}},{"$f":"IF(ISNA(AB22),0,INDEX(IF(UPPER(RIGHT(AB22,1))=Low,UnitCostLow, IF(UPPER(RIGHT(AB22,1))=High,UnitCostHigh,UnitCostSpecified)),MATCH(UPPER(LEFT(AB22,LEN(AB22)-1)),CostCode,0)))","v":0},{"$f":"AC22*AA22","v":0},null,{"$f":"AD22*AE22","v":0},{"$f":"AD22*(1-AE22)","v":0},null,"Remove/decontam. mobile equipment",null,"each",null,{"$f":"NA()","v":{"$error":"#N/A"}},{"$f":"IF(ISNA(AM22),0,INDEX(IF(UPPER(RIGHT(AM22,1))=Low,UnitCostLow, IF(UPPER(RIGHT(AM22,1))=High,UnitCostHigh,UnitCostSpecified)),MATCH(UPPER(LEFT(AM22,LEN(AM22)-1)),CostCode,0)))","v":0},{"$f":"AN22*AL22","v":0},null,{"$f":"AO22*AP22","v":0},{"$f":"AO22*(1-AP22)","v":0}]
[null,"Remove misc. haz. mat & explosives","Dispose of up to 1 week's inventory of explosives","kg",100,"Sabina",50,{"$f":"G23*E23","v":5000},null,{"$f":"H23*I23","v":0},{"$f":"H23*(1-I23)","v":5000},null,"Remove misc. haz. mat & explosives","Mining will cease before closure","kg",null,{"$f":"NA()","v":{"$error":"#N/A"}},{"$f":"IF(ISNA(Q23),0,INDEX(IF(UPPER(RIGHT(Q23,1))=Low,UnitCostLow, IF(UPPER(RIGHT(Q23,1))=High,UnitCostHigh,UnitCostSpecified)),MATCH(UPPER(LEFT(Q23,LEN(Q23)-1)),CostCode,0)))","v":0},{"$f":"R23*P23","v":0},null,{"$f":"S23*T23","v":0},{"$f":"S23*(1-T23)","v":0},null,"Remove misc. haz. mat & explosives","Mining will cease before closure","kg",null,{"$f":"NA()","v":{"$error":"#N/A"}},{"$f":"IF(ISNA(AB23),0,INDEX(IF(UPPER(RIGHT(AB23,1))=Low,UnitCostLow, IF(UPPER(RIGHT(AB23,1))=High,UnitCostHigh,UnitCostSpecified)),MATCH(UPPER(LEFT(AB23,LEN(AB23)-1)),CostCode,0)))","v":0},{"$f":"AC23*AA23","v":0},null,{"$f":"AD23*AE23","v":0},{"$f":"AD23*(1-AE23)","v":0},null,"Remove misc. haz. mat & explosives","Mining will cease before closure","kg",null,{"$f":"NA()","v":{"$error":"#N/A"}},{"$f":"IF(ISNA(AM23),0,INDEX(IF(UPPER(RIGHT(AM23,1))=Low,UnitCostLow, IF(UPPER(RIGHT(AM23,1))=High,UnitCostHigh,UnitCostSpecified)),MATCH(UPPER(LEFT(AM23,LEN(AM23)-1)),CostCode,0)))","v":0},{"$f":"AN23*AL23","v":0},null,{"$f":"AO23*AP23","v":0},{"$f":"AO23*(1-AP23)","v":0}]
[null,"Decommission Pipeline ","Clean Umwelt UG to SWP pipeline, decommission and landfill","m",{"$f":"'SBB Comp. Est.'!F27","v":1200},"Sabina",{"$f":"'SBB Comp. Est.'!W27","v":10},{"$f":"G24*E24","v":12000},null,{"$f":"H24*I24","v":0},{"$f":"H24*(1-I24)","v":12000},null,"Decommission Pipeline ","Clean Llama UG to SWP pipeline, decommission and landfill","m",{"$f":"'SBB Comp. Est.'!F36","v":2700},"Sabina",{"$f":"'SBB Comp. Est.'!W36","v":10},{"$f":"R24*P24","v":27000},null,{"$f":"S24*T24","v":0},{"$f":"S24*(1-T24)","v":27000},null,"Decommission WTP - Goose Lake Pipeline ","In Water Management tab","m",null,{"$f":"NA()","v":{"$error":"#N/A"}},{"$f":"IF(ISNA(AB24),0,INDEX(IF(UPPER(RIGHT(AB24,1))=Low,UnitCostLow, IF(UPPER(RIGHT(AB24,1))=High,UnitCostHigh,UnitCostSpecified)),MATCH(UPPER(LEFT(AB24,LEN(AB24)-1)),CostCode,0)))","v":0},{"$f":"AC24*AA24","v":0},null,{"$f":"AD24*AE24","v":0},{"$f":"AD24*(1-AE24)","v":0},null,"Decommission Pipeline ",null,"m",null,{"$f":"NA()","v":{"$error":"#N/A"}},{"$f":"IF(ISNA(AM24),0,INDEX(IF(UPPER(RIGHT(AM24,1))=Low,UnitCostLow, IF(UPPER(RIGHT(AM24,1))=High,UnitCostHigh,UnitCostSpecified)),MATCH(UPPER(LEFT(AM24,LEN(AM24)-1)),CostCode,0)))","v":0},{"$f":"AN24*AL24","v":0},null,{"$f":"AO24*AP24","v":0},{"$f":"AO24*(1-AP24)","v":0}]
[null,"INSTALL BULKHEADS",null,null,null,null,null,null,null,null,null,null,"INSTALL BULKHEADS",null,null,null,null,null,null,null,null,null,null,"INSTALL BULKHEADS",null,null,null,null,null,null,null,null,null,null,"INSTALL BULKHEADS"]
[null,"Bulkheads to control water flow",null,"each",null,{"$f":"NA()","v":{"$error":"#N/A"}},{"$f":"IF(ISNA(F26),0,INDEX(IF(UPPER(RIGHT(F26,1))=Low,UnitCostLow, IF(UPPER(RIGHT(F26,1))=High,UnitCostHigh,UnitCostSpecified)),MATCH(UPPER(LEFT(F26,LEN(F26)-1)),CostCode,0)))","v":0},{"$f":"G26*E26","v":0},null,{"$f":"H26*I26","v":0},{"$f":"H26*(1-I26)","v":0},null,"Bulkheads to control water flow",null,"each",null,{"$f":"NA()","v":{"$error":"#N/A"}},{"$f":"IF(ISNA(Q26),0,INDEX(IF(UPPER(RIGHT(Q26,1))=Low,UnitCostLow, IF(UPPER(RIGHT(Q26,1))=High,UnitCostHigh,UnitCostSpecified)),MATCH(UPPER(LEFT(Q26,LEN(Q26)-1)),CostCode,0)))","v":0},{"$f":"R26*P26","v":0},null,{"$f":"S26*T26","v":0},{"$f":"S26*(1-T26)","v":0},null,"Bulkheads to control water flow",null,"each",null,{"$f":"NA()","v":{"$error":"#N/A"}},{"$f":"IF(ISNA(AB26),0,INDEX(IF(UPPER(RIGHT(AB26,1))=Low,UnitCostLow, IF(UPPER(RIGHT(AB26,1))=High,UnitCostHigh,UnitCostSpecified)),MATCH(UPPER(LEFT(AB26,LEN(AB26)-1)),CostCode,0)))","v":0},{"$f":"AC26*AA26","v":0},null,{"$f":"AD26*AE26","v":0},{"$f":"AD26*(1-AE26)","v":0},null,"Bulkheads to control water flow",null,"each",null,{"$f":"NA()","v":{"$error":"#N/A"}},{"$f":"IF(ISNA(AM26),0,INDEX(IF(UPPER(RIGHT(AM26,1))=Low,UnitCostLow, IF(UPPER(RIGHT(AM26,1))=High,UnitCostHigh,UnitCostSpecified)),MATCH(UPPER(LEFT(AM26,LEN(AM26)-1)),CostCode,0)))","v":0},{"$f":"AN26*AL26","v":0},null,{"$f":"AO26*AP26","v":0},{"$f":"AO26*(1-AP26)","v":0}]
[null,"Grout bulkhead",null,"m3",null,{"$f":"NA()","v":{"$error":"#N/A"}},{"$f":"IF(ISNA(F27),0,INDEX(IF(UPPER(RIGHT(F27,1))=Low,UnitCostLow, IF(UPPER(RIGHT(F27,1))=High,UnitCostHigh,UnitCostSpecified)),MATCH(UPPER(LEFT(F27,LEN(F27)-1)),CostCode,0)))","v":0},{"$f":"G27*E27","v":0},null,{"$f":"H27*I27","v":0},{"$f":"H27*(1-I27)","v":0},null,"Grout bulkhead",null,"m3",null,{"$f":"NA()","v":{"$error":"#N/A"}},{"$f":"IF(ISNA(Q27),0,INDEX(IF(UPPER(RIGHT(Q27,1))=Low,UnitCostLow, IF(UPPER(RIGHT(Q27,1))=High,UnitCostHigh,UnitCostSpecified)),MATCH(UPPER(LEFT(Q27,LEN(Q27)-1)),CostCode,0)))","v":0},{"$f":"R27*P27","v":0},null,{"$f":"S27*T27","v":0},{"$f":"S27*(1-T27)","v":0},null,"Grout bulkhead",null,"m3",null,{"$f":"NA()","v":{"$error":"#N/A"}},{"$f":"IF(ISNA(AB27),0,INDEX(IF(UPPER(RIGHT(AB27,1))=Low,UnitCostLow, IF(UPPER(RIGHT(AB27,1))=High,UnitCostHigh,UnitCostSpecified)),MATCH(UPPER(LEFT(AB27,LEN(AB27)-1)),CostCode,0)))","v":0},{"$f":"AC27*AA27","v":0},null,{"$f":"AD27*AE27","v":0},{"$f":"AD27*(1-AE27)","v":0},null,"Grout bulkhead",null,"m3",null,{"$f":"NA()","v":{"$error":"#N/A"}},{"$f":"IF(ISNA(AM27),0,INDEX(IF(UPPER(RIGHT(AM27,1))=Low,UnitCostLow, IF(UPPER(RIGHT(AM27,1))=High,UnitCostHigh,UnitCostSpecified)),MATCH(UPPER(LEFT(AM27,LEN(AM27)-1)),CostCode,0)))","v":0},{"$f":"AN27*AL27","v":0},null,{"$f":"AO27*AP27","v":0},{"$f":"AO27*(1-AP27)","v":0}]
[null,"FLOOD MINE",null,null,null,null,null,null,null,null,null,null,"FLOOD MINE",null,null,null,null,null,null,null,null,null,null,"FLOOD MINE",null,null,null,null,null,null,null,null,null,null,"FLOOD MINE"]
[null,"Supply/install pump","UG mine is expected to be flooded in Year 10 and active flooding will take about a year, relocation of pipelines and flooding will occur as part of operations but cost is provided as a conservative approach","each",null,{"$f":"NA()","v":{"$error":"#N/A"}},{"$f":"IF(ISNA(F29),0,INDEX(IF(UPPER(RIGHT(F29,1))=Low,UnitCostLow, IF(UPPER(RIGHT(F29,1))=High,UnitCostHigh,UnitCostSpecified)),MATCH(UPPER(LEFT(F29,LEN(F29)-1)),CostCode,0)))","v":0},{"$f":"G29*E29","v":0},null,0,{"$f":"H29*(1-I29)","v":0},null,"Supply/install pump","UG mine is expected to be flooded in Year 5 and active flooding will take about a year, relocation of pipelines and flooding will occur as part of operations","each",null,{"$f":"NA()","v":{"$error":"#N/A"}},{"$f":"IF(ISNA(Q29),0,INDEX(IF(UPPER(RIGHT(Q29,1))=Low,UnitCostLow, IF(UPPER(RIGHT(Q29,1))=High,UnitCostHigh,UnitCostSpecified)),MATCH(UPPER(LEFT(Q29,LEN(Q29)-1)),CostCode,0)))","v":0},{"$f":"R29*P29","v":0},null,{"$f":"S29*T29","v":0},{"$f":"S29*(1-T29)","v":0},null,"Supply/install pump","UG mine is expected to be flooded in Year 10 and active flooding will take about a year, relocation of pipelines and flooding will occur as progressive reclamation but cost is provided as a conservative approach","each",null,{"$f":"NA()","v":{"$error":"#N/A"}},{"$f":"IF(ISNA(AB29),0,INDEX(IF(UPPER(RIGHT(AB29,1))=Low,UnitCostLow, IF(UPPER(RIGHT(AB29,1))=High,UnitCostHigh,UnitCostSpecified)),MATCH(UPPER(LEFT(AB29,LEN(AB29)-1)),CostCode,0)))","v":0},{"$f":"AC29*AA29","v":0},null,{"$f":"AD29*AE29","v":0},{"$f":"AD29*(1-AE29)","v":0},null,"Supply/install pump","Passive flooding of Echo UG in Year 10, complete flooding is expected to occur within a few months.","each",null,{"$f":"NA()","v":{"$error":"#N/A"}},{"$f":"IF(ISNA(AM29),0,INDEX(IF(UPPER(RIGHT(AM29,1))=Low,UnitCostLow, IF(UPPER(RIGHT(AM29,1))=High,UnitCostHigh,UnitCostSpecified)),MATCH(UPPER(LEFT(AM29,LEN(AM29)-1)),CostCode,0)))","v":0},{"$f":"AN29*AL29","v":0},null,{"$f":"AO29*AP29","v":0},{"$f":"AO29*(1-AP29)","v":0}]
[null,"Relocate Pipeline","Move SWP-Llama UG pipeline discharge to Umwelt UG","m",{"$f":"'SBB Comp. Est.'!F25","v":800},"Sabina",{"$f":"'SBB Comp. Est.'!W25","v":10},{"$f":"G30*E30","v":8000},null,{"$f":"H30*I30","v":0},{"$f":"H30*(1-I30)","v":8000},null,"Supply/install piping system",null,"m",null,{"$f":"NA()","v":{"$error":"#N/A"}},{"$f":"IF(ISNA(Q30),0,INDEX(IF(UPPER(RIGHT(Q30,1))=Low,UnitCostLow, IF(UPPER(RIGHT(Q30,1))=High,UnitCostHigh,UnitCostSpecified)),MATCH(UPPER(LEFT(Q30,LEN(Q30)-1)),CostCode,0)))","v":0},{"$f":"R30*P30","v":0},null,{"$f":"S30*T30","v":0},{"$f":"S30*(1-T30)","v":0},null,"Supply/install piping system","Adjust pipe line to route to Goose UG in Year 10","m ",{"$f":"'SBB Comp. Est.'!F30","v":4500},"Sabina ",{"$f":"'SBB Comp. Est.'!W30","v":12.777777777777779},57500,null,0,57500,null,"Supply/install piping system",null,"each",null,{"$f":"NA()","v":{"$error":"#N/A"}},0,{"$f":"AN30*AL30","v":0},null,{"$f":"AO30*AP30","v":0},{"$f":"AO30*(1-AP30)","v":0}]
[null,"Operate pumps to flood workings",null,"m3",{"$f":"'SBB Comp. Est.'!F26","v":763134},"Sabina",{"$f":"'SBB Comp. Est.'!W26","v":0.12904645842014639},{"$f":"G31*E31","v":98479.739999999991},null,0,{"$f":"H31*(1-I31)","v":98479.739999999991},null,"Operate pumps to flood workings",null,"m3",null,{"$f":"NA()","v":{"$error":"#N/A"}},{"$f":"IF(ISNA(Q31),0,INDEX(IF(UPPER(RIGHT(Q31,1))=Low,UnitCostLow, IF(UPPER(RIGHT(Q31,1))=High,UnitCostHigh,UnitCostSpecified)),MATCH(UPPER(LEFT(Q31,LEN(Q31)-1)),CostCode,0)))","v":0},{"$f":"R31*P31","v":0},null,0,0,null,"Operate pumps to flood workings",null,"m3",{"$f":"'SBB Comp. Est.'!F31","v":391630},"Sabina",{"$f":"'SBB Comp. Est.'!W29","v":0.13343986133471505},52259.052894514454,null,0,52259.052894514454,null,"Operate pumps to flood workings",null,"m3",null,{"$f":"NA()","v":{"$error":"#N/A"}},0,0,null,0,0]
[null,"Decommission of pipeline",null,null,null,{"$f":"NA()","v":{"$error":"#N/A"}},{"$f":"IF(ISNA(F32),0,INDEX(IF(UPPER(RIGHT(F32,1))=Low,UnitCostLow, IF(UPPER(RIGHT(F32,1))=High,UnitCostHigh,UnitCostSpecified)),MATCH(UPPER(LEFT(F32,LEN(F32)-1)),CostCode,0)))","v":0},{"$f":"G32*E32","v":0},null,0,{"$f":"H32*(1-I32)","v":0},null,"Decommission of pipelines",null,null,null,{"$f":"NA()","v":{"$error":"#N/A"}},{"$f":"IF(ISNA(Q32),0,INDEX(IF(UPPER(RIGHT(Q32,1))=Low,UnitCostLow, IF(UPPER(RIGHT(Q32,1))=High,UnitCostHigh,UnitCostSpecified)),MATCH(UPPER(LEFT(Q32,LEN(Q32)-1)),CostCode,0)))","v":0},{"$f":"R32*P32","v":0},null,{"$f":"S32*T32","v":0},{"$f":"S32*(1-T32)","v":0},null,"Decommission SWP to Goose UG pipeline",null,"m",{"$f":"'SBB Comp. Est.'!F32","v":10800},"Sabina",{"$f":"'SBB Comp. Est.'!W32","v":10},108000,null,0,108000,null,"Decommission",null,null,null,{"$f":"NA()","v":{"$error":"#N/A"}},0,0,null,0,0]
[null,"Other",null,null,null,{"$f":"NA()","v":{"$error":"#N/A"}},{"$f":"IF(ISNA(F33),0,INDEX(IF(UPPER(RIGHT(F33,1))=Low,UnitCostLow, IF(UPPER(RIGHT(F33,1))=High,UnitCostHigh,UnitCostSpecified)),MATCH(UPPER(LEFT(F33,LEN(F33)-1)),CostCode,0)))","v":0},{"$f":"G33*E33","v":0},null,0,{"$f":"H33*(1-I33)","v":0},null,"Other",null,null,null,{"$f":"NA()","v":{"$error":"#N/A"}},{"$f":"IF(ISNA(Q33),0,INDEX(IF(UPPER(RIGHT(Q33,1))=Low,UnitCostLow, IF(UPPER(RIGHT(Q33,1))=High,UnitCostHigh,UnitCostSpecified)),MATCH(UPPER(LEFT(Q33,LEN(Q33)-1)),CostCode,0)))","v":0},{"$f":"R33*P33","v":0},null,0,0,null,"Other",null,null,null,{"$f":"NA()","v":{"$error":"#N/A"}},{"$f":"IF(ISNA(AB33),0,INDEX(IF(UPPER(RIGHT(AB33,1))=Low,UnitCostLow, IF(UPPER(RIGHT(AB33,1))=High,UnitCostHigh,UnitCostSpecified)),MATCH(UPPER(LEFT(AB33,LEN(AB33)-1)),CostCode,0)))","v":0},0,null,0,0,null,"Other",null,null,null,{"$f":"NA()","v":{"$error":"#N/A"}},0,{"$f":"AN33*AL33","v":0},null,0,0]
[null,"INSTALL GROUNDWATER COLLECTION SYSTEM",null,null,null,null,null,null,null,null,null,null,"INSTALL GROUNDWATER COLLECTION SYSTEM",null,null,null,null,null,null,null,null,null,null,"INSTALL GROUNDWATER COLLECTION SYSTEM",null,null,null,null,null,null,null,null,null,null,"INSTALL GROUNDWATER COLLECTION SYSTEM"]
[null,"Excavate/install sumps",null,"m2",null,{"$f":"NA()","v":{"$error":"#N/A"}},{"$f":"IF(ISNA(F35),0,INDEX(IF(UPPER(RIGHT(F35,1))=Low,UnitCostLow, IF(UPPER(RIGHT(F35,1))=High,UnitCostHigh,UnitCostSpecified)),MATCH(UPPER(LEFT(F35,LEN(F35)-1)),CostCode,0)))","v":0},{"$f":"G35*E35","v":0},null,{"$f":"H35*I35","v":0},{"$f":"+H35*(1-I35)","v":0},null,"Excavate/install sumps",null,"m2",null,{"$f":"NA()","v":{"$error":"#N/A"}},{"$f":"IF(ISNA(Q35),0,INDEX(IF(UPPER(RIGHT(Q35,1))=Low,UnitCostLow, IF(UPPER(RIGHT(Q35,1))=High,UnitCostHigh,UnitCostSpecified)),MATCH(UPPER(LEFT(Q35,LEN(Q35)-1)),CostCode,0)))","v":0},{"$f":"R35*P35","v":0},null,{"$f":"S35*T35","v":0},{"$f":"+S35*(1-T35)","v":0},null,"Excavate/install sumps",null,"m2",null,{"$f":"NA()","v":{"$error":"#N/A"}},{"$f":"IF(ISNA(AB35),0,INDEX(IF(UPPER(RIGHT(AB35,1))=Low,UnitCostLow, IF(UPPER(RIGHT(AB35,1))=High,UnitCostHigh,UnitCostSpecified)),MATCH(UPPER(LEFT(AB35,LEN(AB35)-1)),CostCode,0)))","v":0},{"$f":"AC35*AA35","v":0},null,{"$f":"AD35*AE35","v":0},{"$f":"+AD35*(1-AE35)","v":0},null,"Excavate/install sumps",null,"m2",null,{"$f":"NA()","v":{"$error":"#N/A"}},{"$f":"IF(ISNA(AM35),0,INDEX(IF(UPPER(RIGHT(AM35,1))=Low,UnitCostLow, IF(UPPER(RIGHT(AM35,1))=High,UnitCostHigh,UnitCostSpecified)),MATCH(UPPER(LEFT(AM35,LEN(AM35)-1)),CostCode,0)))","v":0},{"$f":"AN35*AL35","v":0},null,{"$f":"AO35*AP35","v":0},{"$f":"+AO35*(1-AP35)","v":0}]
[null,"Install pumping wells",null,"m3",null,{"$f":"NA()","v":{"$error":"#N/A"}},0,0,null,0,{"$f":"+H36*(1-I36)","v":0},null,"Install pumping wells",null,"m3",null,{"$f":"NA()","v":{"$error":"#N/A"}},0,0,null,0,0,null,"Install pumping wells",null,"m3",null,{"$f":"NA()","v":{"$error":"#N/A"}},0,0,null,0,0,null,"Install pumping wells",null,"m3",null,{"$f":"NA()","v":{"$error":"#N/A"}},0,0,null,0,0]
[null,"Install pumps/pipelines/power supply",null,"LS",null,{"$f":"NA()","v":{"$error":"#N/A"}},0,0,null,0,{"$f":"+H37*(1-I37)","v":0},null,"Install pumps/pipelines/power supply",null,"LS",null,{"$f":"NA()","v":{"$error":"#N/A"}},0,0,null,0,0,null,"Install pumps/pipelines/power supply",null,"LS",null,{"$f":"NA()","v":{"$error":"#N/A"}},0,0,null,0,0,null,"Install pumps/pipelines/power supply",null,"LS",null,{"$f":"NA()","v":{"$error":"#N/A"}},0,0,null,0,0]
[null,"SPECIALIZED ITEMS",null,null,null,null,null,null,null,null,null,null,"SPECIALIZED ITEMS",null,null,null,null,null,null,null,null,null,null,"SPECIALIZED ITEMS",null,null,null,null,null,null,null,null,null,null,"SPECIALIZED ITEMS"]
[null,"Install water quality monitoring pipes",null,"each",null,{"$f":"NA()","v":{"$error":"#N/A"}},{"$f":"IF(ISNA(F39),0,INDEX(IF(UPPER(RIGHT(F39,1))=Low,UnitCostLow, IF(UPPER(RIGHT(F39,1))=High,UnitCostHigh,UnitCostSpecified)),MATCH(UPPER(LEFT(F39,LEN(F39)-1)),CostCode,0)))","v":0},{"$f":"G39*E39","v":0},null,{"$f":"H39*I39","v":0},{"$f":"H39*(1-I39)","v":0},null,"Install water quality monitoring pipes",null,"each",null,{"$f":"NA()","v":{"$error":"#N/A"}},{"$f":"IF(ISNA(Q39),0,INDEX(IF(UPPER(RIGHT(Q39,1))=Low,UnitCostLow, IF(UPPER(RIGHT(Q39,1))=High,UnitCostHigh,UnitCostSpecified)),MATCH(UPPER(LEFT(Q39,LEN(Q39)-1)),CostCode,0)))","v":0},{"$f":"R39*P39","v":0},null,{"$f":"S39*T39","v":0},{"$f":"S39*(1-T39)","v":0},null,"Install water quality monitoring pipes",null,"each",null,{"$f":"NA()","v":{"$error":"#N/A"}},{"$f":"IF(ISNA(AB39),0,INDEX(IF(UPPER(RIGHT(AB39,1))=Low,UnitCostLow, IF(UPPER(RIGHT(AB39,1))=High,UnitCostHigh,UnitCostSpecified)),MATCH(UPPER(LEFT(AB39,LEN(AB39)-1)),CostCode,0)))","v":0},{"$f":"AC39*AA39","v":0},null,{"$f":"AD39*AE39","v":0},{"$f":"AD39*(1-AE39)","v":0},null,"Install water quality monitoring pipes",null,"each",null,{"$f":"NA()","v":{"$error":"#N/A"}},{"$f":"IF(ISNA(AM39),0,INDEX(IF(UPPER(RIGHT(AM39,1))=Low,UnitCostLow, IF(UPPER(RIGHT(AM39,1))=High,UnitCostHigh,UnitCostSpecified)),MATCH(UPPER(LEFT(AM39,LEN(AM39)-1)),CostCode,0)))","v":0},{"$f":"AN39*AL39","v":0},null,{"$f":"AO39*AP39","v":0},{"$f":"AO39*(1-AP39)","v":0}]
[null,"Install permanent pumping system",null,"each",null,{"$f":"NA()","v":{"$error":"#N/A"}},0,{"$f":"G40*E40","v":0},null,{"$f":"H40*I40","v":0},{"$f":"H40*(1-I40)","v":0},null,"Install permanent pumping system",null,"each",null,{"$f":"NA()","v":{"$error":"#N/A"}},0,{"$f":"R40*P40","v":0},null,{"$f":"S40*T40","v":0},0,null,"Install permanent pumping system",null,"each",null,{"$f":"NA()","v":{"$error":"#N/A"}},0,{"$f":"AC40*AA40","v":0},null,{"$f":"AD40*AE40","v":0},0,null,"Install permanent pumping system",null,"each",null,{"$f":"NA()","v":{"$error":"#N/A"}},0,{"$f":"AN40*AL40","v":0},null,{"$f":"AO40*AP40","v":0},0]
[null,"Assess underground stability","Rock mechanics inspection before closure","each",1,"Sabina",10000,{"$f":"G41*E41","v":10000},null,{"$f":"H41*I41","v":0},{"$f":"H41*(1-I41)","v":10000},null,"Assess underground stability","Rock mechanics inspection before closure","each",1,"Sabina",10000,{"$f":"R41*P41","v":10000},null,{"$f":"S41*T41","v":0},10000,null,"Other",null,null,null,{"$f":"NA()","v":{"$error":"#N/A"}},{"$f":"IF(ISNA(AB41),0,INDEX(IF(UPPER(RIGHT(AB41,1))=Low,UnitCostLow, IF(UPPER(RIGHT(AB41,1))=High,UnitCostHigh,UnitCostSpecified)),MATCH(UPPER(LEFT(AB41,LEN(AB41)-1)),CostCode,0)))","v":0},{"$f":"AC41*AA41","v":0},null,{"$f":"AD41*AE41","v":0},0,null,"Assess underground stability","Rock mechanics inspection before closure","each",1,"Sabina",10000,{"$f":"AN41*AL41","v":10000},null,{"$f":"AO41*AP41","v":0},10000]
[null,null,null,null,null,null,"Total",{"$f":"SUM(H5:H41)+0.0001","v":320806.54009999998},null,{"$f":"SUM(J5:J41)","v":0},{"$f":"SUM(K5:K41)","v":320806.53999999998},null,null,null,null,null,null,"Total",{"$f":"SUM(S5:S41)+0.0001","v":103655.60010000001},null,{"$f":"SUM(U5:U41)","v":0},{"$f":"SUM(V5:V41)","v":103655.6},null,null,null,null,null,null,"Total",{"$f":"SUM(AD5:AD41)+0.0001","v":284414.6529945145},null,{"$f":"SUM(AF5:AF41)","v":0},{"$f":"SUM(AG5:AG41)","v":284414.6528945145},null,null,null,null,null,null,"Total",{"$f":"SUM(AO5:AO41)+0.0001","v":96205.600100000011},null,{"$f":"SUM(AQ5:AQ41)","v":0},{"$f":"SUM(AR5:AR41)","v":96205.6}]
[null,null,null,null,null,null,"% of Total",null,null,{"$f":"J42/H42","v":0},{"$f":"K42/H42","v":0.99999999968828568},null,null,null,null,null,null,"% of Total",null,null,{"$f":"U42/S42","v":0},{"$f":"V42/S42","v":0.99999999903526671},null,null,null,null,null,null,"% of Total",null,null,{"$f":"AF42/AD42","v":0},{"$f":"AG42/AD42","v":0.99999999964840069},null,null,null,null,null,null,"% of Total",null,null,{"$f":"AQ42/AO42","v":0},{"$f":"AR42/AO42","v":0.99999999896055947}]

{"sheet":"Tailings","index":4,"n_rows":82,"n_cols":11,"rows_kept":82,"cut":false,"hidden":false,"merged":[]}
[1,"Tailings Impoundment Name:","TSF",null,null,null,"Pond #",1]
[]
[null,"ACTIVITY/MATERIAL","Notes","Units","Quantity","Cost Code","Unit Cost","Cost","% Land","Land Cost","Total Cost"]
[null,"CONTROL ACCESS"]
[null,"Fence",null,"m",null,{"$f":"NA()","v":{"$error":"#N/A"}},{"$f":"IF(ISNA(F5),0,INDEX(IF(UPPER(RIGHT(F5,1))=Low,UnitCostLow, IF(UPPER(RIGHT(F5,1))=High,UnitCostHigh,UnitCostSpecified)),MATCH(UPPER(LEFT(F5,LEN(F5)-1)),CostCode,0)))","v":0},{"$f":"G5*E5","v":0},null,{"$f":"H5*I5","v":0},{"$f":"+H5*(1-I5)","v":0}]
[null,"Signs",null,"each",null,{"$f":"NA()","v":{"$error":"#N/A"}},0,0,null,{"$f":"H6*I6","v":0},{"$f":"+H6*(1-I6)","v":0}]
[null,"Berm",null,"m3",null,{"$f":"NA()","v":{"$error":"#N/A"}},0,0,null,0,0]
[null,"Block roads",null,"m3",null,{"$f":"NA()","v":{"$error":"#N/A"}},0,0,null,0,0]
[null,"Other",null,null,null,{"$f":"NA()","v":{"$error":"#N/A"}},0,0,null,0,0]
[null,"STABILIZE EMBANKMENT(S)"]
[null,"Toe buttress, drainage layer",null,"m3",null,{"$f":"NA()","v":{"$error":"#N/A"}},0,{"$f":"G11*E11","v":0},null,0,0]
[null,"Toe buttress, bulk fill",null,"m3",null,{"$f":"NA()","v":{"$error":"#N/A"}},0,0,null,0,0]
[null,"Rip rap",null,"m3",null,{"$f":"NA()","v":{"$error":"#N/A"}},0,0,null,0,0]
[null,"Vegetate",null,"ha",null,{"$f":"NA()","v":{"$error":"#N/A"}},0,0,null,0,0]
[null,"Raise crest",null,"m3",null,{"$f":"NA()","v":{"$error":"#N/A"}},0,0,null,0,0]
[null,"Flatten slopes",null,"m3",null,{"$f":"NA()","v":{"$error":"#N/A"}},0,0,null,0,0]
[null,"Other",null,null,null,{"$f":"NA()","v":{"$error":"#N/A"}},0,0,null,0,0]
[null,"COVER TAILINGS"]
[null,"Grade/shape tailings surface",null,"m3",null,{"$f":"NA()","v":{"$error":"#N/A"}},{"$f":"IF(ISNA(F19),0,INDEX(IF(UPPER(RIGHT(F19,1))=Low,UnitCostLow, IF(UPPER(RIGHT(F19,1))=High,UnitCostHigh,UnitCostSpecified)),MATCH(UPPER(LEFT(F19,LEN(F19)-1)),CostCode,0)))","v":0},{"$f":"G19*E19","v":0},null,{"$f":"H19*I19","v":0},{"$f":"+H19*(1-I19)","v":0}]
[null,"Liner bedding",null,"m3",null,{"$f":"NA()","v":{"$error":"#N/A"}},{"$f":"IF(ISNA(F20),0,INDEX(IF(UPPER(RIGHT(F20,1))=Low,UnitCostLow, IF(UPPER(RIGHT(F20,1))=High,UnitCostHigh,UnitCostSpecified)),MATCH(UPPER(LEFT(F20,LEN(F20)-1)),CostCode,0)))","v":0},{"$f":"G20*E20","v":0},null,{"$f":"H20*I20","v":0},{"$f":"+H20*(1-I20)","v":0}]
[null,"Subgrade preparation - compact",null,"m2",null,{"$f":"NA()","v":{"$error":"#N/A"}},{"$f":"IF(ISNA(F21),0,INDEX(IF(UPPER(RIGHT(F21,1))=Low,UnitCostLow, IF(UPPER(RIGHT(F21,1))=High,UnitCostHigh,UnitCostSpecified)),MATCH(UPPER(LEFT(F21,LEN(F21)-1)),CostCode,0)))","v":0},{"$f":"G21*E21","v":0},null,{"$f":"H21*I21","v":0},{"$f":"+H21*(1-I21)","v":0}]
[null,"Supply geotextile/geosynthetic",null,"m2",null,{"$f":"NA()","v":{"$error":"#N/A"}},{"$f":"IF(ISNA(F22),0,INDEX(IF(UPPER(RIGHT(F22,1))=Low,UnitCostLow, IF(UPPER(RIGHT(F22,1))=High,UnitCostHigh,UnitCostSpecified)),MATCH(UPPER(LEFT(F22,LEN(F22)-1)),CostCode,0)))","v":0},0,null,0,0]
[null,"Install geotextile/geosynthetic",null,"m2",null,{"$f":"NA()","v":{"$error":"#N/A"}},{"$f":"IF(ISNA(F23),0,INDEX(IF(UPPER(RIGHT(F23,1))=Low,UnitCostLow, IF(UPPER(RIGHT(F23,1))=High,UnitCostHigh,UnitCostSpecified)),MATCH(UPPER(LEFT(F23,LEN(F23)-1)),CostCode,0)))","v":0},{"$f":"G23*E23","v":0},null,{"$f":"H23*I23","v":0},{"$f":"+H23*(1-I23)","v":0}]
[null,"Soil cover",null,"m3",null,{"$f":"NA()","v":{"$error":"#N/A"}},{"$f":"IF(ISNA(F24),0,INDEX(IF(UPPER(RIGHT(F24,1))=Low,UnitCostLow, IF(UPPER(RIGHT(F24,1))=High,UnitCostHigh,UnitCostSpecified)),MATCH(UPPER(LEFT(F24,LEN(F24)-1)),CostCode,0)))","v":0},0,null,0,0]
[null,"Rock cover","Included in the quantity for waste rock pile cover  (5m of NPAG). See Rock Pile tab.","m3",null,{"$f":"NA()","v":{"$error":"#N/A"}},{"$f":"IF(ISNA(F25),0,INDEX(IF(UPPER(RIGHT(F25,1))=Low,UnitCostLow, IF(UPPER(RIGHT(F25,1))=High,UnitCostHigh,UnitCostSpecified)),MATCH(UPPER(LEFT(F25,LEN(F25)-1)),CostCode,0)))","v":0},{"$f":"G25*E25","v":0},null,{"$f":"H25*I25","v":0},{"$f":"+H25*(1-I25)","v":0}]
[null,"TSF WRSA Pond Sediment Removal","assumed 0.5 m of sediments in pond basin (26 ha) to be removed and placed in TSF WRSA","m3",13000,"SBTH",3.7,{"$f":"G26*E26","v":48100},null,{"$f":"H26*I26","v":0},{"$f":"+H26*(1-I26)","v":48100}]
[null,"Vegetate","TSF WRSA Pond","m2",20,"VHFL",4000,80000,null,0,80000]
[null,"Other",null,null,null,{"$f":"NA()","v":{"$error":"#N/A"}},0,{"$f":"G28*E28","v":0},null,{"$f":"H28*I28","v":0},{"$f":"+H28*(1-I28)","v":0}]
[null,"BURY PAG ROCK"]
[null,"Relocate PAG rock",null,"m3",null,{"$f":"NA()","v":{"$error":"#N/A"}},0,{"$f":"G30*E30","v":0},null,0,0]
[null,"Place cover over PAG rock",null,"m3",null,{"$f":"NA()","v":{"$error":"#N/A"}},0,{"$f":"G31*E31","v":0},null,0,0]
[null,"Raise crest of dam",null,"m3",null,{"$f":"NA()","v":{"$error":"#N/A"}},0,{"$f":"G32*E32","v":0},null,0,0]
[null,"Other",null,null,null,{"$f":"NA()","v":{"$error":"#N/A"}},0,{"$f":"G33*E33","v":0},null,0,0]
[null,"STABILIZE DECANT SYSTEM"]
[null,"Excavate and replace",null,"m3",null,{"$f":"NA()","v":{"$error":"#N/A"}},{"$f":"IF(ISNA(F35),0,INDEX(IF(UPPER(RIGHT(F35,1))=Low,UnitCostLow, IF(UPPER(RIGHT(F35,1))=High,UnitCostHigh,UnitCostSpecified)),MATCH(UPPER(LEFT(F35,LEN(F35)-1)),CostCode,0)))","v":0},{"$f":"G35*E35","v":0},null,{"$f":"H35*I35","v":0},{"$f":"+H35*(1-I35)","v":0}]
[null,"Plug/backfill with concrete or clay",null,"m3",null,{"$f":"NA()","v":{"$error":"#N/A"}},{"$f":"IF(ISNA(F36),0,INDEX(IF(UPPER(RIGHT(F36,1))=Low,UnitCostLow, IF(UPPER(RIGHT(F36,1))=High,UnitCostHigh,UnitCostSpecified)),MATCH(UPPER(LEFT(F36,LEN(F36)-1)),CostCode,0)))","v":0},{"$f":"G36*E36","v":0},null,{"$f":"H36*I36","v":0},{"$f":"+H36*(1-I36)","v":0}]
[null,"Other",null,null,null,{"$f":"NA()","v":{"$error":"#N/A"}},{"$f":"IF(ISNA(F37),0,INDEX(IF(UPPER(RIGHT(F37,1))=Low,UnitCostLow, IF(UPPER(RIGHT(F37,1))=High,UnitCostHigh,UnitCostSpecified)),MATCH(UPPER(LEFT(F37,LEN(F37)-1)),CostCode,0)))","v":0},{"$f":"G37*E37","v":0},null,{"$f":"H37*I37","v":0},{"$f":"+H37*(1-I37)","v":0}]
[null,"REMOVE TAILINGS DISCHARGE"]
[null,"Cyclones",null,"m3",null,{"$f":"NA()","v":{"$error":"#N/A"}},{"$f":"IF(ISNA(F39),0,INDEX(IF(UPPER(RIGHT(F39,1))=Low,UnitCostLow, IF(UPPER(RIGHT(F39,1))=High,UnitCostHigh,UnitCostSpecified)),MATCH(UPPER(LEFT(F39,LEN(F39)-1)),CostCode,0)))","v":0},{"$f":"G39*E39","v":0},null,{"$f":"H39*I39","v":0},{"$f":"+H39*(1-I39)","v":0}]
[null,"Pipe",null,"m3",null,{"$f":"NA()","v":{"$error":"#N/A"}},{"$f":"IF(ISNA(F40),0,INDEX(IF(UPPER(RIGHT(F40,1))=Low,UnitCostLow, IF(UPPER(RIGHT(F40,1))=High,UnitCostHigh,UnitCostSpecified)),MATCH(UPPER(LEFT(F40,LEN(F40)-1)),CostCode,0)))","v":0},{"$f":"G40*E40","v":0},null,{"$f":"H40*I40","v":0},{"$f":"+H40*(1-I40)","v":0}]
[null,"Remove reclaim barge",null,"allow",null,{"$f":"NA()","v":{"$error":"#N/A"}},{"$f":"IF(ISNA(F41),0,INDEX(IF(UPPER(RIGHT(F41,1))=Low,UnitCostLow, IF(UPPER(RIGHT(F41,1))=High,UnitCostHigh,UnitCostSpecified)),MATCH(UPPER(LEFT(F41,LEN(F41)-1)),CostCode,0)))","v":0},{"$f":"G41*E41","v":0},null,{"$f":"H41*I41","v":0},{"$f":"+H41*(1-I41)","v":0}]
[null,"CONSTRUCT DIVERSION DITCHES"]
[null,"Excavate ditches -soil",null,"m3",null,{"$f":"NA()","v":{"$error":"#N/A"}},{"$f":"IF(ISNA(F43),0,INDEX(IF(UPPER(RIGHT(F43,1))=Low,UnitCostLow, IF(UPPER(RIGHT(F43,1))=High,UnitCostHigh,UnitCostSpecified)),MATCH(UPPER(LEFT(F43,LEN(F43)-1)),CostCode,0)))","v":0},{"$f":"G43*E43","v":0},null,{"$f":"H43*I43","v":0},{"$f":"+H43*(1-I43)","v":0}]
[null,"Excavate ditches -rock",null,"m3",null,{"$f":"NA()","v":{"$error":"#N/A"}},{"$f":"IF(ISNA(F44),0,INDEX(IF(UPPER(RIGHT(F44,1))=Low,UnitCostLow, IF(UPPER(RIGHT(F44,1))=High,UnitCostHigh,UnitCostSpecified)),MATCH(UPPER(LEFT(F44,LEN(F44)-1)),CostCode,0)))","v":0},{"$f":"G44*E44","v":0},null,0,0]
[null,"Rip rap in channel base (liner)",null,"m2",null,{"$f":"NA()","v":{"$error":"#N/A"}},{"$f":"IF(ISNA(F45),0,INDEX(IF(UPPER(RIGHT(F45,1))=Low,UnitCostLow, IF(UPPER(RIGHT(F45,1))=High,UnitCostHigh,UnitCostSpecified)),MATCH(UPPER(LEFT(F45,LEN(F45)-1)),CostCode,0)))","v":0},{"$f":"G45*E45","v":0},null,0,0]
[null,"FLOOD TAILINGS"]
[null,"Doze tailings to final contour",null,"m3",null,{"$f":"NA()","v":{"$error":"#N/A"}},0,{"$f":"G47*E47","v":0},null,0,0]
[null,"Raise crest of dam",null,"m3",null,{"$f":"NA()","v":{"$error":"#N/A"}},0,{"$f":"G48*E48","v":0},null,0,0]
[null,"Other",null,null,null,{"$f":"NA()","v":{"$error":"#N/A"}},0,{"$f":"G49*E49","v":0},null,0,0]
[null,"UPGRADE SPILLWAY"]
[null,"Excavate channel on TSF","Breach west end of dam to existing drainage reporting to Goose Main Pit; 100 m channel.","m3",{"$f":"'SBB Comp. Est.'!F82","v":11000},"Sabina ",{"$f":"'SBB Comp. Est.'!W82","v":7.3},{"$f":"G51*E51","v":80300},null,0,80300]
[null,"Excavate channel, soil",null,"m3",null,{"$f":"NA()","v":{"$error":"#N/A"}},0,{"$f":"G52*E52","v":0},null,0,0]
[null,"Concrete",null,"m3",null,{"$f":"NA()","v":{"$error":"#N/A"}},0,{"$f":"G53*E53","v":0},null,0,0]
[null,"Rip rap",null,"m3",7000,"RR1H",{"$f":"IF(ISNA(F54),0,INDEX(IF(UPPER(RIGHT(F54,1))=Low,UnitCostLow, IF(UPPER(RIGHT(F54,1))=High,UnitCostHigh,UnitCostSpecified)),MATCH(UPPER(LEFT(F54,LEN(F54)-1)),CostCode,0)))","v":17.75},{"$f":"G54*E54","v":124250},null,{"$f":"H54*I54","v":0},{"$f":"+H54*(1-I54)","v":124250}]
[null,"Other","Geotextile","m2",2860,"GSTL",3.44,{"$f":"G55*E55","v":9838.4},null,0,9838.4]
[null,"CONSTRUCT SEEPAGE COLLECTION POND"]
[null,"Excavate seepage collection pond",null,"m3",null,{"$f":"NA()","v":{"$error":"#N/A"}},{"$f":"IF(ISNA(F57),0,INDEX(IF(UPPER(RIGHT(F57,1))=Low,UnitCostLow, IF(UPPER(RIGHT(F57,1))=High,UnitCostHigh,UnitCostSpecified)),MATCH(UPPER(LEFT(F57,LEN(F57)-1)),CostCode,0)))","v":0},{"$f":"G57*E57","v":0},null,{"$f":"H57*I57","v":0},{"$f":"+H57*(1-I57)","v":0}]
[null,"Doze & spread excavated material",null,"m3",null,{"$f":"NA()","v":{"$error":"#N/A"}},0,0,null,0,0]
[null,"Vegetate spread material",null,"ha",null,{"$f":"NA()","v":{"$error":"#N/A"}},0,0,null,0,0]
[null,"Bedding layer",null,"m3",null,{"$f":"NA()","v":{"$error":"#N/A"}},0,0,null,0,0]
[null,"Supply geomembrane",null,"m2",null,{"$f":"NA()","v":{"$error":"#N/A"}},0,0,null,0,0]
[null,"Install geomembrane",null,"m2",null,{"$f":"NA()","v":{"$error":"#N/A"}},0,0,null,0,0]
[null,"Erosion protection layer",null,"m3",null,{"$f":"NA()","v":{"$error":"#N/A"}},0,0,null,0,0]
[null,"Breach seepage diversion berm",null,"m3",{"$f":"'SBB Comp. Est.'!F83","v":285},"Sabina",{"$f":"'SBB Comp. Est.'!W83","v":7.3},{"$f":"G64*E64","v":2080.5},null,{"$f":"H64*I64","v":0},{"$f":"+H64*(1-I64)","v":2080.5}]
[null,"INSTALL GROUNDWATER COLLECTION SYSTEM"]
[null,"Excavate/install sumps",null,"m3",null,{"$f":"NA()","v":{"$error":"#N/A"}},{"$f":"IF(ISNA(F66),0,INDEX(IF(UPPER(RIGHT(F66,1))=Low,UnitCostLow, IF(UPPER(RIGHT(F66,1))=High,UnitCostHigh,UnitCostSpecified)),MATCH(UPPER(LEFT(F66,LEN(F66)-1)),CostCode,0)))","v":0},{"$f":"G66*E66","v":0},null,{"$f":"H66*I66","v":0},{"$f":"+H66*(1-I66)","v":0}]
[null,"Install pumping wells",null,"m3",null,{"$f":"NA()","v":{"$error":"#N/A"}},0,0,null,0,0]
[null,"Install pumps/pipelines/power supply",null,"LS",null,{"$f":"NA()","v":{"$error":"#N/A"}},0,0,null,0,0]
[null,"SPECIALIZED ITEMS"]
[null,"Install permanent instrumentation, supply & technican",null,"each",null,{"$f":"NA()","v":{"$error":"#N/A"}},0,{"$f":"G70*E70","v":0},null,{"$f":"H70*I70","v":0},{"$f":"+H70*(1-I70)","v":0}]
[null,"Install permanent instrumentation, drilling",null,"each",null,{"$f":"NA()","v":{"$error":"#N/A"}},{"$f":"IF(ISNA(F71),0,INDEX(IF(UPPER(RIGHT(F71,1))=Low,UnitCostLow, IF(UPPER(RIGHT(F71,1))=High,UnitCostHigh,UnitCostSpecified)),MATCH(UPPER(LEFT(F71,LEN(F71)-1)),CostCode,0)))","v":0},{"$f":"G71*E71","v":0},null,null,{"$f":"+H71*(1-I71)","v":0}]
[null,"TREAT SEEPAGE - see \"Water Management\" and \"Water Treatment\""]
[null,"TREAT SUPERNATANT"]
[null,"Pump water (to pit, U/G)",null,"m3",null,{"$f":"NA()","v":{"$error":"#N/A"}},{"$f":"IF(ISNA(F74),0,INDEX(IF(UPPER(RIGHT(F74,1))=Low,UnitCostLow, IF(UPPER(RIGHT(F74,1))=High,UnitCostHigh,UnitCostSpecified)),MATCH(UPPER(LEFT(F74,LEN(F74)-1)),CostCode,0)))","v":0},{"$f":"G74*E74","v":0},null,{"$f":"H74*I74","v":0},{"$f":"+H74*(1-I74)","v":0}]
[null,"Equipment maintenance and parts",null,"allow",null,{"$f":"NA()","v":{"$error":"#N/A"}},{"$f":"IF(ISNA(F75),0,INDEX(IF(UPPER(RIGHT(F75,1))=Low,UnitCostLow, IF(UPPER(RIGHT(F75,1))=High,UnitCostHigh,UnitCostSpecified)),MATCH(UPPER(LEFT(F75,LEN(F75)-1)),CostCode,0)))","v":0},{"$f":"G75*E75","v":0},null,{"$f":"H75*I75","v":0},{"$f":"+H75*(1-I75)","v":0}]
[null,"Supply reagents",null,"tonne",null,{"$f":"NA()","v":{"$error":"#N/A"}},{"$f":"IF(ISNA(F76),0,INDEX(IF(UPPER(RIGHT(F76,1))=Low,UnitCostLow, IF(UPPER(RIGHT(F76,1))=High,UnitCostHigh,UnitCostSpecified)),MATCH(UPPER(LEFT(F76,LEN(F76)-1)),CostCode,0)))","v":0},{"$f":"G76*E76","v":0},null,{"$f":"H76*I76","v":0},{"$f":"+H76*(1-I76)","v":0}]
[null,null,null,null,null,null,"Annual treatment costs",{"$f":"SUM(H74:H76)+0.0001","v":1E-4}]
[null,"Number of years of treatment",null,"years",0]
[null,null,null,null,null,null,"Total treatment costs",{"$f":"H77*E78","v":0},null,null,{"$f":"H79","v":0}]
[null,null,null,null,null,null,"Total",{"$f":"SUM(H5:H71)+H79+0.0001","v":344568.90010000003},null,{"$f":"SUM(J5:J71)+J79","v":0},{"$f":"SUM(K5:K71)+K79","v":344568.9}]
[null,null,null,null,null,null,"% of Total",null,null,{"$f":"J80/H80","v":0},{"$f":"K80/H80","v":0.99999999970978226}]
[null,"* for construction of passive treatment system refer to \"Water Management\""]

{"sheet":"Rock Pile","index":5,"n_rows":66,"n_cols":11,"rows_kept":66,"cut":false,"hidden":false,"merged":[]}
[1,"Rock Pile Name:","Umwelt, Llama, Echo and TSF"]
[]
[null,"ACTIVITY/MATERIAL","Notes","Units","Quantity","Cost Code","Unit Cost","Cost","% Land","Land Cost","Total Cost"]
[null,"STABILIZE SLOPES"]
[null,"Flatten slopes with dozer",null,"m3",null,{"$f":"NA()","v":{"$error":"#N/A"}},{"$f":"IF(ISNA(F5),0,INDEX(IF(UPPER(RIGHT(F5,1))=Low,UnitCostLow, IF(UPPER(RIGHT(F5,1))=High,UnitCostHigh,UnitCostSpecified)),MATCH(UPPER(LEFT(F5,LEN(F5)-1)),CostCode,0)))","v":0},{"$f":"G5*E5","v":0},null,{"$f":"H5*I5","v":0},{"$f":"+H5*(1-I5)","v":0}]
[null,"Flatten \"bubble dump\" areas",null,"m3",null,{"$f":"NA()","v":{"$error":"#N/A"}},0,0,null,0,0]
[null,"Divert runon, ditch mat'l A",null,"m3",null,{"$f":"NA()","v":{"$error":"#N/A"}},0,0,null,0,0]
[null,"Divert runon, ditch mat'l B",null,"m3",null,{"$f":"NA()","v":{"$error":"#N/A"}},0,0,null,0,0]
[null,"Toe buttress, drain mat'l",null,"m3",null,{"$f":"NA()","v":{"$error":"#N/A"}},0,0,null,0,0]
[null,"Toe buttress, fill mat'l A",null,"m3",null,{"$f":"NA()","v":{"$error":"#N/A"}},0,0,null,0,0]
[null,"Toe buttress, fill mat'l B",null,"m3",null,{"$f":"NA()","v":{"$error":"#N/A"}},0,0,null,0,0]
[null,"Other",null,null,null,{"$f":"NA()","v":{"$error":"#N/A"}},0,0,null,0,0]
[null,"COVER ROCK PILE"]
[null,"Subgrade preparation - doze surface",null,"m3",null,{"$f":"NA()","v":{"$error":"#N/A"}},{"$f":"IF(ISNA(F14),0,INDEX(IF(UPPER(RIGHT(F14,1))=Low,UnitCostLow, IF(UPPER(RIGHT(F14,1))=High,UnitCostHigh,UnitCostSpecified)),MATCH(UPPER(LEFT(F14,LEN(F14)-1)),CostCode,0)))","v":0},{"$f":"G14*E14","v":0},null,{"$f":"H14*I14","v":0},{"$f":"+H14*(1-I14)","v":0}]
[null,"Soil cover - excavate,haul,spread&compact",null,"m3",null,{"$f":"NA()","v":{"$error":"#N/A"}},0,0,null,0,0]
[null,"Rock cover - excavate,haul & spread","Cover 4 rock piles: Umwelt, Llama, Echo and TSF. Note all WRSAs will be covered progressively by direct hauling NPAG during mining and will be completed by Year 6 in Operations. However, Sabina has included an allotment volume sufficient to cover 48 ha of waste rock (5m thick) or 67 ha of tailings (3.5m thick). ","m3",2400000,"RR3L",7,{"$f":"G16*E16","v":16800000},null,{"$f":"H16*I16","v":0},{"$f":"+H16*(1-I16)","v":16800000}]
[null,"Excavate downslope drainage channel & chute",null,"m3",null,{"$f":"NA()","v":{"$error":"#N/A"}},0,0,null,0,0]
[null,"Rip rap drainage channel and chute",null,"m3",null,{"$f":"NA()","v":{"$error":"#N/A"}},0,0,null,0,0]
[null,"Vegetate",null,"ha",null,{"$f":"NA()","v":{"$error":"#N/A"}},0,0,null,0,0]
[null,"Other",null,null,null,{"$f":"NA()","v":{"$error":"#N/A"}},0,0,null,0,0]
[null,"VERY LOW PERMEABILITY COVER (in addition to above)"]
[null,"Liner subgrade preparation - compact",null,"m2",null,{"$f":"NA()","v":{"$error":"#N/A"}},{"$f":"IF(ISNA(F22),0,INDEX(IF(UPPER(RIGHT(F22,1))=Low,UnitCostLow, IF(UPPER(RIGHT(F22,1))=High,UnitCostHigh,UnitCostSpecified)),MATCH(UPPER(LEFT(F22,LEN(F22)-1)),CostCode,0)))","v":0},{"$f":"G22*E22","v":0},null,{"$f":"H22*I22","v":0},{"$f":"+H22*(1-I22)","v":0}]
[null,"Supply geomembrame",null,"m2",null,{"$f":"NA()","v":{"$error":"#N/A"}},{"$f":"IF(ISNA(F23),0,INDEX(IF(UPPER(RIGHT(F23,1))=Low,UnitCostLow, IF(UPPER(RIGHT(F23,1))=High,UnitCostHigh,UnitCostSpecified)),MATCH(UPPER(LEFT(F23,LEN(F23)-1)),CostCode,0)))","v":0},{"$f":"G23*E23","v":0},null,0,0]
[null,"Install geomembrane",null,"m2",null,{"$f":"NA()","v":{"$error":"#N/A"}},{"$f":"IF(ISNA(F24),0,INDEX(IF(UPPER(RIGHT(F24,1))=Low,UnitCostLow, IF(UPPER(RIGHT(F24,1))=High,UnitCostHigh,UnitCostSpecified)),MATCH(UPPER(LEFT(F24,LEN(F24)-1)),CostCode,0)))","v":0},{"$f":"G24*E24","v":0},null,0,0]
[null,"Protective cover - excavate,haul,spread&compact",null,"m3",null,{"$f":"NA()","v":{"$error":"#N/A"}},0,0,null,0,0]
[null,"Vegetate",null,"ha",null,{"$f":"NA()","v":{"$error":"#N/A"}},0,0,null,0,0]
[null,"Install infiltration/seepage instrumentation",null,"allow",null,{"$f":"NA()","v":{"$error":"#N/A"}},0,0,null,0,0]
[null,"CONSTRUCT DIVERSION DITCHES"]
[null,"Excavate ditches -soil",null,"m3",null,{"$f":"NA()","v":{"$error":"#N/A"}},{"$f":"IF(ISNA(F29),0,INDEX(IF(UPPER(RIGHT(F29,1))=Low,UnitCostLow, IF(UPPER(RIGHT(F29,1))=High,UnitCostHigh,UnitCostSpecified)),MATCH(UPPER(LEFT(F29,LEN(F29)-1)),CostCode,0)))","v":0},{"$f":"G29*E29","v":0},null,{"$f":"H29*I29","v":0},{"$f":"+H29*(1-I29)","v":0}]
[null,"Excavate ditches -rock",null,"m3",null,{"$f":"NA()","v":{"$error":"#N/A"}},{"$f":"IF(ISNA(F30),0,INDEX(IF(UPPER(RIGHT(F30,1))=Low,UnitCostLow, IF(UPPER(RIGHT(F30,1))=High,UnitCostHigh,UnitCostSpecified)),MATCH(UPPER(LEFT(F30,LEN(F30)-1)),CostCode,0)))","v":0},0,null,0,0]
[null,"Rip rap in channel base",null,"m3",null,{"$f":"NA()","v":{"$error":"#N/A"}},{"$f":"IF(ISNA(F31),0,INDEX(IF(UPPER(RIGHT(F31,1))=Low,UnitCostLow, IF(UPPER(RIGHT(F31,1))=High,UnitCostHigh,UnitCostSpecified)),MATCH(UPPER(LEFT(F31,LEN(F31)-1)),CostCode,0)))","v":0},0,null,0,0]
[null,"CONSTRUCT SEEPAGE COLLECTION POND"]
[null,"Excavate seepage collection pond","See Water Management tab for berm breaching","m3",null,{"$f":"NA()","v":{"$error":"#N/A"}},0,0,null,{"$f":"H33*I33","v":0},{"$f":"+H33*(1-I33)","v":0}]
[null,"Doze & spread excavated material",null,"m3",null,{"$f":"NA()","v":{"$error":"#N/A"}},0,0,null,0,0]
[null,"Vegetate spread material",null,"ha",null,{"$f":"NA()","v":{"$error":"#N/A"}},0,0,null,0,0]
[null,"Bedding layer",null,"m3",null,{"$f":"NA()","v":{"$error":"#N/A"}},0,0,null,0,0]
[null,"Supply geomembrane",null,"m2",null,{"$f":"NA()","v":{"$error":"#N/A"}},0,0,null,0,0]
[null,"Install geomembrane",null,"m2",null,{"$f":"NA()","v":{"$error":"#N/A"}},0,0,null,0,0]
[null,"Erosion protection layer",null,"m3",null,{"$f":"NA()","v":{"$error":"#N/A"}},0,0,null,0,0]
[null,"INSTALL GROUNDWATER COLLECTION SYSTEM"]
[null,"Excavate/install sumps",null,"m3",null,{"$f":"NA()","v":{"$error":"#N/A"}},{"$f":"IF(ISNA(F41),0,INDEX(IF(UPPER(RIGHT(F41,1))=Low,UnitCostLow, IF(UPPER(RIGHT(F41,1))=High,UnitCostHigh,UnitCostSpecified)),MATCH(UPPER(LEFT(F41,LEN(F41)-1)),CostCode,0)))","v":0},{"$f":"G41*E41","v":0},null,{"$f":"H41*I41","v":0},{"$f":"+H41*(1-I41)","v":0}]
[null,"Install pumping wells",null,"m3",null,{"$f":"NA()","v":{"$error":"#N/A"}},0,0,null,0,0]
[null,"Install pumps/pipelines/power supply",null,"allow",null,{"$f":"NA()","v":{"$error":"#N/A"}},0,0,null,0,0]
[null,"RELOCATE DUMPS"]
[null,"Load, haul, dump or doze",null,"m3",null,{"$f":"NA()","v":{"$error":"#N/A"}},{"$f":"IF(ISNA(F45),0,INDEX(IF(UPPER(RIGHT(F45,1))=Low,UnitCostLow, IF(UPPER(RIGHT(F45,1))=High,UnitCostHigh,UnitCostSpecified)),MATCH(UPPER(LEFT(F45,LEN(F45)-1)),CostCode,0)))","v":0},{"$f":"G45*E45","v":0},null,{"$f":"H45*I45","v":0},{"$f":"+H45*(1-I45)","v":0}]
[null,"Add lime",null,"tonne",null,{"$f":"NA()","v":{"$error":"#N/A"}},{"$f":"IF(ISNA(F46),0,INDEX(IF(UPPER(RIGHT(F46,1))=Low,UnitCostLow, IF(UPPER(RIGHT(F46,1))=High,UnitCostHigh,UnitCostSpecified)),MATCH(UPPER(LEFT(F46,LEN(F46)-1)),CostCode,0)))","v":0},{"$f":"G46*E46","v":0},null,{"$f":"H46*I46","v":0},{"$f":"+H46*(1-I46)","v":0}]
[null,"Contour reclaimed area",null,"ha",null,{"$f":"NA()","v":{"$error":"#N/A"}},{"$f":"IF(ISNA(F47),0,INDEX(IF(UPPER(RIGHT(F47,1))=Low,UnitCostLow, IF(UPPER(RIGHT(F47,1))=High,UnitCostHigh,UnitCostSpecified)),MATCH(UPPER(LEFT(F47,LEN(F47)-1)),CostCode,0)))","v":0},{"$f":"G47*E47","v":0},null,{"$f":"H47*I47","v":0},{"$f":"+H47*(1-I47)","v":0}]
[null,"Other",null,null,null,{"$f":"NA()","v":{"$error":"#N/A"}},{"$f":"IF(ISNA(F48),0,INDEX(IF(UPPER(RIGHT(F48,1))=Low,UnitCostLow, IF(UPPER(RIGHT(F48,1))=High,UnitCostHigh,UnitCostSpecified)),MATCH(UPPER(LEFT(F48,LEN(F48)-1)),CostCode,0)))","v":0},{"$f":"G48*E48","v":0},null,{"$f":"H48*I48","v":0},{"$f":"+H48*(1-I48)","v":0}]
[null,"SPECIALIZED ITEMS"]
[null,"Install ground temperature monitoring cables","Will be installed during Operations to meet opertional monitoring commitments","each",null,{"$f":"NA()","v":{"$error":"#N/A"}},{"$f":"IF(ISNA(F50),0,INDEX(IF(UPPER(RIGHT(F50,1))=Low,UnitCostLow, IF(UPPER(RIGHT(F50,1))=High,UnitCostHigh,UnitCostSpecified)),MATCH(UPPER(LEFT(F50,LEN(F50)-1)),CostCode,0)))","v":0},{"$f":"G50*E50","v":0},null,{"$f":"H50*I50","v":0},{"$f":"+H50*(1-I50)","v":0}]
[null,"Install permanent instrumentation, drilling",null,"each",null,{"$f":"NA()","v":{"$error":"#N/A"}},{"$f":"IF(ISNA(F51),0,INDEX(IF(UPPER(RIGHT(F51,1))=Low,UnitCostLow, IF(UPPER(RIGHT(F51,1))=High,UnitCostHigh,UnitCostSpecified)),MATCH(UPPER(LEFT(F51,LEN(F51)-1)),CostCode,0)))","v":0},{"$f":"G51*E51","v":0},null,{"$f":"H51*I51","v":0},{"$f":"+H51*(1-I51)","v":0}]
[null,"TREAT ROCK PILE SEEPAGE - see \"Water Management\""]
[null,"HEAP LEACH SEEPAGE TREATMENT - Cyanide Detox"]
[null,"Cyanide destruction water treatment pumping",null,"m3",null,{"$f":"NA()","v":{"$error":"#N/A"}},{"$f":"IF(ISNA(F54),0,INDEX(IF(UPPER(RIGHT(F54,1))=Low,UnitCostLow, IF(UPPER(RIGHT(F54,1))=High,UnitCostHigh,UnitCostSpecified)),MATCH(UPPER(LEFT(F54,LEN(F54)-1)),CostCode,0)))","v":0},{"$f":"G54*E54","v":0},null,{"$f":"H54*I54","v":0},{"$f":"+H54*(1-I54)","v":0}]
[null,"Reagents",null,"tonnes",null,{"$f":"NA()","v":{"$error":"#N/A"}},{"$f":"IF(ISNA(F55),0,INDEX(IF(UPPER(RIGHT(F55,1))=Low,UnitCostLow, IF(UPPER(RIGHT(F55,1))=High,UnitCostHigh,UnitCostSpecified)),MATCH(UPPER(LEFT(F55,LEN(F55)-1)),CostCode,0)))","v":0},{"$f":"G55*E55","v":0},null,{"$f":"H55*I55","v":0},{"$f":"+H55*(1-I55)","v":0}]
[null,"Electrician/mechanic to maintain treatment plant",null,"allow",null,{"$f":"NA()","v":{"$error":"#N/A"}},{"$f":"IF(ISNA(F56),0,INDEX(IF(UPPER(RIGHT(F56,1))=Low,UnitCostLow, IF(UPPER(RIGHT(F56,1))=High,UnitCostHigh,UnitCostSpecified)),MATCH(UPPER(LEFT(F56,LEN(F56)-1)),CostCode,0)))","v":0},{"$f":"G56*E56","v":0},null,{"$f":"H56*I56","v":0},{"$f":"+H56*(1-I56)","v":0}]
[null,"Equipment maintenance and parts",null,"allow",null,{"$f":"NA()","v":{"$error":"#N/A"}},{"$f":"IF(ISNA(F57),0,INDEX(IF(UPPER(RIGHT(F57,1))=Low,UnitCostLow, IF(UPPER(RIGHT(F57,1))=High,UnitCostHigh,UnitCostSpecified)),MATCH(UPPER(LEFT(F57,LEN(F57)-1)),CostCode,0)))","v":0},{"$f":"G57*E57","v":0},null,{"$f":"H57*I57","v":0},{"$f":"+H57*(1-I57)","v":0}]
[null,null,null,null,null,null,"Annual treatment costs",{"$f":"SUM(H54:H57)+0.0001","v":1E-4}]
[null,"Number of years of treatment",null,"years",0]
[null,null,null,null,null,null,"Total treatment costs",{"$f":"H58*E59","v":0},null,null,{"$f":"H60","v":0}]
[null,"HEAP LEACH SEEPAGE TREATMENT - ARD/ML"]
[null,"Upgrade/modify pumping system - report to WTP",null,"allow",null,{"$f":"NA()","v":{"$error":"#N/A"}},{"$f":"IF(ISNA(F62),0,INDEX(IF(UPPER(RIGHT(F62,1))=Low,UnitCostLow, IF(UPPER(RIGHT(F62,1))=High,UnitCostHigh,UnitCostSpecified)),MATCH(UPPER(LEFT(F62,LEN(F62)-1)),CostCode,0)))","v":0},{"$f":"G62*E62","v":0},null,null,{"$f":"H62","v":0}]
[null,null,null,null,null,null,"Total",{"$f":"SUM(H5:H51)+H60+H62+0.0001","v":16800000.000100002},null,{"$f":"SUM(J5:J51)+J60+J62","v":0},{"$f":"SUM(K5:K51)+K60+K62","v":16800000}]
[null,null,null,null,null,null,"% of Total",null,null,{"$f":"J63/H63","v":0},{"$f":"K63/H63","v":0.99999999999404754}]
[]
[null,"* For construction of passive treatment system refer to \"Water Management\"."]

{"sheet":"Bldgs & Equip","index":6,"n_rows":68,"n_cols":11,"rows_kept":68,"cut":false,"hidden":false,"merged":[]}
[1,"Building / Equip Name:",null,null,null,null,"Bldg / Equip #:",1]
[]
[null,"ACTIVITY/MATERIAL","Notes","Units","Quantity","Cost Code","Unit Cost","Cost","% Land","Land Cost","Total Cost"]
[null,"DISPOSE MOBILE EQUIPMENT"]
[null,"Decontaminate and ship off-site",null,"allow",null,{"$f":"NA()","v":{"$error":"#N/A"}},{"$f":"IF(ISNA(F5),0,INDEX(IF(UPPER(RIGHT(F5,1))=Low,UnitCostLow, IF(UPPER(RIGHT(F5,1))=High,UnitCostHigh,UnitCostSpecified)),MATCH(UPPER(LEFT(F5,LEN(F5)-1)),CostCode,0)))","v":0},{"$f":"G5*E5","v":0},null,{"$f":"H5*I5","v":0},{"$f":"+H5*(1-I5)","v":0}]
[null,"Decontaminate and dispose on-site","Drive or transport to landfill; drain fluids; NPAG cover cost below","allow",1,"Sabina",20000,{"$f":"G6*E6","v":20000},null,{"$f":"H6*I6","v":0},{"$f":"+H6*(1-I6)","v":20000}]
[null,"Other",null,null,null,{"$f":"NA()","v":{"$error":"#N/A"}},{"$f":"IF(ISNA(F7),0,INDEX(IF(UPPER(RIGHT(F7,1))=Low,UnitCostLow, IF(UPPER(RIGHT(F7,1))=High,UnitCostHigh,UnitCostSpecified)),MATCH(UPPER(LEFT(F7,LEN(F7)-1)),CostCode,0)))","v":0},{"$f":"G7*E7","v":0},null,0,0]
[null,"REMOVE BUILDINGS - see note below"]
[null,"Accomodation Complex","Goose Admin: Kitchen/camp. Landfill building materials and pad","m2",{"$f":"'SBB Comp. Est.'!F96","v":1980.0000000000002},"BRS1L",{"$f":"IF(ISNA(F9),0,INDEX(IF(UPPER(RIGHT(F9,1))=Low,UnitCostLow, IF(UPPER(RIGHT(F9,1))=High,UnitCostHigh,UnitCostSpecified)),MATCH(UPPER(LEFT(F9,LEN(F9)-1)),CostCode,0)))","v":45},{"$f":"G9*E9","v":89100.000000000015},null,0,89100.000000000015]
[null,"Process Facilities",null,"m2",{"$f":"'SBB Comp. Est.'!F89","v":6464},"BRS1H",65,420160,null,0,420160]
[null,"Crusher",null,"m2",{"$f":"'SBB Comp. Est.'!F90","v":1630},"BRS1H",65,{"$f":"G11*E11","v":105950},null,{"$f":"H11*I11","v":0},{"$f":"+H11*(1-I11)","v":105950}]
[null,"Power plant",null,"m2",{"$f":"'SBB Comp. Est.'!F91","v":2040},"BRS1H",65,132600,null,0,132600]
[null,"Emergency power plant",null,"m2",{"$f":"'SBB Comp. Est.'!F92","v":300},"BRS1H",65,19500,null,0,19500]
[null,"Truck Shop/Office","Goose Admin building","m2",{"$f":"'SBB Comp. Est.'!F95","v":2349.4499999999998},"BRS1L",45,105725.24999999999,null,0,105725.24999999999]
[null,"Cold storage","Goose Admin building","m2",{"$f":"'SBB Comp. Est.'!F97","v":840},"BRS1L",45,37800,null,0,37800]
[null,"Storage Facilites","Waste oil storage Goose Site","Lot",{"$f":"'SBB Comp. Est.'!F98","v":1},"Sabina",{"$f":"'SBB Comp. Est.'!W98","v":43333.333333333336},{"$f":"G16*E16","v":43333.333333333336},null,{"$f":"H16*I16","v":0},{"$f":"+H16*(1-I16)","v":43333.333333333336}]
[null,"Storage Facility","Goose frieght storage","Lot",{"$f":"'SBB Comp. Est.'!F99","v":1},"Sabina",{"$f":"'SBB Comp. Est.'!W99","v":19250},19250,null,0,19250]
[null,"Water and Wastewater Treatment Facilities","Water treatment plant Goose Building","m2",647,"BRS1L",{"$f":"IF(ISNA(F18),0,INDEX(IF(UPPER(RIGHT(F18,1))=Low,UnitCostLow, IF(UPPER(RIGHT(F18,1))=High,UnitCostHigh,UnitCostSpecified)),MATCH(UPPER(LEFT(F18,LEN(F18)-1)),CostCode,0)))","v":45},29115,null,0,29115]
[null,"Sewage Treatment Plant","Remove hazardous materials and dispose of at licensed facility, landfill building materials","Lot",{"$f":"'SBB Comp. Est.'!F101","v":1},"Sabina",{"$f":"'SBB Comp. Est.'!W101","v":11550},11550,null,0,11550]
[null,"Fuel Tanks","Fuel storage and distribution Goose facility","Lot",{"$f":"'SBB Comp. Est.'!F93","v":1},"Sabina",{"$f":"'SBB Comp. Est.'!W93","v":154000},{"$f":"G20*E20","v":154000},null,{"$f":"H20*I20","v":0},{"$f":"+H20*(1-I20)","v":154000}]
[null,"Offices, Repair, Lab, Warehouse","MLA infrastructure Port Office","Units",{"$f":"'SBB Comp. Est.'!F103","v":5},"Sabina",{"$f":"'SBB Comp. Est.'!W103","v":2340},11700,null,{"$f":"H21*I21","v":0},{"$f":"+H21*(1-I21)","v":11700}]
[null,"Pipeline","MLA Infrastructure","m",{"$f":"'SBB Comp. Est.'!F104","v":10000},"Sabina",{"$f":"'SBB Comp. Est.'!W104","v":10},100000,null,{"$f":"H22*I22","v":0},{"$f":"+H22*(1-I22)","v":100000}]
[null,"Warehouse, Shops and Others","MLA Infrastructure. Includes: Incinerator and waste management, Warehouses, Genset, Maitenance shop, water storage, WTP/STP, camp/office, freaight storage area, waste area, fuel storage. Cost includes grade and contour pads, disposal at designated areas, remove hazard material when applicable.","LS",1,"Sabina",{"$f":"'SBB Comp. Est.'!W105+'SBB Comp. Est.'!W106+'SBB Comp. Est.'!W107+'SBB Comp. Est.'!W108+'SBB Comp. Est.'!W109+'SBB Comp. Est.'!W110+'SBB Comp. Est.'!W111+'SBB Comp. Est.'!W112+'SBB Comp. Est.'!W113+'SBB Comp. Est.'!W114","v":308683.33333333337},308683.33333333337,null,0,308683.33333333337]
[null,"Freshwater intakes","pipes will be capped at substrate and left in place.","m2",null,{"$f":"NA()","v":{"$error":"#N/A"}},{"$f":"IF(ISNA(F24),0,INDEX(IF(UPPER(RIGHT(F24,1))=Low,UnitCostLow, IF(UPPER(RIGHT(F24,1))=High,UnitCostHigh,UnitCostSpecified)),MATCH(UPPER(LEFT(F24,LEN(F24)-1)),CostCode,0)))","v":0},0,null,0,0]
[null,"Reclaim pumps",null,"m2",null,{"$f":"NA()","v":{"$error":"#N/A"}},0,0,null,0,0]
[null,"Outfall & Diffuser",null,"m2",null,{"$f":"NA()","v":{"$error":"#N/A"}},0,0,null,0,0]
[null,"Airstrip lighting, navigation, electrician",null,"manhours",20,"elecH",{"$f":"IF(ISNA(F27),0,INDEX(IF(UPPER(RIGHT(F27,1))=Low,UnitCostLow, IF(UPPER(RIGHT(F27,1))=High,UnitCostHigh,UnitCostSpecified)),MATCH(UPPER(LEFT(F27,LEN(F27)-1)),CostCode,0)))","v":95},1900,null,0,1900]
[null,"Airstrip lighting, navigation, mechanical",null,"manhours",20,"mechH",{"$f":"IF(ISNA(F28),0,INDEX(IF(UPPER(RIGHT(F28,1))=Low,UnitCostLow, IF(UPPER(RIGHT(F28,1))=High,UnitCostHigh,UnitCostSpecified)),MATCH(UPPER(LEFT(F28,LEN(F28)-1)),CostCode,0)))","v":72.849999999999994},1457,null,0,1457]
[null,"Break foundation slabs",null,"m2",null,{"$f":"NA()","v":{"$error":"#N/A"}},{"$f":"IF(ISNA(F29),0,INDEX(IF(UPPER(RIGHT(F29,1))=Low,UnitCostLow, IF(UPPER(RIGHT(F29,1))=High,UnitCostHigh,UnitCostSpecified)),MATCH(UPPER(LEFT(F29,LEN(F29)-1)),CostCode,0)))","v":0},{"$f":"G29*E29","v":0},null,{"$f":"H29*I29","v":0},{"$f":"+H29*(1-I29)","v":0}]
[null,"Consolidate & dump boneyard debris",null,"m3",null,{"$f":"NA()","v":{"$error":"#N/A"}},0,0,null,0,0]
[null,"Other ",null,null,null,{"$f":"NA()","v":{"$error":"#N/A"}},0,0,null,0,0]
[null,"LANDFILL FOR DEMOLITION WASTE"]
[null,"Place rock cover",null,"m3",{"$f":"'SBB Comp. Est.'!F59","v":25000},"RR3L",7,{"$f":"G33*E33","v":175000},null,{"$f":"H33*I33","v":0},{"$f":"+H33*(1-I33)","v":175000}]
[null,"Place soil cover",null,"m3",null,{"$f":"NA()","v":{"$error":"#N/A"}},{"$f":"IF(ISNA(F34),0,INDEX(IF(UPPER(RIGHT(F34,1))=Low,UnitCostLow, IF(UPPER(RIGHT(F34,1))=High,UnitCostHigh,UnitCostSpecified)),MATCH(UPPER(LEFT(F34,LEN(F34)-1)),CostCode,0)))","v":0},{"$f":"G34*E34","v":0},null,0,{"$f":"+H34*(1-I34)","v":0}]
[null,"Vegetate",null,"ha",null,{"$f":"NA()","v":{"$error":"#N/A"}},{"$f":"IF(ISNA(F35),0,INDEX(IF(UPPER(RIGHT(F35,1))=Low,UnitCostLow, IF(UPPER(RIGHT(F35,1))=High,UnitCostHigh,UnitCostSpecified)),MATCH(UPPER(LEFT(F35,LEN(F35)-1)),CostCode,0)))","v":0},{"$f":"G35*E35","v":0},null,0,0]
[null,"GRADE AND CONTOUR PADS"]
[null,"Accomodation Complex","Goose Admin: Kitchen/camp. no concrete foundation","ha",{"$f":"ROUNDUP(E9/10000,1)","v":0.2},"SCFYL",{"$f":"IF(ISNA(F37),0,INDEX(IF(UPPER(RIGHT(F37,1))=Low,UnitCostLow, IF(UPPER(RIGHT(F37,1))=High,UnitCostHigh,UnitCostSpecified)),MATCH(UPPER(LEFT(F37,LEN(F37)-1)),CostCode,0)))","v":4300},{"$f":"G37*E37","v":860},null,0,860]
[null,"Process Facilities","concrete foundation demolished to ground level","m2",{"$f":"E10","v":6464},"BRCS",6,38784,null,0,38784]
[null,"Crusher","concrete foundation demolished to ground level","m2",1630,"BRCS",6,9780,null,0,9780]
[null,"Power plant","no concrete foundation","ha",{"$f":"ROUNDUP(E12/10000,1)","v":0.30000000000000004},"SCFYL",4300,1290.0000000000002,null,0,1290.0000000000002]
[null,"Emergency power plant","no concrete foundation","ha",{"$f":"ROUNDUP(E13/10000,1)","v":0.1},"SCFYL",4300,430,null,0,430]
[null,"Truck Shop/Office","concrete foundation demolished to ground level","m2",2349.4499999999998,"BRCS",{"$f":"IF(ISNA(F42),0,INDEX(IF(UPPER(RIGHT(F42,1))=Low,UnitCostLow, IF(UPPER(RIGHT(F42,1))=High,UnitCostHigh,UnitCostSpecified)),MATCH(UPPER(LEFT(F42,LEN(F42)-1)),CostCode,0)))","v":6},{"$f":"G42*E42","v":14096.699999999999},null,{"$f":"H42*I42","v":0},{"$f":"+H42*(1-I42)","v":14096.699999999999}]
[null,"Cold storage","no concrete foundation","ha",{"$f":"ROUNDUP(E15/10000,1)","v":0.1},"SCFYL",4300,430,null,0,430]
[null,"Water and Wastewater Treatment Facilities","no concrete foundation","ha",{"$f":"ROUNDUP(E18/10000,1)","v":0.1},"SCFYL",4300,430,null,0,430]
[null,"Sewage Treatment Plant","no concrete foundation","m2",{"$f":"ROUNDUP(13.7*2.4,0)","v":33},"BRCS",{"$f":"IF(ISNA(F45),0,INDEX(IF(UPPER(RIGHT(F45,1))=Low,UnitCostLow, IF(UPPER(RIGHT(F45,1))=High,UnitCostHigh,UnitCostSpecified)),MATCH(UPPER(LEFT(F45,LEN(F45)-1)),CostCode,0)))","v":6},{"$f":"G45*E45","v":198},null,{"$f":"H45*I45","v":0},{"$f":"+H45*(1-I45)","v":198}]
[null,"Fuel Tanks","Fuel storage and distribution Goose facility; no concrete foundation","ha",2.2000000000000002,"SCFYL",4300,9460,null,0,9460]
[null,"Warehouse, Shops and Other","MLA, includes all storage/laydown, Fual Tanks and camp area","ha",20,"SCFYL",4300,86000,null,0,86000]
[null,"Place rock cover",null,"m3",null,{"$f":"NA()","v":{"$error":"#N/A"}},0,0,null,0,0]
[null,"Vegetate",null,"ha",null,{"$f":"NA()","v":{"$error":"#N/A"}},0,0,null,0,0]
[null,"PUNCTURE LINED SUMPS"]
[null,"Puncture liner and place soil cover",null,"m3",null,{"$f":"NA()","v":{"$error":"#N/A"}},{"$f":"IF(ISNA(F51),0,INDEX(IF(UPPER(RIGHT(F51,1))=Low,UnitCostLow, IF(UPPER(RIGHT(F51,1))=High,UnitCostHigh,UnitCostSpecified)),MATCH(UPPER(LEFT(F51,LEN(F51)-1)),CostCode,0)))","v":0},{"$f":"G51*E51","v":0},null,{"$f":"H51*I51","v":0},{"$f":"+H51*(1-I51)","v":0}]
[null,"RECLAIM ROADS"]
[null,"Restore drainage, remove culverts haul road","Restore drainage including culverts; Roads will remain intact to facilitate long-term access.","m3",{"$f":"'SBB Comp. Est.'!F122","v":1488},"Sabina",{"$f":"'SBB Comp. Est.'!S122","v":11},{"$f":"G53*E53","v":16368},null,0,16368]
[null,"Remove bridges",null,"each",null,{"$f":"NA()","v":{"$error":"#N/A"}},{"$f":"IF(ISNA(F54),0,INDEX(IF(UPPER(RIGHT(F54,1))=Low,UnitCostLow, IF(UPPER(RIGHT(F54,1))=High,UnitCostHigh,UnitCostSpecified)),MATCH(UPPER(LEFT(F54,LEN(F54)-1)),CostCode,0)))","v":0},0,null,0,0]
[null,"Scarify and install water breaks",null,"ha",null,{"$f":"NA()","v":{"$error":"#N/A"}},0,0,null,0,0]
[null,"Restore drainage airstrip",null,"m3",{"$f":"'SBB Comp. Est.'!F125","v":1020},"Sabina",{"$f":"'SBB Comp. Est.'!S125","v":12},12240,null,0,12240]
[null,"Scarify laydown areas",null,"ha",null,{"$f":"NA()","v":{"$error":"#N/A"}},0,0,null,0,0]
[null,"Scarify Winter Ice Roads ","Fill sections on land - 8 km x 10 m wide = 8.0 ha","ha",8,"SCFYH",{"$f":"IF(ISNA(F58),0,INDEX(IF(UPPER(RIGHT(F58,1))=Low,UnitCostLow, IF(UPPER(RIGHT(F58,1))=High,UnitCostHigh,UnitCostSpecified)),MATCH(UPPER(LEFT(F58,LEN(F58)-1)),CostCode,0)))","v":6030},{"$f":"G58*E58","v":48240},null,{"$f":"H58*I58","v":0},{"$f":"+H58*(1-I58)","v":48240}]
[null,"Vegetate","Potential vegetation of roads to include 8 ha of scarified WIR and nominal area of 3 ha for spill or other road remediation area.","ha",11,"VHFL",4000,44000,null,{"$f":"H59*I59","v":0},44000]
[null,"Other",null,null,null,{"$f":"NA()","v":{"$error":"#N/A"}},0,0,null,{"$f":"H60*I60","v":0},0]
[null,"SPECIALIZED ITEMS"]
[null,"Dispose of misc. debris and laydown area refuse",null,null,null,{"$f":"NA()","v":{"$error":"#N/A"}},{"$f":"IF(ISNA(F62),0,INDEX(IF(UPPER(RIGHT(F62,1))=Low,UnitCostLow, IF(UPPER(RIGHT(F62,1))=High,UnitCostHigh,UnitCostSpecified)),MATCH(UPPER(LEFT(F62,LEN(F62)-1)),CostCode,0)))","v":0},{"$f":"G62*E62","v":0},null,{"$f":"H62*I62","v":0},0]
[null,null,null,null,null,null,"Total",{"$f":"SUM(H5:H62)+0.0001","v":2069430.616766667},null,{"$f":"SUM(J5:J62)","v":0},{"$f":"SUM(K5:K62)","v":2069430.6166666669}]
[null,null,null,null,null,null,"% of Total",null,null,{"$f":"J63/H63","v":0},{"$f":"K63/H63","v":0.99999999995167754}]
[]
[]
[]
[null,"Note:  Unit costs are based on 3m high, single story building.  Scale larger building areas accordingly.  E.g.  10m high building multiply area by 3.3 (10/3)"]

{"sheet":"Chemicals","index":7,"n_rows":55,"n_cols":14,"rows_kept":55,"cut":false,"hidden":false,"merged":[[2,1,2,7]]}
[1,"Chemicals/Soil Area Name:"]
[]
[null,"Note:         The procedures, equipment and packaging for clean up and removal of chemicals or contaminated soils are highly dependent on the nature of the chemicals and their existing state of containment. Government guidelines should be consulted on an individual chemical basis.  Any estimate made here should be considered very rough unless specific evaluations have been conducted."]
[null,"ACTIVITY/MATERIAL","Notes","Units","Quantity","Cost Code","Unit Cost","Cost","% Land","Land Cost","Total Cost",null,"ICRP Section ","Comments"]
[null,"HAZARDOUS MATERIALS AUDIT"]
[null,"Hazardous materials audit",null,"mandays",null,{"$f":"NA()","v":{"$error":"#N/A"}},{"$f":"IF(ISNA(F6),0,INDEX(IF(UPPER(RIGHT(F6,1))=Low,UnitCostLow, IF(UPPER(RIGHT(F6,1))=High,UnitCostHigh,UnitCostSpecified)),MATCH(UPPER(LEFT(F6,LEN(F6)-1)),CostCode,0)))","v":0},{"$f":"G6*E6","v":0},null,{"$f":"H6*I6","v":0},{"$f":"+H6*(1-I6)","v":0}]
[null,"Phase 1 audit",null,"each",1,"CS1L",{"$f":"IF(ISNA(F7),0,INDEX(IF(UPPER(RIGHT(F7,1))=Low,UnitCostLow, IF(UPPER(RIGHT(F7,1))=High,UnitCostHigh,UnitCostSpecified)),MATCH(UPPER(LEFT(F7,LEN(F7)-1)),CostCode,0)))","v":7500},{"$f":"G7*E7","v":7500},null,{"$f":"H7*I7","v":0},{"$f":"+H7*(1-I7)","v":7500}]
[null,"Phase 2 audit",null,"each",1,"CS2L",{"$f":"IF(ISNA(F8),0,INDEX(IF(UPPER(RIGHT(F8,1))=Low,UnitCostLow, IF(UPPER(RIGHT(F8,1))=High,UnitCostHigh,UnitCostSpecified)),MATCH(UPPER(LEFT(F8,LEN(F8)-1)),CostCode,0)))","v":50000},50000,null,0,50000]
[null,"BUILDING DECONTAMINATION & CONSOLIDATION OF HAZARDOUS MATERIALS"]
[null,"Environmental technician/coordinator",null,"mandays",null,{"$f":"NA()","v":{"$error":"#N/A"}},{"$f":"IF(ISNA(F10),0,INDEX(IF(UPPER(RIGHT(F10,1))=Low,UnitCostLow, IF(UPPER(RIGHT(F10,1))=High,UnitCostHigh,UnitCostSpecified)),MATCH(UPPER(LEFT(F10,LEN(F10)-1)),CostCode,0)))","v":0},{"$f":"G10*E10","v":0},null,{"$f":"H10*I10","v":0},{"$f":"+H10*(1-I10)","v":0}]
[null,"Decontaminate: oil, fuel",null,"mandays",null,{"$f":"NA()","v":{"$error":"#N/A"}},{"$f":"IF(ISNA(F11),0,INDEX(IF(UPPER(RIGHT(F11,1))=Low,UnitCostLow, IF(UPPER(RIGHT(F11,1))=High,UnitCostHigh,UnitCostSpecified)),MATCH(UPPER(LEFT(F11,LEN(F11)-1)),CostCode,0)))","v":0},0,null,0,0]
[null,"Decontaminate maintenance shop",null,"mandays",null,{"$f":"NA()","v":{"$error":"#N/A"}},{"$f":"IF(ISNA(F12),0,INDEX(IF(UPPER(RIGHT(F12,1))=Low,UnitCostLow, IF(UPPER(RIGHT(F12,1))=High,UnitCostHigh,UnitCostSpecified)),MATCH(UPPER(LEFT(F12,LEN(F12)-1)),CostCode,0)))","v":0},0,null,0,0]
[null,"Decontaminate power plant",null,"mandays",null,{"$f":"NA()","v":{"$error":"#N/A"}},0,0,null,0,0]
[null,"Decontaminate bulk fuel storage",null,"mandays",null,{"$f":"NA()","v":{"$error":"#N/A"}},0,0,null,0,0]
[null,"Decontaminate ANFO plant",null,"mandays",null,{"$f":"NA()","v":{"$error":"#N/A"}},0,0,null,0,0]
[null,"Decontaminate offices/warehouse/accom",null,"mandays",null,{"$f":"NA()","v":{"$error":"#N/A"}},0,0,null,0,0]
[null,"Removal of asbestos siding on buildings",null,"m2",null,{"$f":"NA()","v":{"$error":"#N/A"}},0,0,null,0,0]
[null,"Removal of friable asbestos on equipment",null,"m2",null,{"$f":"NA()","v":{"$error":"#N/A"}},0,0,null,0,0]
[null,"Other",null,null,null,{"$f":"NA()","v":{"$error":"#N/A"}},0,0,null,0,0]
[null,"HAZARDOUS MATERIALS REMOVAL"]
[null,"Waste oils","Consume in a waste oil burner on-site","litre",10000,"ORL",{"$f":"IF(ISNA(F21),0,INDEX(IF(UPPER(RIGHT(F21,1))=Low,UnitCostLow, IF(UPPER(RIGHT(F21,1))=High,UnitCostHigh,UnitCostSpecified)),MATCH(UPPER(LEFT(F21,LEN(F21)-1)),CostCode,0)))","v":0.43},{"$f":"G21*E21","v":4300},null,{"$f":"H21*I21","v":0},{"$f":"+H21*(1-I21)","v":4300}]
[null,"Waste fuel","Consume on-site to power an incinerator, or in a waste oil burner","litre",250000,"ORL",0.43,107500,null,0,107500]
[null,"Waste batteries","Assumed 10 20-kg batteries generated in the final year of closure","kg",200,"PCRH",2.5,500,null,0,500]
[null,"Assay & environmental lab reagents",null,"kg",500,"PCRH",2.5,1250,null,0,1250]
[null,"Machine shop paints, solvents etc",null,"litre",200,"PCRH",2.5,500,null,0,500]
[null,"Glycol",null,"litre",5000,"PCRH",2.5,12500,null,{"$f":"H26*I26","v":0},{"$f":"+H26*(1-I26)","v":12500}]
[null,"Process reagents",null,"kg",130000,"PCRH",{"$f":"IF(ISNA(F27),0,INDEX(IF(UPPER(RIGHT(F27,1))=Low,UnitCostLow, IF(UPPER(RIGHT(F27,1))=High,UnitCostHigh,UnitCostSpecified)),MATCH(UPPER(LEFT(F27,LEN(F27)-1)),CostCode,0)))","v":2.5},{"$f":"G27*E27","v":325000},null,{"$f":"H27*I27","v":0},{"$f":"+H27*(1-I27)","v":325000}]
[null,"WTP sludge from Water Treatment","Assumes off-site disposal for 7 years of treatment. If sludge passes leach tests, will consider on-site disposal.","kg",{"$f":"7*3000","v":21000},"PCRH",{"$f":"IF(ISNA(F28),0,INDEX(IF(UPPER(RIGHT(F28,1))=Low,UnitCostLow, IF(UPPER(RIGHT(F28,1))=High,UnitCostHigh,UnitCostSpecified)),MATCH(UPPER(LEFT(F28,LEN(F28)-1)),CostCode,0)))","v":2.5},{"$f":"G28*E28","v":52500},null,{"$f":"H28*I28","v":0},{"$f":"+H28*(1-I28)","v":52500}]
[null,"Nuclear sources",null,"allow",null,{"$f":"NA()","v":{"$error":"#N/A"}},{"$f":"IF(ISNA(F29),0,INDEX(IF(UPPER(RIGHT(F29,1))=Low,UnitCostLow, IF(UPPER(RIGHT(F29,1))=High,UnitCostHigh,UnitCostSpecified)),MATCH(UPPER(LEFT(F29,LEN(F29)-1)),CostCode,0)))","v":0},0,null,{"$f":"H29*I29","v":0},{"$f":"+H29*(1-I29)","v":0}]
[null,"Mobile Equipment","Remove hazardous waste from equipment not being salvaged, clean, landfill equipment ","each",{"$f":"'SBB Comp. Est.'!F22","v":41},"Sabina",{"$f":"'SBB Comp. Est.'!W22","v":2280},{"$f":"G30*E30","v":93480},null,{"$f":"H30*I30","v":0},{"$f":"+H30*(1-I30)","v":93480}]
[null,"HAZARDOUS MATERIALS "]
[null,"Transportation to disposal facility","Included in hazardous materials removal cost","allow",null,{"$f":"NA()","v":{"$error":"#N/A"}},{"$f":"IF(ISNA(F32),0,INDEX(IF(UPPER(RIGHT(F32,1))=Low,UnitCostLow, IF(UPPER(RIGHT(F32,1))=High,UnitCostHigh,UnitCostSpecified)),MATCH(UPPER(LEFT(F32,LEN(F32)-1)),CostCode,0)))","v":0},{"$f":"G32*E32","v":0},null,{"$f":"H32*I32","v":0},{"$f":"+H32*(1-I32)","v":0}]
[null,"Disposal fees","Included in hazardous materials removal cost","allow",null,{"$f":"NA()","v":{"$error":"#N/A"}},{"$f":"IF(ISNA(F33),0,INDEX(IF(UPPER(RIGHT(F33,1))=Low,UnitCostLow, IF(UPPER(RIGHT(F33,1))=High,UnitCostHigh,UnitCostSpecified)),MATCH(UPPER(LEFT(F33,LEN(F33)-1)),CostCode,0)))","v":0},{"$f":"G33*E33","v":0},null,{"$f":"H33*I33","v":0},{"$f":"+H33*(1-I33)","v":0}]
[null,"Other",null,null,null,{"$f":"NA()","v":{"$error":"#N/A"}},{"$f":"IF(ISNA(F34),0,INDEX(IF(UPPER(RIGHT(F34,1))=Low,UnitCostLow, IF(UPPER(RIGHT(F34,1))=High,UnitCostHigh,UnitCostSpecified)),MATCH(UPPER(LEFT(F34,LEN(F34)-1)),CostCode,0)))","v":0},{"$f":"G34*E34","v":0},null,{"$f":"H34*I34","v":0},{"$f":"+H34*(1-I34)","v":0}]
[null,"CONTAMINATED SOILS "]
[null,"Contam. soil investigation - Phase 1",null,"LS",1,"BGC",7500,{"$f":"G36*E36","v":7500},null,{"$f":"H36*I36","v":0},{"$f":"+H36*(1-I36)","v":7500}]
[null,"Contam. soil investigation - Phase 2",null,"LS",1,"Sabina",{"$f":"'SBB Comp. Est.'!X136","v":50000},50000,null,0,50000]
[null,"CONTAMINATED SOIL REMOVAL"]
[null,"Excavate and transport to onsite facility",null,"m3",{"$f":"'SBB Comp. Est.'!F138","v":10000},"SB1H",{"$f":"IF(ISNA(F39),0,INDEX(IF(UPPER(RIGHT(F39,1))=Low,UnitCostLow, IF(UPPER(RIGHT(F39,1))=High,UnitCostHigh,UnitCostSpecified)),MATCH(UPPER(LEFT(F39,LEN(F39)-1)),CostCode,0)))","v":5.9},{"$f":"G39*E39","v":59000},null,{"$f":"H39*I39","v":0},{"$f":"+H39*(1-I39)","v":59000}]
[null,"Manage hydrocarbon remediation at facility",null,"m3",10000,"CSRL",{"$f":"IF(ISNA(F40),0,INDEX(IF(UPPER(RIGHT(F40,1))=Low,UnitCostLow, IF(UPPER(RIGHT(F40,1))=High,UnitCostHigh,UnitCostSpecified)),MATCH(UPPER(LEFT(F40,LEN(F40)-1)),CostCode,0)))","v":47},470000,null,0,470000]
[null,"Reagents/stabilizing agent",null,"m2",null,{"$f":"NA()","v":{"$error":"#N/A"}},{"$f":"IF(ISNA(F41),0,INDEX(IF(UPPER(RIGHT(F41,1))=Low,UnitCostLow, IF(UPPER(RIGHT(F41,1))=High,UnitCostHigh,UnitCostSpecified)),MATCH(UPPER(LEFT(F41,LEN(F41)-1)),CostCode,0)))","v":0},{"$f":"G41*E41","v":0},null,{"$f":"H41*I41","v":0},{"$f":"+H41*(1-I41)","v":0}]
[null,"Excavate and transport to offsite facility",null,"m3",null,{"$f":"NA()","v":{"$error":"#N/A"}},{"$f":"IF(ISNA(F42),0,INDEX(IF(UPPER(RIGHT(F42,1))=Low,UnitCostLow, IF(UPPER(RIGHT(F42,1))=High,UnitCostHigh,UnitCostSpecified)),MATCH(UPPER(LEFT(F42,LEN(F42)-1)),CostCode,0)))","v":0},0,null,0,0]
[null,"Contour decontaminated area","Decommission 2 landfarms and confirmation soil sampling; estimated 6,000m3 at each of Goose and MLA sites.","m3",12000,"SB1L",{"$f":"IF(ISNA(F43),0,INDEX(IF(UPPER(RIGHT(F43,1))=Low,UnitCostLow, IF(UPPER(RIGHT(F43,1))=High,UnitCostHigh,UnitCostSpecified)),MATCH(UPPER(LEFT(F43,LEN(F43)-1)),CostCode,0)))","v":4.3},51600,null,{"$f":"H43*I43","v":0},{"$f":"+H43*(1-I43)","v":51600}]
[null,"CONTAMINATED SOIL VERY LOW PERMEABILITY COVER "]
[null,"Supply geomembrame, HDPE, ES3, GCL",null,"m2",null,{"$f":"NA()","v":{"$error":"#N/A"}},{"$f":"IF(ISNA(F45),0,INDEX(IF(UPPER(RIGHT(F45,1))=Low,UnitCostLow, IF(UPPER(RIGHT(F45,1))=High,UnitCostHigh,UnitCostSpecified)),MATCH(UPPER(LEFT(F45,LEN(F45)-1)),CostCode,0)))","v":0},{"$f":"G45*E45","v":0},null,{"$f":"H45*I45","v":0},{"$f":"+H45*(1-I45)","v":0}]
[null,"Upper and lower bedding layers",null,"m3",null,{"$f":"NA()","v":{"$error":"#N/A"}},0,0,null,0,0]
[null,"Install geomembrane, HDPE, ES3, GCL",null,"m2",null,{"$f":"NA()","v":{"$error":"#N/A"}},0,0,null,0,0]
[null,"Erosion protection layer",null,"m3",null,{"$f":"NA()","v":{"$error":"#N/A"}},0,0,null,0,0]
[null,"Vegetate",null,"m2",null,{"$f":"NA()","v":{"$error":"#N/A"}},0,0,null,0,0]
[null,"Install infiltration/seepage instrumentation",null,"allow",null,{"$f":"NA()","v":{"$error":"#N/A"}},0,0,null,{"$f":"H50*I50","v":0},{"$f":"+H50*(1-I50)","v":0}]
[null,"Other","Operate 2 landfarms: 1 at Goose, 1 at MLA","allow",2,"Sabina",50000,100000,null,{"$f":"H51*I51","v":0},{"$f":"+H51*(1-I51)","v":100000}]
[null,"OTHER"]
[null,null,null,null,null,{"$f":"NA()","v":{"$error":"#N/A"}},{"$f":"IF(ISNA(F53),0,INDEX(IF(UPPER(RIGHT(F53,1))=Low,UnitCostLow, IF(UPPER(RIGHT(F53,1))=High,UnitCostHigh,UnitCostSpecified)),MATCH(UPPER(LEFT(F53,LEN(F53)-1)),CostCode,0)))","v":0},{"$f":"G53*E53","v":0},null,{"$f":"H53*I53","v":0},{"$f":"+H53*(1-I53)","v":0}]
[null,null,null,null,null,null,"Total",{"$f":"SUM(H6:H53)+0.0001","v":1393130.0001000001},null,{"$f":"SUM(J6:J53)","v":0},{"$f":"SUM(K6:K53)","v":1393130}]
[null,null,null,null,null,null,"% of Total",null,null,{"$f":"J54/H54","v":0},{"$f":"K54/H54","v":0.9999999999282192}]

{"sheet":"Water Management","index":8,"n_rows":78,"n_cols":20,"rows_kept":78,"cut":false,"hidden":false,"merged":[[1,10,1,18]]}
[1,"Capital Expenditures and Short Term Water Treatment identified in 'Instructions' worksheet"]
[null,null,null,null,null,null,null,null,null,null,"Staging"]
[null,"ACTIVITY/MATERIAL","Notes","Units","Quantity","Cost Code","Unit Cost","Total Cost",null,null,"Y-3","Y-2","Y-1","Y1","Y-1","Y1","Y2","Y4","Y4 & Y5","ICRP Section "]
[null,"BREACH DYKE EMBANKMENT",null,null,null,null,null,null,null,null,"Initial Infrastructre","Umwelt OP","TSF","Llama OP","Llama UG","Umwelt UG","Goose Main OP","Goose Main UG","Echo OP & UG"]
[null,"Breach Llama Lake Diversion Berms",null,"m3",{"$f":"'SBB Comp. Est.'!F62","v":665},{"$f":"NA()","v":{"$error":"#N/A"}},{"$f":"'SBB Comp. Est.'!W62","v":7.3},{"$f":"G5*E5","v":4854.5},null,null,null,null,null,{"$f":"H5","v":4854.5}]
[null,"Breach Llama WRSA Diversion Berm",null,"m3",{"$f":"'SBB Comp. Est.'!F63","v":95},{"$f":"NA()","v":{"$error":"#N/A"}},{"$f":"'SBB Comp. Est.'!W63","v":7.3},{"$f":"G6*E6","v":693.5},null,null,null,null,null,{"$f":"H6","v":693.5}]
[null,"Breach Llama WRSA Containment Dam",null,"m3",{"$f":"'SBB Comp. Est.'!F64","v":95},{"$f":"NA()","v":{"$error":"#N/A"}},{"$f":"'SBB Comp. Est.'!W64","v":7.3},693.5,null,null,null,null,null,{"$f":"H7","v":693.5}]
[null,"Breach Primary Pond Containment Dam","Breach in Year 2 once Umwelt Pit mining compelte and starts as Umwelt Tailings Facility (TF); Primary Pond will water will gravity flow directly.","m3",null,{"$f":"NA()","v":{"$error":"#N/A"}},{"$f":"IF(ISNA(F8),0,INDEX(IF(UPPER(RIGHT(F8,1))=Low,UnitCostLow, IF(UPPER(RIGHT(F8,1))=High,UnitCostHigh,UnitCostSpecified)),MATCH(UPPER(LEFT(F8,LEN(F8)-1)),CostCode,0)))","v":0},{"$f":"G8*E8","v":0}]
[null,"Breach Umwelt WRSA Containment Dam",null,"m3",{"$f":"'SBB Comp. Est.'!F68","v":120},{"$f":"NA()","v":{"$error":"#N/A"}},{"$f":"'SBB Comp. Est.'!W68","v":7.3},876,null,null,null,{"$f":"H9","v":876}]
[null,"Breach Umwelt WRSA Diversion Berm",null,"m3",{"$f":"'SBB Comp. Est.'!F69","v":95},{"$f":"NA()","v":{"$error":"#N/A"}},{"$f":"'SBB Comp. Est.'!W69","v":7.3},693.5,null,null,null,{"$f":"H10","v":693.5}]
[null,"Breach Echo WRSA Containment Dam",null,"m3",{"$f":"'SBB Comp. Est.'!F73","v":190},{"$f":"NA()","v":{"$error":"#N/A"}},{"$f":"'SBB Comp. Est.'!W73","v":7.3},1387,null,null,null,null,null,null,null,null,null,null,{"$f":"H11","v":1387}]
[null,"Breach Echo Diversion Berm (East and West)",null,"m3",{"$f":"'SBB Comp. Est.'!F74","v":190},{"$f":"NA()","v":{"$error":"#N/A"}},{"$f":"'SBB Comp. Est.'!W74","v":7.3},1387,null,null,null,null,null,null,null,null,null,null,{"$f":"H12","v":1387}]
[null,"Breach Echo WRSA Diversion Berm",null,"m3",{"$f":"'SBB Comp. Est.'!F75","v":95},{"$f":"NA()","v":{"$error":"#N/A"}},{"$f":"'SBB Comp. Est.'!W75","v":7.3},693.5,null,null,null,null,null,null,null,null,null,null,{"$f":"H13","v":693.5}]
[null,"Breach East Echo Containment Dam",null,"m3",{"$f":"'SBB Comp. Est.'!F76","v":95},{"$f":"NA()","v":{"$error":"#N/A"}},{"$f":"'SBB Comp. Est.'!W76","v":7.3},693.5,null,null,null,null,null,null,null,null,null,null,{"$f":"H14","v":693.5}]
[null,"Breach Goose Main Diversion Berm",null,"m3",{"$f":"'SBB Comp. Est.'!F80","v":95},{"$f":"NA()","v":{"$error":"#N/A"}},{"$f":"'SBB Comp. Est.'!W80","v":7.3},693.5,null,null,null,null,null,null,null,null,{"$f":"H15","v":693.5}]
[null,"Breach Ore Stockpile Diversion Berm and Containment Dam",null,"m3",{"$f":"'SBB Comp. Est.'!F86","v":215},{"$f":"NA()","v":{"$error":"#N/A"}},{"$f":"'SBB Comp. Est.'!W86","v":7.3},1569.5,null,null,{"$f":"H16","v":1569.5}]
[null,"Breach SWP Diversion Berms and Containment Dams",null,"m3",{"$f":"'SBB Comp. Est.'!F33","v":430},{"$f":"NA()","v":{"$error":"#N/A"}},{"$f":"'SBB Comp. Est.'!W33","v":8},3440,null,null,null,{"$f":"H17","v":3440}]
[null,"Remove Liner from all berms","Remove liner from all berms","m2",30700,"Sabina",0.7,{"$f":"G18*E18","v":21490},null,null,{"$f":"$H$18*(K20/$T$20)","v":3894.9771926785611},10710.877071424447,0,1721.036433974248,0,0,0,0,5163.1093019227437,{"$f":"SUM(K18:S18)","v":21490}]
[null,"Contour water intake area",null,"m3",null,{"$f":"NA()","v":{"$error":"#N/A"}},{"$f":"IF(ISNA(F19),0,INDEX(IF(UPPER(RIGHT(F19,1))=Low,UnitCostLow, IF(UPPER(RIGHT(F19,1))=High,UnitCostHigh,UnitCostSpecified)),MATCH(UPPER(LEFT(F19,LEN(F19)-1)),CostCode,0)))","v":0},{"$f":"G19*E19","v":0}]
[null,"STABILIZE SEDIMENT PONDS/WATER MANAGEMENT PONDS",null,null,null,null,null,null,null,null,{"$f":"SUM(K16)","v":1569.5},{"$f":"L9+L17","v":4316},0,{"$f":"N7","v":693.5},0,0,0,0,{"$f":"S11+S14","v":2080.5},{"$f":"SUM(K20:S20)","v":8659.5}]
[null,"Place soil cover",null,"m3",null,{"$f":"NA()","v":{"$error":"#N/A"}},{"$f":"IF(ISNA(F21),0,INDEX(IF(UPPER(RIGHT(F21,1))=Low,UnitCostLow, IF(UPPER(RIGHT(F21,1))=High,UnitCostHigh,UnitCostSpecified)),MATCH(UPPER(LEFT(F21,LEN(F21)-1)),CostCode,0)))","v":0},{"$f":"G21*E21","v":0}]
[null,"Doze & spread excavated material",null,"m3",null,{"$f":"NA()","v":{"$error":"#N/A"}},{"$f":"IF(ISNA(F22),0,INDEX(IF(UPPER(RIGHT(F22,1))=Low,UnitCostLow, IF(UPPER(RIGHT(F22,1))=High,UnitCostHigh,UnitCostSpecified)),MATCH(UPPER(LEFT(F22,LEN(F22)-1)),CostCode,0)))","v":0},{"$f":"G22*E22","v":0}]
[null,"Vegetate spread material",null,"ha",null,{"$f":"NA()","v":{"$error":"#N/A"}},{"$f":"IF(ISNA(F23),0,INDEX(IF(UPPER(RIGHT(F23,1))=Low,UnitCostLow, IF(UPPER(RIGHT(F23,1))=High,UnitCostHigh,UnitCostSpecified)),MATCH(UPPER(LEFT(F23,LEN(F23)-1)),CostCode,0)))","v":0},{"$f":"G23*E23","v":0}]
[null,"Rip rap in channel base",null,"each",null,{"$f":"NA()","v":{"$error":"#N/A"}},{"$f":"IF(ISNA(F24),0,INDEX(IF(UPPER(RIGHT(F24,1))=Low,UnitCostLow, IF(UPPER(RIGHT(F24,1))=High,UnitCostHigh,UnitCostSpecified)),MATCH(UPPER(LEFT(F24,LEN(F24)-1)),CostCode,0)))","v":0},{"$f":"G24*E24","v":0}]
[null,"REDIRECT RUNOFF/CONSTRUCT DIVERSION DITCHES"]
[null,"Excavate ditches -soil",null,"m3",null,{"$f":"NA()","v":{"$error":"#N/A"}},{"$f":"IF(ISNA(F26),0,INDEX(IF(UPPER(RIGHT(F26,1))=Low,UnitCostLow, IF(UPPER(RIGHT(F26,1))=High,UnitCostHigh,UnitCostSpecified)),MATCH(UPPER(LEFT(F26,LEN(F26)-1)),CostCode,0)))","v":0},{"$f":"G26*E26","v":0}]
[null,"Excavate ditches -rock",null,"m3",null,{"$f":"NA()","v":{"$error":"#N/A"}},{"$f":"IF(ISNA(F27),0,INDEX(IF(UPPER(RIGHT(F27,1))=Low,UnitCostLow, IF(UPPER(RIGHT(F27,1))=High,UnitCostHigh,UnitCostSpecified)),MATCH(UPPER(LEFT(F27,LEN(F27)-1)),CostCode,0)))","v":0},{"$f":"G27*E27","v":0}]
[null,"Stabilize side slopes",null,"m3",null,{"$f":"NA()","v":{"$error":"#N/A"}},{"$f":"IF(ISNA(F28),0,INDEX(IF(UPPER(RIGHT(F28,1))=Low,UnitCostLow, IF(UPPER(RIGHT(F28,1))=High,UnitCostHigh,UnitCostSpecified)),MATCH(UPPER(LEFT(F28,LEN(F28)-1)),CostCode,0)))","v":0},{"$f":"G28*E28","v":0}]
[null,"Rip rap in channel base",null,"m3",null,{"$f":"NA()","v":{"$error":"#N/A"}},{"$f":"IF(ISNA(F29),0,INDEX(IF(UPPER(RIGHT(F29,1))=Low,UnitCostLow, IF(UPPER(RIGHT(F29,1))=High,UnitCostHigh,UnitCostSpecified)),MATCH(UPPER(LEFT(F29,LEN(F29)-1)),CostCode,0)))","v":0},{"$f":"G29*E29","v":0}]
[null,"BREACH DITCHES"]
[null,"Excavate breaches",null,"m3",null,{"$f":"NA()","v":{"$error":"#N/A"}},{"$f":"IF(ISNA(F31),0,INDEX(IF(UPPER(RIGHT(F31,1))=Low,UnitCostLow, IF(UPPER(RIGHT(F31,1))=High,UnitCostHigh,UnitCostSpecified)),MATCH(UPPER(LEFT(F31,LEN(F31)-1)),CostCode,0)))","v":0},{"$f":"G31*E31","v":0}]
[null,"Install flow dissipation",null,"m3",null,{"$f":"NA()","v":{"$error":"#N/A"}},{"$f":"IF(ISNA(F32),0,INDEX(IF(UPPER(RIGHT(F32,1))=Low,UnitCostLow, IF(UPPER(RIGHT(F32,1))=High,UnitCostHigh,UnitCostSpecified)),MATCH(UPPER(LEFT(F32,LEN(F32)-1)),CostCode,0)))","v":0},{"$f":"G32*E32","v":0}]
[null,"Vegetate remainder of ditch",null,"m2",null,{"$f":"NA()","v":{"$error":"#N/A"}},{"$f":"IF(ISNA(F33),0,INDEX(IF(UPPER(RIGHT(F33,1))=Low,UnitCostLow, IF(UPPER(RIGHT(F33,1))=High,UnitCostHigh,UnitCostSpecified)),MATCH(UPPER(LEFT(F33,LEN(F33)-1)),CostCode,0)))","v":0},{"$f":"G33*E33","v":0}]
[null,"DECOMISSION FRESH WATER SUPPLY"]
[null,"Breach embankment",null,"m3",null,{"$f":"NA()","v":{"$error":"#N/A"}},{"$f":"IF(ISNA(F35),0,INDEX(IF(UPPER(RIGHT(F35,1))=Low,UnitCostLow, IF(UPPER(RIGHT(F35,1))=High,UnitCostHigh,UnitCostSpecified)),MATCH(UPPER(LEFT(F35,LEN(F35)-1)),CostCode,0)))","v":0},{"$f":"G35*E35","v":0}]
[null,"Remove pump",null,"LS",null,{"$f":"NA()","v":{"$error":"#N/A"}},{"$f":"IF(ISNA(F36),0,INDEX(IF(UPPER(RIGHT(F36,1))=Low,UnitCostLow, IF(UPPER(RIGHT(F36,1))=High,UnitCostHigh,UnitCostSpecified)),MATCH(UPPER(LEFT(F36,LEN(F36)-1)),CostCode,0)))","v":0},{"$f":"G36*E36","v":0}]
[null,"Remove pipelines",null,"m",null,{"$f":"NA()","v":{"$error":"#N/A"}},{"$f":"IF(ISNA(F37),0,INDEX(IF(UPPER(RIGHT(F37,1))=Low,UnitCostLow, IF(UPPER(RIGHT(F37,1))=High,UnitCostHigh,UnitCostSpecified)),MATCH(UPPER(LEFT(F37,LEN(F37)-1)),CostCode,0)))","v":0},{"$f":"G37*E37","v":0}]
[null,"DECOMISSION WATER RECLAIM BARGE"]
[null,"Decomission reclaim barge from Goose Main TF",null,"LS",1,"Sabina",10000,{"$f":"G39*E39","v":10000},null,null,null,null,{"$f":"H39","v":10000}]
[null,"WATER CONTROL IN RECLAMATION QUARRY"]
[null,"Install pumping system",null,"LS",null,{"$f":"NA()","v":{"$error":"#N/A"}},{"$f":"IF(ISNA(F41),0,INDEX(IF(UPPER(RIGHT(F41,1))=Low,UnitCostLow, IF(UPPER(RIGHT(F41,1))=High,UnitCostHigh,UnitCostSpecified)),MATCH(UPPER(LEFT(F41,LEN(F41)-1)),CostCode,0)))","v":0},{"$f":"G41*E41","v":0}]
[null,"Remove pumping system",null,"m",null,{"$f":"NA()","v":{"$error":"#N/A"}},{"$f":"IF(ISNA(F42),0,INDEX(IF(UPPER(RIGHT(F42,1))=Low,UnitCostLow, IF(UPPER(RIGHT(F42,1))=High,UnitCostHigh,UnitCostSpecified)),MATCH(UPPER(LEFT(F42,LEN(F42)-1)),CostCode,0)))","v":0},{"$f":"G42*E42","v":0}]
[null,"REMOVE PIPELINES"]
[null,"Decommission Llama pump and pipeline",null,"m",{"$f":"'SBB Comp. Est.'!F65","v":700},"Sabina",{"$f":"'SBB Comp. Est.'!W65","v":18.571428571428573},{"$f":"G44*E44","v":13000.000000000002},null,null,null,null,null,null,{"$f":"H44","v":13000.000000000002}]
[null,"Decomission WTP-Goose Lake pipeline",null,"m",{"$f":"'SBB Comp. Est.'!F34","v":1140},"Sabina ",{"$f":"'SBB Comp. Est.'!W34","v":10},{"$f":"G45*E45","v":11400},null,null,null,null,{"$f":"H45","v":11400}]
[null,"Remove Umwelt Pond pump and pipeline",null,"m",{"$f":"'SBB Comp. Est.'!F70","v":950},"Sabina ",{"$f":"'SBB Comp. Est.'!W70","v":17.894736842105264},{"$f":"G46*E46","v":17000},null,null,null,{"$f":"H46","v":17000}]
[null,"Remove Primary Pond pump and pipeline",null,"m",{"$f":"'SBB Comp. Est.'!F71","v":7250},"Sabina ",{"$f":"'SBB Comp. Est.'!W71","v":11.03448275862069},80000,null,null,null,{"$f":"H47","v":80000}]
[null,"Remove Echo WRSA Pond pump and pipeline",null,"m",{"$f":"'SBB Comp. Est.'!F77","v":2400},"Sabina ",{"$f":"'SBB Comp. Est.'!W77","v":10},24000,null,null,null,null,null,null,null,null,null,null,{"$f":"H48","v":24000}]
[null,"Remove Echo NCW pond pump and pipeline",null,"m",{"$f":"'SBB Comp. Est.'!F78","v":220},"Sabina ",{"$f":"'SBB Comp. Est.'!W78","v":23.636363636363637},5200,null,null,null,null,null,null,null,null,null,null,{"$f":"H49","v":5200}]
[null,"Remove Ore Stockpile pump and pipline ",null,"m",{"$f":"'SBB Comp. Est.'!F85","v":4550},"Sabina",{"$f":"'SBB Comp. Est.'!W85","v":10},45500,null,null,{"$f":"H50","v":45500}]
[null,"Decommission WTP pump and pipeline",null,"m",{"$f":"'SBB Comp. Est.'!F131+'SBB Comp. Est.'!F132","v":7520},"Sabina",{"$f":"'SBB Comp. Est.'!W131","v":10.895522388059701},81934.32835820895,null,null,null,null,null,null,null,null,null,null,{"$f":"H51","v":81934.32835820895}]
[null,"Decommission WTP",null,"LS",{"$f":"'SBB Comp. Est.'!F133","v":1},"Sabina",{"$f":"'SBB Comp. Est.'!W133*2","v":19500},19500,null,null,null,null,null,null,null,null,null,null,{"$f":"H52","v":19500}]
[null,"Concrete plug deep pipes",null,"m3",null,{"$f":"NA()","v":{"$error":"#N/A"}},{"$f":"IF(ISNA(F53),0,INDEX(IF(UPPER(RIGHT(F53,1))=Low,UnitCostLow, IF(UPPER(RIGHT(F53,1))=High,UnitCostHigh,UnitCostSpecified)),MATCH(UPPER(LEFT(F53,LEN(F53)-1)),CostCode,0)))","v":0},{"$f":"G53*E53","v":0}]
[null,"Other",null,null,null,{"$f":"NA()","v":{"$error":"#N/A"}},{"$f":"IF(ISNA(F54),0,INDEX(IF(UPPER(RIGHT(F54,1))=Low,UnitCostLow, IF(UPPER(RIGHT(F54,1))=High,UnitCostHigh,UnitCostSpecified)),MATCH(UPPER(LEFT(F54,LEN(F54)-1)),CostCode,0)))","v":0},{"$f":"G54*E54","v":0}]
[null,"GROUNDWATER COLLECTION SYSTEM"]
[null,"Excavate/install sumps",null,"m3",null,{"$f":"NA()","v":{"$error":"#N/A"}},{"$f":"IF(ISNA(F56),0,INDEX(IF(UPPER(RIGHT(F56,1))=Low,UnitCostLow, IF(UPPER(RIGHT(F56,1))=High,UnitCostHigh,UnitCostSpecified)),MATCH(UPPER(LEFT(F56,LEN(F56)-1)),CostCode,0)))","v":0},{"$f":"G56*E56","v":0}]
[null,"Install pumping wells",null,"m3",null,{"$f":"NA()","v":{"$error":"#N/A"}},{"$f":"IF(ISNA(F57),0,INDEX(IF(UPPER(RIGHT(F57,1))=Low,UnitCostLow, IF(UPPER(RIGHT(F57,1))=High,UnitCostHigh,UnitCostSpecified)),MATCH(UPPER(LEFT(F57,LEN(F57)-1)),CostCode,0)))","v":0},{"$f":"G57*E57","v":0}]
[null,"Install pumps/pipelines/power supply",null,"LS",null,{"$f":"NA()","v":{"$error":"#N/A"}},{"$f":"IF(ISNA(F58),0,INDEX(IF(UPPER(RIGHT(F58,1))=Low,UnitCostLow, IF(UPPER(RIGHT(F58,1))=High,UnitCostHigh,UnitCostSpecified)),MATCH(UPPER(LEFT(F58,LEN(F58)-1)),CostCode,0)))","v":0},{"$f":"G58*E58","v":0}]
[null,"CONSTRUCT CONTAMINATED WATER STORAGE POND"]
[null,"Excavate pond",null,"m3",null,{"$f":"NA()","v":{"$error":"#N/A"}},{"$f":"IF(ISNA(F60),0,INDEX(IF(UPPER(RIGHT(F60,1))=Low,UnitCostLow, IF(UPPER(RIGHT(F60,1))=High,UnitCostHigh,UnitCostSpecified)),MATCH(UPPER(LEFT(F60,LEN(F60)-1)),CostCode,0)))","v":0},{"$f":"G60*E60","v":0}]
[null,"Doze & spread excavated material",null,"m3",null,{"$f":"NA()","v":{"$error":"#N/A"}},0,0]
[null,"Vegetate spread material",null,"ha",null,{"$f":"NA()","v":{"$error":"#N/A"}},0,0]
[null,"Bedding layer",null,"m3",null,{"$f":"NA()","v":{"$error":"#N/A"}},0,0]
[null,"Supply geomembrane",null,"m2",null,{"$f":"NA()","v":{"$error":"#N/A"}},0,0]
[null,"Install geomembrane",null,"m2",null,{"$f":"NA()","v":{"$error":"#N/A"}},0,0]
[null,"Erosion protection layer",null,"m3",null,{"$f":"NA()","v":{"$error":"#N/A"}},0,0]
[null,"CONSTRUCT PASSIVE TREATMENT SYSTEM (e.g. Constructed Wetland)"]
[null,"Construct access roads",null,"km",null,{"$f":"NA()","v":{"$error":"#N/A"}},0,{"$f":"G68*E68","v":0}]
[null,"Install HDPE piping system from collection pond",null,"m",null,{"$f":"NA()","v":{"$error":"#N/A"}},0,{"$f":"G69*E69","v":0}]
[null,"Inter-cell flow structures",null,"allow",null,{"$f":"NA()","v":{"$error":"#N/A"}},0,0]
[null,"Install liners",null,"m2",null,{"$f":"NA()","v":{"$error":"#N/A"}},0,{"$f":"G71*E71","v":0}]
[null,"Install growth media",null,"m3",null,{"$f":"NA()","v":{"$error":"#N/A"}},0,0]
[null,"Wetland vegetation",null,"ha",null,{"$f":"NA()","v":{"$error":"#N/A"}},0,0]
[null,"CONSTRUCT WATER TREATMENT PLANT"]
[null,"Build treatment plant ","Treatment Plant will be constructed as part of operations","LS",null,{"$f":"NA()","v":{"$error":"#N/A"}},{"$f":"IF(ISNA(F75),0,INDEX(IF(UPPER(RIGHT(F75,1))=Low,UnitCostLow, IF(UPPER(RIGHT(F75,1))=High,UnitCostHigh,UnitCostSpecified)),MATCH(UPPER(LEFT(F75,LEN(F75)-1)),CostCode,0)))","v":0},{"$f":"G75*E75","v":0}]
[null,"Build sludge containment facility",null,"LS",null,{"$f":"NA()","v":{"$error":"#N/A"}},{"$f":"IF(ISNA(F76),0,INDEX(IF(UPPER(RIGHT(F76,1))=Low,UnitCostLow, IF(UPPER(RIGHT(F76,1))=High,UnitCostHigh,UnitCostSpecified)),MATCH(UPPER(LEFT(F76,LEN(F76)-1)),CostCode,0)))","v":0},{"$f":"G76*E76","v":0}]
[null,null,null,null,null,null,"Total",{"$f":"SUM(H4:H76)+0.0001","v":346699.32845820894},null,{"$f":"SUM(J21:J76,J5:J19)","v":0},{"$f":"SUM(K21:K76,K5:K19)","v":50964.477192678562},112720.37707142445,21400,7962.5364339742482,13000.000000000002,0,693.5,0,139958.43766013169,{"$f":"SUM(J77:S77)","v":346699.32835820894}]
[null," For details of long-term/post-closure water treatment see \"WATER TREATMENT\" Worksheet\"; costs included in this tab."]

{"sheet":"Water Treatment","index":9,"n_rows":37,"n_cols":10,"rows_kept":37,"cut":false,"hidden":false,"merged":[]}
[1,"Post Closure Water Treatment - Identified as long term/post-closure in 'Instructions' worksheet"]
[]
[null,"ACTIVITY/MATERIAL","Notes","Units","Quantity","Cost Code","Unit Cost","Total Cost",null,"ICRP Section "]
[null,"ADDITION OF REAGENTS TO WTP"]
[null,"H2O2",null,"kg",null,{"$f":"NA()","v":{"$error":"#N/A"}},{"$f":"IF(ISNA(F5),0,INDEX(IF(UPPER(RIGHT(F5,1))=Low,UnitCostLow, IF(UPPER(RIGHT(F5,1))=High,UnitCostHigh,UnitCostSpecified)),MATCH(UPPER(LEFT(F5,LEN(F5)-1)),CostCode,0)))","v":0},{"$f":"G5*E5","v":0}]
[null,"lime",null,"kg",null,{"$f":"NA()","v":{"$error":"#N/A"}},0,0]
[null,"ferric sulphate",null,"kg",null,{"$f":"NA()","v":{"$error":"#N/A"}},0,0]
[null,"ferrous sulphate",null,"kg",null,{"$f":"NA()","v":{"$error":"#N/A"}},0,0]
[null,"flocculents",null,"kg",null,{"$f":"NA()","v":{"$error":"#N/A"}},0,0]
[null,"Other",null,null,null,{"$f":"NA()","v":{"$error":"#N/A"}},0,0]
[null,"LABOUR AND SUPPLIES"]
[null,"Annual fuel",null,"litres",null,{"$f":"NA()","v":{"$error":"#N/A"}},{"$f":"IF(ISNA(F12),0,INDEX(IF(UPPER(RIGHT(F12,1))=Low,UnitCostLow, IF(UPPER(RIGHT(F12,1))=High,UnitCostHigh,UnitCostSpecified)),MATCH(UPPER(LEFT(F12,LEN(F12)-1)),CostCode,0)))","v":0},{"$f":"G12*E12","v":0}]
[null,"Annual power",null,"kW-h",null,{"$f":"NA()","v":{"$error":"#N/A"}},{"$f":"IF(ISNA(F13),0,INDEX(IF(UPPER(RIGHT(F13,1))=Low,UnitCostLow, IF(UPPER(RIGHT(F13,1))=High,UnitCostHigh,UnitCostSpecified)),MATCH(UPPER(LEFT(F13,LEN(F13)-1)),CostCode,0)))","v":0},{"$f":"G13*E13","v":0}]
[null,"Electrician/mechanic to maintain treatment plant",null,"allow",null,{"$f":"NA()","v":{"$error":"#N/A"}},0,0]
[null,"Equipment maintenance and parts",null,"allow",null,{"$f":"NA()","v":{"$error":"#N/A"}},0,0]
[null,"Misc. supplies, hoses, tools",null,"allow",null,{"$f":"NA()","v":{"$error":"#N/A"}},0,0]
[null,"Communications",null,"allow",null,{"$f":"NA()","v":{"$error":"#N/A"}},0,0]
[null,"Other",null,null,null,{"$f":"NA()","v":{"$error":"#N/A"}},0,0]
[null,"WATER MANAGEMENT"]
[null,"Pump from Goose Main TF to WTP","7.5 Mm3 for treatment in total","m3",{"$f":"ROUNDUP('SBB Comp. Est.'!F128/$E$36,0)","v":1071429},"POCL",0.12,128571.48]
[null,"Treat water from Goose Main TF in WTP",null,"m3",{"$f":"E20","v":1071429},"Sabina",0.65,696428.85]
[null,"Pump from WTP recirc. into Goose Main TF",null,"m3",{"$f":"E20","v":1071429},"POCL",{"$f":"IF(ISNA(F22),0,INDEX(IF(UPPER(RIGHT(F22,1))=Low,UnitCostLow, IF(UPPER(RIGHT(F22,1))=High,UnitCostHigh,UnitCostSpecified)),MATCH(UPPER(LEFT(F22,LEN(F22)-1)),CostCode,0)))","v":0.12},128571.48]
[null,"WTP WATER SAMPLING AND ANALYSES"]
[null,"Sampling equipment",null,"allow",null,{"$f":"NA()","v":{"$error":"#N/A"}},{"$f":"IF(ISNA(F24),0,INDEX(IF(UPPER(RIGHT(F24,1))=Low,UnitCostLow, IF(UPPER(RIGHT(F24,1))=High,UnitCostHigh,UnitCostSpecified)),MATCH(UPPER(LEFT(F24,LEN(F24)-1)),CostCode,0)))","v":0},{"$f":"G24*E24","v":0}]
[null,"Analyses",null,"allow",null,{"$f":"NA()","v":{"$error":"#N/A"}},{"$f":"IF(ISNA(F25),0,INDEX(IF(UPPER(RIGHT(F25,1))=Low,UnitCostLow, IF(UPPER(RIGHT(F25,1))=High,UnitCostHigh,UnitCostSpecified)),MATCH(UPPER(LEFT(F25,LEN(F25)-1)),CostCode,0)))","v":0},{"$f":"G25*E25","v":0}]
[null,"Shipping to laboratory",null,"allow",null,{"$f":"NA()","v":{"$error":"#N/A"}},{"$f":"IF(ISNA(F26),0,INDEX(IF(UPPER(RIGHT(F26,1))=Low,UnitCostLow, IF(UPPER(RIGHT(F26,1))=High,UnitCostHigh,UnitCostSpecified)),MATCH(UPPER(LEFT(F26,LEN(F26)-1)),CostCode,0)))","v":0},{"$f":"G26*E26","v":0}]
[null,"Reporting",null,"allow",null,{"$f":"NA()","v":{"$error":"#N/A"}},{"$f":"IF(ISNA(F27),0,INDEX(IF(UPPER(RIGHT(F27,1))=Low,UnitCostLow, IF(UPPER(RIGHT(F27,1))=High,UnitCostHigh,UnitCostSpecified)),MATCH(UPPER(LEFT(F27,LEN(F27)-1)),CostCode,0)))","v":0},{"$f":"G27*E27","v":0}]
[null,"Other",null,null,null,{"$f":"NA()","v":{"$error":"#N/A"}},{"$f":"IF(ISNA(F28),0,INDEX(IF(UPPER(RIGHT(F28,1))=Low,UnitCostLow, IF(UPPER(RIGHT(F28,1))=High,UnitCostHigh,UnitCostSpecified)),MATCH(UPPER(LEFT(F28,LEN(F28)-1)),CostCode,0)))","v":0},{"$f":"G28*E28","v":0}]
[null,"SITE ACCESS"]
[null,"Road maintenance (incl. snow removal)",null,"allow",null,{"$f":"NA()","v":{"$error":"#N/A"}},{"$f":"IF(ISNA(F30),0,INDEX(IF(UPPER(RIGHT(F30,1))=Low,UnitCostLow, IF(UPPER(RIGHT(F30,1))=High,UnitCostHigh,UnitCostSpecified)),MATCH(UPPER(LEFT(F30,LEN(F30)-1)),CostCode,0)))","v":0},{"$f":"G30*E30","v":0}]
[null,"Winter road tariff",null,"allow",null,{"$f":"NA()","v":{"$error":"#N/A"}},{"$f":"IF(ISNA(F31),0,INDEX(IF(UPPER(RIGHT(F31,1))=Low,UnitCostLow, IF(UPPER(RIGHT(F31,1))=High,UnitCostHigh,UnitCostSpecified)),MATCH(UPPER(LEFT(F31,LEN(F31)-1)),CostCode,0)))","v":0},{"$f":"G31*E31","v":0}]
[null,"Truck rental",null,"allow",null,{"$f":"NA()","v":{"$error":"#N/A"}},{"$f":"IF(ISNA(F32),0,INDEX(IF(UPPER(RIGHT(F32,1))=Low,UnitCostLow, IF(UPPER(RIGHT(F32,1))=High,UnitCostHigh,UnitCostSpecified)),MATCH(UPPER(LEFT(F32,LEN(F32)-1)),CostCode,0)))","v":0},{"$f":"G32*E32","v":0}]
[null,"Air support",null,"allow",null,{"$f":"NA()","v":{"$error":"#N/A"}},{"$f":"IF(ISNA(F33),0,INDEX(IF(UPPER(RIGHT(F33,1))=Low,UnitCostLow, IF(UPPER(RIGHT(F33,1))=High,UnitCostHigh,UnitCostSpecified)),MATCH(UPPER(LEFT(F33,LEN(F33)-1)),CostCode,0)))","v":0},{"$f":"G33*E33","v":0}]
[]
[null,null,null,null,null,null,"Annual water treatment costs",{"$f":"(SUM(H5:H33)+0.0001)","v":953571.81009999989}]
[null,"Number of years of water treatment",null,"years",7]
[null,null,null,null,null,null,"Total",{"$f":"AnnualTreat1Cost*E36","v":6675002.6706999987}]

{"sheet":"ICM","index":10,"n_rows":22,"n_cols":10,"rows_kept":22,"cut":false,"hidden":false,"merged":[]}
[1,"Interim Care and Maintenance"]
[]
[null,"ACTIVITY/MATERIAL","Notes","Units","Quantity","Cost Code","Unit Cost","Total Cost",null,"ICRP Section "]
[null,"INTERIM CARE & MAINTENANCE"]
[null,"Camp operation","Caretaker and summer personnel","mandays",{"$f":"180+6*21","v":306},"Sabina",{"$f":"'SBB Comp. Est.'!U118","v":110},{"$f":"G5*E5","v":33660}]
[null,"On-site staff","Caretaker and summer personnel","manhours",{"$f":"(180+6*21)*10","v":3060},"ENVCO",{"$f":"Unit_Costs!F77","v":74.16},226929.59999999998]
[null,"extra personnel",null,"manmonths",null,{"$f":"NA()","v":{"$error":"#N/A"}},{"$f":"IF(ISNA(F7),0,INDEX(IF(UPPER(RIGHT(F7,1))=Low,UnitCostLow, IF(UPPER(RIGHT(F7,1))=High,UnitCostHigh,UnitCostSpecified)),MATCH(UPPER(LEFT(F7,LEN(F7)-1)),CostCode,0)))","v":0},0]
[null,"    -electrician",null,"manmonths",null,{"$f":"NA()","v":{"$error":"#N/A"}},{"$f":"IF(ISNA(F8),0,INDEX(IF(UPPER(RIGHT(F8,1))=Low,UnitCostLow, IF(UPPER(RIGHT(F8,1))=High,UnitCostHigh,UnitCostSpecified)),MATCH(UPPER(LEFT(F8,LEN(F8)-1)),CostCode,0)))","v":0},{"$f":"G8*E8","v":0}]
[null,"    -mechanic",null,"manmonths",null,{"$f":"NA()","v":{"$error":"#N/A"}},{"$f":"IF(ISNA(F9),0,INDEX(IF(UPPER(RIGHT(F9,1))=Low,UnitCostLow, IF(UPPER(RIGHT(F9,1))=High,UnitCostHigh,UnitCostSpecified)),MATCH(UPPER(LEFT(F9,LEN(F9)-1)),CostCode,0)))","v":0},{"$f":"G9*E9","v":0}]
[null,"annual fuel","Fuel for vehicles; fuel for pumping included in water treatment cost","litre",5000,"FCDH",1.39,6949.9999999999991]
[null,"misc. supplies",null,"allow",1,"Sabina",20000,{"$f":"G11*E11","v":20000}]
[null,"pick-up truck",null,"each",null,{"$f":"NA()","v":{"$error":"#N/A"}},0,0]
[null,"small dozer",null,"allow",null,{"$f":"NA()","v":{"$error":"#N/A"}},0,0]
[null,"small excavator",null,"allow",null,{"$f":"NA()","v":{"$error":"#N/A"}},0,0]
[null,"snow machine",null,"allow",null,{"$f":"NA()","v":{"$error":"#N/A"}},0,0]
[null,"communications",null,"allow",null,{"$f":"NA()","v":{"$error":"#N/A"}},0,0]
[null,"SNP/AEMP water sampling & reporting","Sampling and lab costs","each",1,"WSH",10000,10000]
[null,"geotechnical assessment","Annual geotechnical inspection","each",1,"RPTH",20000,20000]
[null,"interim water treatment","Captured under Water Treatment","each",1,{"$f":"NA()","v":{"$error":"#N/A"}},{"$f":"IF(ISNA(F19),0,INDEX(IF(UPPER(RIGHT(F19,1))=Low,UnitCostLow, IF(UPPER(RIGHT(F19,1))=High,UnitCostHigh,UnitCostSpecified)),MATCH(UPPER(LEFT(F19,LEN(F19)-1)),CostCode,0)))","v":0},{"$f":"G19*E19","v":0}]
[null,"other",null,"each",null,{"$f":"NA()","v":{"$error":"#N/A"}},0,0]
[null,null,null,null,null,null,"Annual  Interim C&M Cost",{"$f":"SUM(H5:H20)","v":317539.59999999998}]
[null,"Number of years of ICM",null,"years",3,null,"Total",{"$f":"H21*E22","v":952618.79999999993}]

{"sheet":"PostClosure","index":11,"n_rows":40,"n_cols":40,"rows_kept":40,"cut":false,"hidden":false,"merged":[[0,6,0,7],[0,14,0,15],[0,22,0,23],[0,30,0,31],[0,38,0,39]]}
[1,null,null,null,null,null,"7 Years\n(Year 11 to 17)",null,null,null,null,null,null,null,"8 Years\n(Year 11 to 18)",null,null,null,null,null,null,null,"10 Years\n(Year 11 to 20)",null,null,null,null,null,null,null,"13 Years \n(Year 11 to 23)",null,null,null,null,null,null,null,"Beyond Post Closure (Long Term 1 to 5, 7, 10, 15, 25)"]
[]
[null,"ACTIVITY/MATERIAL - WATER TREATMENT","Notes","Units","Quantity","Cost Code","Unit Cost","Total Cost",null,"ACTIVITY/MATERIAL - GEOTECHNICAL INSPECTIONS OF TSF ","Notes","Units","Quantity","Cost Code","Unit Cost","Total Cost",null,"ACTIVITY/MATERIAL - WEMP and TERRESTRIAL","Notes","Units","Quantity","Cost Code","Unit Cost","Total Cost",null,"ACTIVITY/MATERIAL - Monitoring & Maintenance","Notes","Units","Quantity","Cost Code","Unit Cost","Total Cost",null,"ACTIVITY/MATERIAL - Long Term Monitoring ","Notes","Units","Quantity","Cost Code","Unit Cost","Total Cost"]
[null,"MONITORING & INSPECTIONS",null,null,null,null,null,null,null,"MONITORING & INSPECTIONS",null,null,null,null,null,null,null,"MONITORING & INSPECTIONS",null,null,null,null,null,null,null,"MONITORING & INSPECTIONS",null,null,null,null,null,null,null,"MONITORING & INSPECTIONS"]
[null,"Total geotechnical inspections (1 yearly)",null,"year",{"$f":"'SBB Comp. Est.'!N142/8","v":0},{"$f":"NA()","v":{"$error":"#N/A"}},{"$f":"IF(ISNA(F5),0,INDEX(IF(UPPER(RIGHT(F5,1))=Low,UnitCostLow, IF(UPPER(RIGHT(F5,1))=High,UnitCostHigh,UnitCostSpecified)),MATCH(UPPER(LEFT(F5,LEN(F5)-1)),CostCode,0)))","v":0},{"$f":"G5*E5","v":0},null,"Total geotechnical inspections (1 yearly)","Annual inspection of the TSF from Closure until embankment breaching in Year 18 (8 years).","year",{"$f":"'SBB Comp. Est.'!F142/8","v":1},"RPTH",{"$f":"IF(ISNA(N5),0,INDEX(IF(UPPER(RIGHT(N5,1))=Low,UnitCostLow, IF(UPPER(RIGHT(N5,1))=High,UnitCostHigh,UnitCostSpecified)),MATCH(UPPER(LEFT(N5,LEN(N5)-1)),CostCode,0)))","v":20000},{"$f":"O5*M5","v":20000},null,"Total geotechnical inspections (1 yearly)",null,"year",null,{"$f":"NA()","v":{"$error":"#N/A"}},{"$f":"IF(ISNA(V5),0,INDEX(IF(UPPER(RIGHT(V5,1))=Low,UnitCostLow, IF(UPPER(RIGHT(V5,1))=High,UnitCostHigh,UnitCostSpecified)),MATCH(UPPER(LEFT(V5,LEN(V5)-1)),CostCode,0)))","v":0},{"$f":"W5*U5","v":0},null,"Total geotechnical inspections (1 yearly)",null,"year",null,{"$f":"NA()","v":{"$error":"#N/A"}},{"$f":"IF(ISNA(AD5),0,INDEX(IF(UPPER(RIGHT(AD5,1))=Low,UnitCostLow, IF(UPPER(RIGHT(AD5,1))=High,UnitCostHigh,UnitCostSpecified)),MATCH(UPPER(LEFT(AD5,LEN(AD5)-1)),CostCode,0)))","v":0},{"$f":"AE5*AC5","v":0},null,"General Water Sampling and Stability Monitoring","long term general monitoring ","year",1,"Sabina",40000,{"$f":"AM5*AK5","v":40000}]
[null,"Waste Rock Piles",null,"year",null,{"$f":"NA()","v":{"$error":"#N/A"}},{"$f":"IF(ISNA(F6),0,INDEX(IF(UPPER(RIGHT(F6,1))=Low,UnitCostLow, IF(UPPER(RIGHT(F6,1))=High,UnitCostHigh,UnitCostSpecified)),MATCH(UPPER(LEFT(F6,LEN(F6)-1)),CostCode,0)))","v":0},{"$f":"G6*E6","v":0},null,"Waste Rock Piles",null,"year",null,{"$f":"NA()","v":{"$error":"#N/A"}},0,0,null,"Waste Rock Piles",null,"year",null,{"$f":"NA()","v":{"$error":"#N/A"}},{"$f":"IF(ISNA(V6),0,INDEX(IF(UPPER(RIGHT(V6,1))=Low,UnitCostLow, IF(UPPER(RIGHT(V6,1))=High,UnitCostHigh,UnitCostSpecified)),MATCH(UPPER(LEFT(V6,LEN(V6)-1)),CostCode,0)))","v":0},{"$f":"W6*U6","v":0},null,"Waste Rock Piles","Annual inspection of WR piles from closure to post-closure (13 years)","year",{"$f":"'SBB Comp. Est.'!F143/13","v":1},"Sabina",{"$f":"'SBB Comp. Est.'!$W143","v":8300},{"$f":"AE6*AC6","v":8300},null,"Waste Rock Piles",null,"year",null,{"$f":"NA()","v":{"$error":"#N/A"}},{"$f":"IF(ISNA(AL6),0,INDEX(IF(UPPER(RIGHT(AL6,1))=Low,UnitCostLow, IF(UPPER(RIGHT(AL6,1))=High,UnitCostHigh,UnitCostSpecified)),MATCH(UPPER(LEFT(AL6,LEN(AL6)-1)),CostCode,0)))","v":0},0]
[null,"Pit Walls",null,"year",null,{"$f":"NA()","v":{"$error":"#N/A"}},0,0,null,"Pit Walls",null,"year",null,{"$f":"NA()","v":{"$error":"#N/A"}},0,0,null,"Pit Walls",null,"year",null,{"$f":"NA()","v":{"$error":"#N/A"}},0,0,null,"Pit Walls","Annual inspection of pit walls from closure to post-closure (13 years)","year",{"$f":"'SBB Comp. Est.'!F144/13","v":1},"Sabina",{"$f":"'SBB Comp. Est.'!$W144","v":4000},{"$f":"AE7*AC7","v":4000},null,"Pit Walls",null,"year",null,{"$f":"NA()","v":{"$error":"#N/A"}},0,0]
[null,"WR GTC Monitoring ",null,"year",null,{"$f":"NA()","v":{"$error":"#N/A"}},0,0,null,"WR GTC Monitoring ",null,"year",null,{"$f":"NA()","v":{"$error":"#N/A"}},{"$f":"IF(ISNA(N8),0,INDEX(IF(UPPER(RIGHT(N8,1))=Low,UnitCostLow, IF(UPPER(RIGHT(N8,1))=High,UnitCostHigh,UnitCostSpecified)),MATCH(UPPER(LEFT(N8,LEN(N8)-1)),CostCode,0)))","v":0},{"$f":"O8*M8","v":0},null,"WR GTC Monitoring ",null,"year",null,{"$f":"NA()","v":{"$error":"#N/A"}},0,0,null,"WR GTC Monitoring ","Umwelt, Llama, and TSF WRSA ground temp cable annual monitoring. No GTCs at Echo WRSA (13 years)","year",1,"Sabina",{"$f":"('SBB Comp. Est.'!$W146+'SBB Comp. Est.'!$W147+'SBB Comp. Est.'!$W148)","v":14400},{"$f":"AE8*AC8","v":14400},null,"WR GTC Monitoring ",null,"year",null,{"$f":"NA()","v":{"$error":"#N/A"}},0,0]
[null,"Survey inspection",null,"each",null,{"$f":"NA()","v":{"$error":"#N/A"}},0,0,null,"Survey inspection",null,"each",null,{"$f":"NA()","v":{"$error":"#N/A"}},{"$f":"IF(ISNA(N9),0,INDEX(IF(UPPER(RIGHT(N9,1))=Low,UnitCostLow, IF(UPPER(RIGHT(N9,1))=High,UnitCostHigh,UnitCostSpecified)),MATCH(UPPER(LEFT(N9,LEN(N9)-1)),CostCode,0)))","v":0},0,null,"Survey inspection",null,"each",null,{"$f":"NA()","v":{"$error":"#N/A"}},{"$f":"IF(ISNA(V9),0,INDEX(IF(UPPER(RIGHT(V9,1))=Low,UnitCostLow, IF(UPPER(RIGHT(V9,1))=High,UnitCostHigh,UnitCostSpecified)),MATCH(UPPER(LEFT(V9,LEN(V9)-1)),CostCode,0)))","v":0},{"$f":"W9*U9","v":0},null,"Survey inspection",null,"each",null,{"$f":"NA()","v":{"$error":"#N/A"}},{"$f":"IF(ISNA(AD9),0,INDEX(IF(UPPER(RIGHT(AD9,1))=Low,UnitCostLow, IF(UPPER(RIGHT(AD9,1))=High,UnitCostHigh,UnitCostSpecified)),MATCH(UPPER(LEFT(AD9,LEN(AD9)-1)),CostCode,0)))","v":0},{"$f":"AE9*AC9","v":0},null,"Survey inspection",null,"each",null,{"$f":"NA()","v":{"$error":"#N/A"}},{"$f":"IF(ISNA(AL9),0,INDEX(IF(UPPER(RIGHT(AL9,1))=Low,UnitCostLow, IF(UPPER(RIGHT(AL9,1))=High,UnitCostHigh,UnitCostSpecified)),MATCH(UPPER(LEFT(AL9,LEN(AL9)-1)),CostCode,0)))","v":0},{"$f":"AM9*AK9","v":0}]
[null,"Regulatory costs",null,"year",null,{"$f":"NA()","v":{"$error":"#N/A"}},0,0,null,"Regulatory costs",null,"year",null,{"$f":"NA()","v":{"$error":"#N/A"}},0,{"$f":"O10*M10","v":0},null,"Regulatory costs*",null,"year",null,{"$f":"NA()","v":{"$error":"#N/A"}},0,0,null,"Regulatory costs","annual reporting, management plans, progress reports (13 years)","year",1,"Sabina",25000,25000,null,"Regulatory costs",null,"each",1,"RPTH",{"$f":"IF(ISNA(AL10),0,INDEX(IF(UPPER(RIGHT(AL10,1))=Low,UnitCostLow, IF(UPPER(RIGHT(AL10,1))=High,UnitCostHigh,UnitCostSpecified)),MATCH(UPPER(LEFT(AL10,LEN(AL10)-1)),CostCode,0)))","v":20000},{"$f":"AM10*AK10","v":20000}]
[null,"Site water monitoring",null,"each",null,{"$f":"NA()","v":{"$error":"#N/A"}},0,0,null,"Site water monitoring",null,"each",null,{"$f":"NA()","v":{"$error":"#N/A"}},0,0,null,"Site water monitoring",null,"each",null,{"$f":"NA()","v":{"$error":"#N/A"}},0,{"$f":"W11*U11","v":0},null,"Site water monitoring","All pits and WR piles closure and post closure monitoring (13 years)","year",{"$f":"'SBB Comp. Est.'!F150/13","v":1},"Sabina",{"$f":"SUM('SBB Comp. Est.'!$W150:$W157)","v":9120},{"$f":"AE11*AC11","v":9120},null,"Site water monitoring",null,"year",null,{"$f":"NA()","v":{"$error":"#N/A"}},0,0]
[null,"   - Active closure and flooding",null,"each",null,{"$f":"NA()","v":{"$error":"#N/A"}},0,0,null,"   - Active closure and flooding",null,"each",null,{"$f":"NA()","v":{"$error":"#N/A"}},0,0,null,"   - Active closure and flooding",null,"each",null,{"$f":"NA()","v":{"$error":"#N/A"}},{"$f":"IF(ISNA(V12),0,INDEX(IF(UPPER(RIGHT(V12,1))=Low,UnitCostLow, IF(UPPER(RIGHT(V12,1))=High,UnitCostHigh,UnitCostSpecified)),MATCH(UPPER(LEFT(V12,LEN(V12)-1)),CostCode,0)))","v":0},0,null,"   - Active closure and flooding",null,"each",null,{"$f":"NA()","v":{"$error":"#N/A"}},{"$f":"IF(ISNA(AD12),0,INDEX(IF(UPPER(RIGHT(AD12,1))=Low,UnitCostLow, IF(UPPER(RIGHT(AD12,1))=High,UnitCostHigh,UnitCostSpecified)),MATCH(UPPER(LEFT(AD12,LEN(AD12)-1)),CostCode,0)))","v":0},0,null,"   - Active closure and flooding",null,"each",null,{"$f":"NA()","v":{"$error":"#N/A"}},{"$f":"IF(ISNA(AL12),0,INDEX(IF(UPPER(RIGHT(AL12,1))=Low,UnitCostLow, IF(UPPER(RIGHT(AL12,1))=High,UnitCostHigh,UnitCostSpecified)),MATCH(UPPER(LEFT(AL12,LEN(AL12)-1)),CostCode,0)))","v":0},{"$f":"AM12*AK12","v":0}]
[null,"   - Post pit flooding",null,"each",null,{"$f":"NA()","v":{"$error":"#N/A"}},0,0,null,"   - Post pit flooding",null,"each",null,{"$f":"NA()","v":{"$error":"#N/A"}},0,0,null,"   - Post pit flooding",null,"each",null,{"$f":"NA()","v":{"$error":"#N/A"}},0,0,null,"   - Post pit flooding",null,"each",null,{"$f":"NA()","v":{"$error":"#N/A"}},0,0,null,"   - Post pit flooding",null,"each",null,{"$f":"NA()","v":{"$error":"#N/A"}},0,0]
[null,"Wildlife Effects Monitoring Program (WEMP)",null,"year",null,{"$f":"NA()","v":{"$error":"#N/A"}},0,0,null,"Wildlife Effects Monitoring Program (WEMP)",null,"year",null,{"$f":"NA()","v":{"$error":"#N/A"}},0,{"$f":"O14*M14","v":0},null,"Wildlife Effects Monitoring Program (WEMP)","Aquatics - Non-contact water basins (10 years)","year",{"$f":"'SBB Comp. Est.'!F159/10","v":1},"Sabina",{"$f":"'SBB Comp. Est.'!W159","v":4800},{"$f":"W14*U14","v":4800},null,"Wildlife Effects Monitoring Program (WEMP)",null,"year",null,{"$f":"NA()","v":{"$error":"#N/A"}},{"$f":"IF(ISNA(AD14),0,INDEX(IF(UPPER(RIGHT(AD14,1))=Low,UnitCostLow, IF(UPPER(RIGHT(AD14,1))=High,UnitCostHigh,UnitCostSpecified)),MATCH(UPPER(LEFT(AD14,LEN(AD14)-1)),CostCode,0)))","v":0},{"$f":"AE14*AC14","v":0},null,"Wildlife Effects Monitoring Program (WEMP)",null,"year",null,{"$f":"NA()","v":{"$error":"#N/A"}},0,0]
[null,"Terrestrial Animal Monitoring",null,"year",null,{"$f":"NA()","v":{"$error":"#N/A"}},0,0,null,"Terrestrial Animal Monitoring",null,"year",null,{"$f":"NA()","v":{"$error":"#N/A"}},0,0,null,"Terrestrial Animal Monitoring","Terrestrial Animal Monitoring (10 years)","year",{"$f":"'SBB Comp. Est.'!F161/10","v":1},"Sabina",{"$f":"'SBB Comp. Est.'!W161","v":24000},{"$f":"W15*U15","v":24000},null,"Terrestrial Animal Monitoring",null,"year",null,{"$f":"NA()","v":{"$error":"#N/A"}},0,0,null,"Terrestrial Animal Monitoring",null,"year",null,{"$f":"NA()","v":{"$error":"#N/A"}},0,0]
[null,"Vegetation Monitoring",null,"each",null,{"$f":"NA()","v":{"$error":"#N/A"}},0,0,null,"Vegetation Monitoring",null,"each",null,{"$f":"NA()","v":{"$error":"#N/A"}},{"$f":"IF(ISNA(N16),0,INDEX(IF(UPPER(RIGHT(N16,1))=Low,UnitCostLow, IF(UPPER(RIGHT(N16,1))=High,UnitCostHigh,UnitCostSpecified)),MATCH(UPPER(LEFT(N16,LEN(N16)-1)),CostCode,0)))","v":0},0,null,"Vegetation Monitoring",null,"each",null,{"$f":"NA()","v":{"$error":"#N/A"}},{"$f":"IF(ISNA(V16),0,INDEX(IF(UPPER(RIGHT(V16,1))=Low,UnitCostLow, IF(UPPER(RIGHT(V16,1))=High,UnitCostHigh,UnitCostSpecified)),MATCH(UPPER(LEFT(V16,LEN(V16)-1)),CostCode,0)))","v":0},0,null,"Vegetation Monitoring",null,"each",null,{"$f":"NA()","v":{"$error":"#N/A"}},{"$f":"IF(ISNA(AD16),0,INDEX(IF(UPPER(RIGHT(AD16,1))=Low,UnitCostLow, IF(UPPER(RIGHT(AD16,1))=High,UnitCostHigh,UnitCostSpecified)),MATCH(UPPER(LEFT(AD16,LEN(AD16)-1)),CostCode,0)))","v":0},0,null,"Vegetation Monitoring",null,"each",null,{"$f":"NA()","v":{"$error":"#N/A"}},0,0]
[null,"Maintain gravel road surface",null,"each",null,{"$f":"NA()","v":{"$error":"#N/A"}},0,0,null,"Maintain gravel road surface",null,"each",null,{"$f":"NA()","v":{"$error":"#N/A"}},{"$f":"IF(ISNA(N17),0,INDEX(IF(UPPER(RIGHT(N17,1))=Low,UnitCostLow, IF(UPPER(RIGHT(N17,1))=High,UnitCostHigh,UnitCostSpecified)),MATCH(UPPER(LEFT(N17,LEN(N17)-1)),CostCode,0)))","v":0},{"$f":"O17*M17","v":0},null,"Maintain gravel road surface",null,"year",null,{"$f":"NA()","v":{"$error":"#N/A"}},0,0,null,"Maintain gravel road surface","maintence from closure to post-closure (13 years)","year",{"$f":"'SBB Comp. Est.'!F121/13","v":1},"Sabina",{"$f":"'SBB Comp. Est.'!W121","v":13650},{"$f":"AE17*AC17","v":13650},null,"Maintain gravel road surface",null,"year",null,{"$f":"NA()","v":{"$error":"#N/A"}},0,0]
[null,"Maintain airstrip surface",null,"each",null,{"$f":"NA()","v":{"$error":"#N/A"}},0,0,null,"Maintain airstrip surface",null,"each",null,{"$f":"NA()","v":{"$error":"#N/A"}},0,0,null,"Maintain airstrip surface",null,"year",null,{"$f":"NA()","v":{"$error":"#N/A"}},0,0,null,"Maintain airstrip surface","maintence from closure to post-closure (13 years)","year",{"$f":"'SBB Comp. Est.'!F124/13","v":1},"Sabina",{"$f":"'SBB Comp. Est.'!W124","v":3900},{"$f":"AE18*AC18","v":3900},null,"Maintain airstrip surface",null,"year",null,{"$f":"NA()","v":{"$error":"#N/A"}},0,0]
[null,"Other",null,null,null,{"$f":"NA()","v":{"$error":"#N/A"}},{"$f":"IF(ISNA(F19),0,INDEX(IF(UPPER(RIGHT(F19,1))=Low,UnitCostLow, IF(UPPER(RIGHT(F19,1))=High,UnitCostHigh,UnitCostSpecified)),MATCH(UPPER(LEFT(F19,LEN(F19)-1)),CostCode,0)))","v":0},{"$f":"G19*E19","v":0},null,"Other",null,null,null,{"$f":"NA()","v":{"$error":"#N/A"}},{"$f":"IF(ISNA(N19),0,INDEX(IF(UPPER(RIGHT(N19,1))=Low,UnitCostLow, IF(UPPER(RIGHT(N19,1))=High,UnitCostHigh,UnitCostSpecified)),MATCH(UPPER(LEFT(N19,LEN(N19)-1)),CostCode,0)))","v":0},{"$f":"O19*M19","v":0},null,"Other",null,null,null,{"$f":"NA()","v":{"$error":"#N/A"}},{"$f":"IF(ISNA(V19),0,INDEX(IF(UPPER(RIGHT(V19,1))=Low,UnitCostLow, IF(UPPER(RIGHT(V19,1))=High,UnitCostHigh,UnitCostSpecified)),MATCH(UPPER(LEFT(V19,LEN(V19)-1)),CostCode,0)))","v":0},{"$f":"W19*U19","v":0},null,"Other",null,null,null,{"$f":"NA()","v":{"$error":"#N/A"}},{"$f":"IF(ISNA(AD19),0,INDEX(IF(UPPER(RIGHT(AD19,1))=Low,UnitCostLow, IF(UPPER(RIGHT(AD19,1))=High,UnitCostHigh,UnitCostSpecified)),MATCH(UPPER(LEFT(AD19,LEN(AD19)-1)),CostCode,0)))","v":0},{"$f":"AE19*AC19","v":0},null,"Other - Site Access","Float plane access","each",1,"MWH",{"$f":"IF(ISNA(AL19),0,INDEX(IF(UPPER(RIGHT(AL19,1))=Low,UnitCostLow, IF(UPPER(RIGHT(AL19,1))=High,UnitCostHigh,UnitCostSpecified)),MATCH(UPPER(LEFT(AL19,LEN(AL19)-1)),CostCode,0)))","v":9100},{"$f":"AM19*AK19","v":9100}]
[null,"COVER MAINTENANCE",null,null,null,null,null,null,null,"COVER MAINTENANCE",null,null,null,null,null,null,null,"COVER MAINTENANCE",null,null,null,null,null,null,null,"COVER MAINTENANCE",null,null,null,null,null,null,null,"COVER MAINTENANCE"]
[null,"Repair erosion - infill gullies",null,"allow",null,{"$f":"NA()","v":{"$error":"#N/A"}},{"$f":"IF(ISNA(F21),0,INDEX(IF(UPPER(RIGHT(F21,1))=Low,UnitCostLow, IF(UPPER(RIGHT(F21,1))=High,UnitCostHigh,UnitCostSpecified)),MATCH(UPPER(LEFT(F21,LEN(F21)-1)),CostCode,0)))","v":0},{"$f":"G21*E21","v":0},null,"Repair erosion - infill gullies",null,"allow",null,{"$f":"NA()","v":{"$error":"#N/A"}},0,{"$f":"O21*M21","v":0},null,"Repair erosion - infill gullies",null,"allow",null,{"$f":"NA()","v":{"$error":"#N/A"}},{"$f":"IF(ISNA(V21),0,INDEX(IF(UPPER(RIGHT(V21,1))=Low,UnitCostLow, IF(UPPER(RIGHT(V21,1))=High,UnitCostHigh,UnitCostSpecified)),MATCH(UPPER(LEFT(V21,LEN(V21)-1)),CostCode,0)))","v":0},{"$f":"W21*U21","v":0},null,"Repair erosion - infill gullies",null,"allow",null,{"$f":"NA()","v":{"$error":"#N/A"}},{"$f":"IF(ISNA(AD21),0,INDEX(IF(UPPER(RIGHT(AD21,1))=Low,UnitCostLow, IF(UPPER(RIGHT(AD21,1))=High,UnitCostHigh,UnitCostSpecified)),MATCH(UPPER(LEFT(AD21,LEN(AD21)-1)),CostCode,0)))","v":0},{"$f":"AE21*AC21","v":0},null,"Repair erosion - infill gullies",null,"allow",null,{"$f":"NA()","v":{"$error":"#N/A"}},{"$f":"IF(ISNA(AL21),0,INDEX(IF(UPPER(RIGHT(AL21,1))=Low,UnitCostLow, IF(UPPER(RIGHT(AL21,1))=High,UnitCostHigh,UnitCostSpecified)),MATCH(UPPER(LEFT(AL21,LEN(AL21)-1)),CostCode,0)))","v":0},{"$f":"AM21*AK21","v":0}]
[null,"Repair erosion - upgrade diversion ditches",null,"allow",null,{"$f":"NA()","v":{"$error":"#N/A"}},0,0,null,"Repair erosion - upgrade diversion ditches",null,"allow",null,{"$f":"NA()","v":{"$error":"#N/A"}},0,0,null,"Repair erosion - upgrade diversion ditches",null,"allow",null,{"$f":"NA()","v":{"$error":"#N/A"}},0,0,null,"Repair erosion - upgrade diversion ditches",null,"allow",null,{"$f":"NA()","v":{"$error":"#N/A"}},0,0,null,"Repair erosion - upgrade diversion ditches",null,"allow",null,{"$f":"NA()","v":{"$error":"#N/A"}},0,0]
[null,"Remove problem vegetation",null,"allow",null,{"$f":"NA()","v":{"$error":"#N/A"}},0,0,null,"Remove problem vegetation",null,"allow",null,{"$f":"NA()","v":{"$error":"#N/A"}},0,0,null,"Remove problem vegetation",null,"allow",null,{"$f":"NA()","v":{"$error":"#N/A"}},0,0,null,"Remove problem vegetation",null,"allow",null,{"$f":"NA()","v":{"$error":"#N/A"}},0,0,null,"Remove problem vegetation",null,"allow",null,{"$f":"NA()","v":{"$error":"#N/A"}},0,0]
[null,"Repair animal damage",null,"allow",null,{"$f":"NA()","v":{"$error":"#N/A"}},0,0,null,"Repair animal damage",null,"allow",null,{"$f":"NA()","v":{"$error":"#N/A"}},0,0,null,"Repair animal damage",null,"allow",null,{"$f":"NA()","v":{"$error":"#N/A"}},0,0,null,"Repair animal damage",null,"allow",null,{"$f":"NA()","v":{"$error":"#N/A"}},0,0,null,"Repair animal damage",null,"allow",null,{"$f":"NA()","v":{"$error":"#N/A"}},0,0]
[null,"Repair/upgrade access controls",null,"allow",null,{"$f":"NA()","v":{"$error":"#N/A"}},0,0,null,"Repair/upgrade access controls",null,"allow",null,{"$f":"NA()","v":{"$error":"#N/A"}},0,0,null,"Repair/upgrade access controls",null,"allow",null,{"$f":"NA()","v":{"$error":"#N/A"}},0,0,null,"Repair/upgrade access controls",null,"allow",null,{"$f":"NA()","v":{"$error":"#N/A"}},0,0,null,"Repair/upgrade access controls",null,"allow",null,{"$f":"NA()","v":{"$error":"#N/A"}},0,0]
[null,"Other",null,null,null,{"$f":"NA()","v":{"$error":"#N/A"}},0,0,null,"Other",null,null,null,{"$f":"NA()","v":{"$error":"#N/A"}},0,0,null,"Other",null,null,null,{"$f":"NA()","v":{"$error":"#N/A"}},0,0,null,"Other",null,null,null,{"$f":"NA()","v":{"$error":"#N/A"}},0,0,null,"Other",null,null,null,{"$f":"NA()","v":{"$error":"#N/A"}},0,0]
[null,"SPILLWAY MAINTENANCE",null,null,null,null,null,null,null,"SPILLWAY MAINTENANCE",null,null,null,null,null,null,null,"SPILLWAY MAINTENANCE",null,null,null,null,null,null,null,"SPILLWAY MAINTENANCE",null,null,null,null,null,null,null,"SPILLWAY MAINTENANCE"]
[null,"Repair erosion",null,"m3",null,{"$f":"NA()","v":{"$error":"#N/A"}},{"$f":"IF(ISNA(F28),0,INDEX(IF(UPPER(RIGHT(F28,1))=Low,UnitCostLow, IF(UPPER(RIGHT(F28,1))=High,UnitCostHigh,UnitCostSpecified)),MATCH(UPPER(LEFT(F28,LEN(F28)-1)),CostCode,0)))","v":0},{"$f":"G28*E28","v":0},null,"Repair erosion",null,"m3",null,{"$f":"NA()","v":{"$error":"#N/A"}},0,{"$f":"O28*M28","v":0},null,"Repair erosion",null,"m3",null,{"$f":"NA()","v":{"$error":"#N/A"}},{"$f":"IF(ISNA(V28),0,INDEX(IF(UPPER(RIGHT(V28,1))=Low,UnitCostLow, IF(UPPER(RIGHT(V28,1))=High,UnitCostHigh,UnitCostSpecified)),MATCH(UPPER(LEFT(V28,LEN(V28)-1)),CostCode,0)))","v":0},{"$f":"W28*U28","v":0},null,"Repair erosion",null,"m3",null,{"$f":"NA()","v":{"$error":"#N/A"}},{"$f":"IF(ISNA(AD28),0,INDEX(IF(UPPER(RIGHT(AD28,1))=Low,UnitCostLow, IF(UPPER(RIGHT(AD28,1))=High,UnitCostHigh,UnitCostSpecified)),MATCH(UPPER(LEFT(AD28,LEN(AD28)-1)),CostCode,0)))","v":0},{"$f":"AE28*AC28","v":0},null,"Repair erosion",null,"m3",null,{"$f":"NA()","v":{"$error":"#N/A"}},{"$f":"IF(ISNA(AL28),0,INDEX(IF(UPPER(RIGHT(AL28,1))=Low,UnitCostLow, IF(UPPER(RIGHT(AL28,1))=High,UnitCostHigh,UnitCostSpecified)),MATCH(UPPER(LEFT(AL28,LEN(AL28)-1)),CostCode,0)))","v":0},{"$f":"AM28*AK28","v":0}]
[null,"Clear spillway",null,"each",null,{"$f":"NA()","v":{"$error":"#N/A"}},0,{"$f":"G29*E29","v":0},null,"Clear spillway",null,"each",null,{"$f":"NA()","v":{"$error":"#N/A"}},0,{"$f":"O29*M29","v":0},null,"Clear spillway",null,"each",null,{"$f":"NA()","v":{"$error":"#N/A"}},0,{"$f":"W29*U29","v":0},null,"Clear spillway",null,"each",null,{"$f":"NA()","v":{"$error":"#N/A"}},0,{"$f":"AE29*AC29","v":0},null,"Clear spillway",null,"each",null,{"$f":"NA()","v":{"$error":"#N/A"}},0,{"$f":"AM29*AK29","v":0}]
[null,"CWTS MAINTENANCE",null,null,null,null,null,null,null,"CWTS MAINTENANCE",null,null,null,null,null,null,null,"CWTS MAINTENANCE",null,null,null,null,null,null,null,"CWTS MAINTENANCE",null,null,null,null,null,null,null,"CWTS MAINTENANCE"]
[null,"Maintain flow, restore vegetation",null,"allow",null,{"$f":"NA()","v":{"$error":"#N/A"}},{"$f":"IF(ISNA(F31),0,INDEX(IF(UPPER(RIGHT(F31,1))=Low,UnitCostLow, IF(UPPER(RIGHT(F31,1))=High,UnitCostHigh,UnitCostSpecified)),MATCH(UPPER(LEFT(F31,LEN(F31)-1)),CostCode,0)))","v":0},{"$f":"G31*E31","v":0},null,"Maintain flow, restore vegetation",null,"allow",null,{"$f":"NA()","v":{"$error":"#N/A"}},{"$f":"IF(ISNA(N31),0,INDEX(IF(UPPER(RIGHT(N31,1))=Low,UnitCostLow, IF(UPPER(RIGHT(N31,1))=High,UnitCostHigh,UnitCostSpecified)),MATCH(UPPER(LEFT(N31,LEN(N31)-1)),CostCode,0)))","v":0},{"$f":"O31*M31","v":0},null,"Maintain flow, restore vegetation",null,"allow",null,{"$f":"NA()","v":{"$error":"#N/A"}},{"$f":"IF(ISNA(V31),0,INDEX(IF(UPPER(RIGHT(V31,1))=Low,UnitCostLow, IF(UPPER(RIGHT(V31,1))=High,UnitCostHigh,UnitCostSpecified)),MATCH(UPPER(LEFT(V31,LEN(V31)-1)),CostCode,0)))","v":0},{"$f":"W31*U31","v":0},null,"Maintain flow, restore vegetation",null,"allow",null,{"$f":"NA()","v":{"$error":"#N/A"}},{"$f":"IF(ISNA(AD31),0,INDEX(IF(UPPER(RIGHT(AD31,1))=Low,UnitCostLow, IF(UPPER(RIGHT(AD31,1))=High,UnitCostHigh,UnitCostSpecified)),MATCH(UPPER(LEFT(AD31,LEN(AD31)-1)),CostCode,0)))","v":0},{"$f":"AE31*AC31","v":0},null,"Maintain flow, restore vegetation",null,"allow",null,{"$f":"NA()","v":{"$error":"#N/A"}},{"$f":"IF(ISNA(AL31),0,INDEX(IF(UPPER(RIGHT(AL31,1))=Low,UnitCostLow, IF(UPPER(RIGHT(AL31,1))=High,UnitCostHigh,UnitCostSpecified)),MATCH(UPPER(LEFT(AL31,LEN(AL31)-1)),CostCode,0)))","v":0},{"$f":"AM31*AK31","v":0}]
[null,"POST-CLOSURE WATER TREATMENT",null,null,null,null,null,null,null,"POST-CLOSURE WATER TREATMENT",null,null,null,null,null,null,null,"POST-CLOSURE WATER TREATMENT",null,null,null,null,null,null,null,"POST-CLOSURE WATER TREATMENT",null,null,null,null,null,null,null,"POST-CLOSURE WATER TREATMENT"]
[null,"Annual water treatment cost, from \"Water Treatment\"","Treatment for Closure Period (7 years)","LS",1,{"$f":"NA()","v":{"$error":"#N/A"}},{"$f":"AnnualTreat1Cost","v":953571.81009999989},{"$f":"G33*E33","v":953571.81009999989},null,"Annual water treatment cost, from \"Water Treatment\"",null,"LS",null,{"$f":"NA()","v":{"$error":"#N/A"}},{"$f":"IF(ISNA(N33),0,INDEX(IF(UPPER(RIGHT(N33,1))=Low,UnitCostLow, IF(UPPER(RIGHT(N33,1))=High,UnitCostHigh,UnitCostSpecified)),MATCH(UPPER(LEFT(N33,LEN(N33)-1)),CostCode,0)))","v":0},{"$f":"O33*M33","v":0},null,"Annual water treatment cost, from \"Water Treatment\"",null,"LS",null,{"$f":"NA()","v":{"$error":"#N/A"}},0,{"$f":"W33*U33","v":0},null,"Annual water treatment cost, from \"Water Treatment\"",null,"LS",null,{"$f":"NA()","v":{"$error":"#N/A"}},{"$f":"IF(ISNA(AD33),0,INDEX(IF(UPPER(RIGHT(AD33,1))=Low,UnitCostLow, IF(UPPER(RIGHT(AD33,1))=High,UnitCostHigh,UnitCostSpecified)),MATCH(UPPER(LEFT(AD33,LEN(AD33)-1)),CostCode,0)))","v":0},{"$f":"AE33*AC33","v":0},null,"Annual water treatment cost, from \"Water Treatment\"",null,"LS",null,{"$f":"NA()","v":{"$error":"#N/A"}},{"$f":"IF(ISNA(AL33),0,INDEX(IF(UPPER(RIGHT(AL33,1))=Low,UnitCostLow, IF(UPPER(RIGHT(AL33,1))=High,UnitCostHigh,UnitCostSpecified)),MATCH(UPPER(LEFT(AL33,LEN(AL33)-1)),CostCode,0)))","v":0},{"$f":"AM33*AK33","v":0}]
[]
[null,"Subtotal, Annual post-closure costs",null,null,null,null,null,{"$f":"SUM(H5:H34)+0.0001","v":953571.81019999983},null,"Subtotal, Annual post-closure costs",null,null,null,null,null,{"$f":"SUM(P5:P34)+0.0001","v":20000.000100000001},null,"Subtotal, Annual post-closure costs",null,null,null,null,null,{"$f":"SUM(X5:X34)+0.0001","v":28800.000100000001},null,"Subtotal, Annual post-closure costs",null,null,null,null,null,{"$f":"SUM(AF5:AF34)+0.0001","v":78370.000100000005},null,"Subtotal, Annual post-closure costs",null,null,null,null,null,{"$f":"SUM(AN5:AN34)+0.0001","v":69100.000100000005}]
[null,"Discount rate for calculation of net present value of post-closure cost, %",null,null,null,0.03,null,null,null,"Discount rate for calculation of net present value of post-closure cost, %",null,null,null,0.03,null,null,null,"Discount rate for calculation of net present value of post-closure cost, %",null,null,null,0.03,null,null,null,"Discount rate for calculation of net present value of post-closure cost, %",null,null,null,0.03,null,null,null,"Discount rate for calculation of net present value of post-closure cost, %",null,null,null,0.03]
[null,"Number of years of post-closure activity",null,null,null,7,"years",null,null,"Number of years of post-closure activity",null,null,null,8,"years",null,null,"Number of years of post-closure activity",null,null,null,10,"years",null,null,"Number of years of post-closure activity",null,null,null,13,"years",null,null,"Number of years of post-closure activity",null,null,null,"See Long Term","years"]
[null,"Present Value of payment stream",null,null,null,null,null,{"$f":"PV(F36,F37,H35)*-1","v":5941022.19566881},null,"Present Value of payment stream",null,null,null,null,null,{"$f":"PV(N36,N37,P35)*-1","v":140393.84449267871},null,"Present Value of payment stream",null,null,null,null,null,{"$f":"PV(V36,V37,X35)*-1","v":245669.84255216413},null,"Present Value of payment stream",null,null,null,null,null,{"$f":"PV(AD36,AD37,AF35)*-1","v":833461.45055465051},null,"Present Value of payment stream",null,null,null,null,null,{"$f":"'LongTerm Monitoring'!F47","v":407695.86199951003}]
[]
[null,"Combined NPV of payment stream ",null,null,null,null,null,{"$f":"P38+X38+AF38+H38+AN38","v":7568243.1952678133}]

{"sheet":"LongTerm Monitoring","index":12,"n_rows":47,"n_cols":6,"rows_kept":47,"cut":false,"hidden":false,"merged":[[26,0,45,0],[46,1,46,3],[1,4,1,5],[3,0,12,0],[13,0,14,0],[15,0,20,0],[21,0,25,0],[0,1,0,2],[1,3,2,3],[1,2,2,2],[1,1,2,1],[1,0,2,0]]}
[null,"Annual Discout Rate:",null,0.03]
["Project Phase","Project Year ","Closure Year","Post-Closure Monitoring Year","Long Term Monitoring (GTCs, physical, water) "]
[null,null,null,null,"One Time Cost","Yearly Total NPV"]
["Operations",1,null,null,null,{"$f":"E4/(1+$D$1)^($C4-1)","v":0}]
[null,{"$f":"B4+1","v":2},null,null,null,0]
[null,{"$f":"B5+1","v":3},null,null,null,0]
[null,4,null,null,null,0]
[null,5,null,null,null,0]
[null,6,null,null,null,0]
[null,7,null,null,null,0]
[null,8,null,null,null,0]
[null,9,null,null,null,0]
[null,10,null,null,null,0]
["Active Closure",11,1,null,null,0]
[null,12,{"$f":"C14+1","v":2},null,null,0]
["Passive Closure",13,{"$f":"C15+1","v":3},null,null,0]
[null,14,4,null,null,0]
[null,15,5,null,null,0]
[null,16,6,null,null,0]
[null,17,7,null,null,0]
[null,18,8,null,null,0]
["Post Closure",19,9,1,{"$f":"PostClosure!AN$35","v":69100.000100000005},54548.178170033891]
[null,20,10,{"$f":"D22+1","v":2},{"$f":"PostClosure!AN$35","v":69100.000100000005},52959.396281586298]
[null,21,11,{"$f":"D23+1","v":3},{"$f":"PostClosure!AN$35","v":69100.000100000005},51416.889593773107]
[null,22,12,4,{"$f":"PostClosure!AN$35","v":69100.000100000005},49919.310285216605]
[null,23,13,5,{"$f":"PostClosure!AN$35","v":69100.000100000005},48465.349791472443]
["Beyond Post Closure",24,14,6,null,0]
[null,25,15,7,{"$f":"PostClosure!AN$35","v":69100.000100000005},45683.240448178374]
[null,26,16,8,null,0]
[null,27,17,9,null,0]
[null,28,18,10,{"$f":"PostClosure!AN$35","v":69100.000100000005},41806.636468375342]
[null,29,19,11,null,0]
[null,30,20,12,null,0]
[null,31,21,13,null,0]
[null,32,22,14,null,0]
[null,33,23,15,{"$f":"PostClosure!AN$35","v":69100.000100000005},36062.771863175913]
[null,34,24,16,null,0]
[null,35,25,17,null,0]
[null,36,26,18,null,0]
[null,37,27,19,null,0]
[null,38,28,20,null,0]
[null,39,29,21,null,0]
[null,40,30,22,null,0]
[null,41,31,23,null,0]
[null,42,32,24,null,0]
[null,43,33,25,{"$f":"PostClosure!AN$35","v":69100.000100000005},26834.089097698037]
[null,"Net Present Value:",null,null,null,{"$f":"SUM(F4:F46)","v":407695.86199951003}]

{"sheet":"Mobilization","index":13,"n_rows":61,"n_cols":11,"rows_kept":61,"cut":false,"hidden":false,"merged":[]}
[1,"Mobilization/Demobilization:"]
[]
[null,"ACTIVITY/MATERIAL","Notes","Units","Quantity","Cost Code","Unit Cost","Cost",null,"ICRP Section ","Comments"]
[null,"MOBILIZE HEAVY EQUIPMENT","Assumes mining equipment on abandoned mine site is operable and available."]
[null,"Light duty vehicles","Purchase pickups and Vans","each",null,{"$f":"NA()","v":{"$error":"#N/A"}},{"$f":"IF(ISNA(F5),0,INDEX(IF(UPPER(RIGHT(F5,1))=Low,UnitCostLow, IF(UPPER(RIGHT(F5,1))=High,UnitCostHigh,UnitCostSpecified)),MATCH(UPPER(LEFT(F5,LEN(F5)-1)),CostCode,0)))","v":0},{"$f":"G5*E5","v":0}]
[null,"Telehandlers","Purchase (standby)","each",null,{"$f":"NA()","v":{"$error":"#N/A"}},0,0]
[null,"Excavators","Purchase (320 Ex)","each",null,{"$f":"NA()","v":{"$error":"#N/A"}},0,0]
[null,"Dump trucks","Purchase 30T","each",null,{"$f":"NA()","v":{"$error":"#N/A"}},0,0]
[null,"Dozers","Purchase (D6T)","each",null,{"$f":"NA()","v":{"$error":"#N/A"}},0,0]
[null,"Grader","Purchase (140M)","each",null,{"$f":"NA()","v":{"$error":"#N/A"}},0,0]
[null,"Demolition shears","For a 320 Exc","each",null,{"$f":"NA()","v":{"$error":"#N/A"}},{"$f":"IF(ISNA(F11),0,INDEX(IF(UPPER(RIGHT(F11,1))=Low,UnitCostLow, IF(UPPER(RIGHT(F11,1))=High,UnitCostHigh,UnitCostSpecified)),MATCH(UPPER(LEFT(F11,LEN(F11)-1)),CostCode,0)))","v":0},{"$f":"G11*E11","v":0}]
[null,"Crane","Purchase","each",null,{"$f":"NA()","v":{"$error":"#N/A"}},{"$f":"IF(ISNA(F12),0,INDEX(IF(UPPER(RIGHT(F12,1))=Low,UnitCostLow, IF(UPPER(RIGHT(F12,1))=High,UnitCostHigh,UnitCostSpecified)),MATCH(UPPER(LEFT(F12,LEN(F12)-1)),CostCode,0)))","v":0},{"$f":"G12*E12","v":0}]
[null,"Loader","Purchase (966 Loader)","each",null,{"$f":"NA()","v":{"$error":"#N/A"}},{"$f":"IF(ISNA(F13),0,INDEX(IF(UPPER(RIGHT(F13,1))=Low,UnitCostLow, IF(UPPER(RIGHT(F13,1))=High,UnitCostHigh,UnitCostSpecified)),MATCH(UPPER(LEFT(F13,LEN(F13)-1)),CostCode,0)))","v":0},0]
[null,"Manlifts","Ourchase (standby)","each",null,{"$f":"NA()","v":{"$error":"#N/A"}},{"$f":"IF(ISNA(F14),0,INDEX(IF(UPPER(RIGHT(F14,1))=Low,UnitCostLow, IF(UPPER(RIGHT(F14,1))=High,UnitCostHigh,UnitCostSpecified)),MATCH(UPPER(LEFT(F14,LEN(F14)-1)),CostCode,0)))","v":0},0]
[null,"Small Equipment",null,"LS",null,{"$f":"NA()","v":{"$error":"#N/A"}},{"$f":"IF(ISNA(F15),0,INDEX(IF(UPPER(RIGHT(F15,1))=Low,UnitCostLow, IF(UPPER(RIGHT(F15,1))=High,UnitCostHigh,UnitCostSpecified)),MATCH(UPPER(LEFT(F15,LEN(F15)-1)),CostCode,0)))","v":0},0]
[null,"Compactor",null,"each",null,{"$f":"NA()","v":{"$error":"#N/A"}},{"$f":"IF(ISNA(F16),0,INDEX(IF(UPPER(RIGHT(F16,1))=Low,UnitCostLow, IF(UPPER(RIGHT(F16,1))=High,UnitCostHigh,UnitCostSpecified)),MATCH(UPPER(LEFT(F16,LEN(F16)-1)),CostCode,0)))","v":0},{"$f":"G16*E16","v":0}]
[null,"MOBILIZE MISC. EQUIPMENT","Assumes mining equipment on abandoned mine site is operable and available."]
[null,"Pump shipping",null,"each",null,{"$f":"NA()","v":{"$error":"#N/A"}},{"$f":"IF(ISNA(F18),0,INDEX(IF(UPPER(RIGHT(F18,1))=Low,UnitCostLow, IF(UPPER(RIGHT(F18,1))=High,UnitCostHigh,UnitCostSpecified)),MATCH(UPPER(LEFT(F18,LEN(F18)-1)),CostCode,0)))","v":0},{"$f":"G18*E18","v":0}]
[null,"Pipe shipping",null,"m",null,{"$f":"NA()","v":{"$error":"#N/A"}},{"$f":"IF(ISNA(F19),0,INDEX(IF(UPPER(RIGHT(F19,1))=Low,UnitCostLow, IF(UPPER(RIGHT(F19,1))=High,UnitCostHigh,UnitCostSpecified)),MATCH(UPPER(LEFT(F19,LEN(F19)-1)),CostCode,0)))","v":0},{"$f":"G19*E19","v":0}]
[null,"Minor tools and equipment",null,"allow",null,{"$f":"NA()","v":{"$error":"#N/A"}},{"$f":"IF(ISNA(F20),0,INDEX(IF(UPPER(RIGHT(F20,1))=Low,UnitCostLow, IF(UPPER(RIGHT(F20,1))=High,UnitCostHigh,UnitCostSpecified)),MATCH(UPPER(LEFT(F20,LEN(F20)-1)),CostCode,0)))","v":0},{"$f":"G20*E20","v":0}]
[null,"Truck tires ",null,"allow",null,{"$f":"NA()","v":{"$error":"#N/A"}},{"$f":"IF(ISNA(F21),0,INDEX(IF(UPPER(RIGHT(F21,1))=Low,UnitCostLow, IF(UPPER(RIGHT(F21,1))=High,UnitCostHigh,UnitCostSpecified)),MATCH(UPPER(LEFT(F21,LEN(F21)-1)),CostCode,0)))","v":0},{"$f":"G21*E21","v":0}]
[null,"Other",null,null,null,{"$f":"NA()","v":{"$error":"#N/A"}},{"$f":"IF(ISNA(F22),0,INDEX(IF(UPPER(RIGHT(F22,1))=Low,UnitCostLow, IF(UPPER(RIGHT(F22,1))=High,UnitCostHigh,UnitCostSpecified)),MATCH(UPPER(LEFT(F22,LEN(F22)-1)),CostCode,0)))","v":0},0]
[null,"MOBILIZE CAMP"]
[null,"Build 20 Person Camp","Goose Closure Camp","LS",{"$f":"'SBB Comp. Est.'!F109","v":1},"Sabina",{"$f":"'SBB Comp. Est.'!W116","v":19250},{"$f":"G24*E24","v":19250}]
[null,"Build 20 Person Power Plant","Goose Closure Camp","LS",{"$f":"'SBB Comp. Est.'!F110","v":1},"Sabina",{"$f":"'SBB Comp. Est.'!W117","v":19250},19250]
[null,"Reclamation activities",null,"allow",null,{"$f":"NA()","v":{"$error":"#N/A"}},{"$f":"IF(ISNA(F26),0,INDEX(IF(UPPER(RIGHT(F26,1))=Low,UnitCostLow, IF(UPPER(RIGHT(F26,1))=High,UnitCostHigh,UnitCostSpecified)),MATCH(UPPER(LEFT(F26,LEN(F26)-1)),CostCode,0)))","v":0},{"$f":"G26*E26","v":0}]
[null,"Long term reclamation activities (eg pump flooding)",null,"allow",null,{"$f":"NA()","v":{"$error":"#N/A"}},{"$f":"IF(ISNA(F27),0,INDEX(IF(UPPER(RIGHT(F27,1))=Low,UnitCostLow, IF(UPPER(RIGHT(F27,1))=High,UnitCostHigh,UnitCostSpecified)),MATCH(UPPER(LEFT(F27,LEN(F27)-1)),CostCode,0)))","v":0},{"$f":"G27*E27","v":0}]
[null," WORKER ACCOMODATIONS"]
[null,"Camp operation",null,"mandays",{"$f":"'SBB Comp. Est.'!F118","v":12000},"Sabina ",{"$f":"'SBB Comp. Est.'!W118","v":110},{"$f":"G29*E29","v":1320000}]
[null,"Reclamation activities",null,"manmonths",null,{"$f":"NA()","v":{"$error":"#N/A"}},{"$f":"IF(ISNA(F30),0,INDEX(IF(UPPER(RIGHT(F30,1))=Low,UnitCostLow, IF(UPPER(RIGHT(F30,1))=High,UnitCostHigh,UnitCostSpecified)),MATCH(UPPER(LEFT(F30,LEN(F30)-1)),CostCode,0)))","v":0},{"$f":"G30*E30","v":0}]
[null,"Long term reclamation activities (eg pump flooding)",null,"manmonths",null,{"$f":"NA()","v":{"$error":"#N/A"}},{"$f":"IF(ISNA(F31),0,INDEX(IF(UPPER(RIGHT(F31,1))=Low,UnitCostLow, IF(UPPER(RIGHT(F31,1))=High,UnitCostHigh,UnitCostSpecified)),MATCH(UPPER(LEFT(F31,LEN(F31)-1)),CostCode,0)))","v":0},{"$f":"G31*E31","v":0}]
[null,"MOBILIZE FUEL"]
[null,"Fuel freight - reclamation activities",null,"litre",null,{"$f":"NA()","v":{"$error":"#N/A"}},{"$f":"IF(ISNA(F33),0,INDEX(IF(UPPER(RIGHT(F33,1))=Low,UnitCostLow, IF(UPPER(RIGHT(F33,1))=High,UnitCostHigh,UnitCostSpecified)),MATCH(UPPER(LEFT(F33,LEN(F33)-1)),CostCode,0)))","v":0},{"$f":"G33*E33","v":0}]
[null,"Fuel freight - long term reclamation activities",null,"litre",null,{"$f":"NA()","v":{"$error":"#N/A"}},{"$f":"IF(ISNA(F34),0,INDEX(IF(UPPER(RIGHT(F34,1))=Low,UnitCostLow, IF(UPPER(RIGHT(F34,1))=High,UnitCostHigh,UnitCostSpecified)),MATCH(UPPER(LEFT(F34,LEN(F34)-1)),CostCode,0)))","v":0},{"$f":"G34*E34","v":0}]
[null,"Oil & Other",null,"litre",null,{"$f":"NA()","v":{"$error":"#N/A"}},{"$f":"IF(ISNA(F35),0,INDEX(IF(UPPER(RIGHT(F35,1))=Low,UnitCostLow, IF(UPPER(RIGHT(F35,1))=High,UnitCostHigh,UnitCostSpecified)),MATCH(UPPER(LEFT(F35,LEN(F35)-1)),CostCode,0)))","v":0},{"$f":"G35*E35","v":0}]
[null,"Fuel freight accomodations",null,"litre",null,{"$f":"NA()","v":{"$error":"#N/A"}},{"$f":"IF(ISNA(F36),0,INDEX(IF(UPPER(RIGHT(F36,1))=Low,UnitCostLow, IF(UPPER(RIGHT(F36,1))=High,UnitCostHigh,UnitCostSpecified)),MATCH(UPPER(LEFT(F36,LEN(F36)-1)),CostCode,0)))","v":0},{"$f":"G36*E36","v":0}]
[null,"GENERAL CONSTRUCTION INDIRECT"]
[null,"Tooling, consumables, office & safety supplies","covered in Summary tab indirects","mandays",null,{"$f":"NA()","v":{"$error":"#N/A"}},{"$f":"IF(ISNA(F38),0,INDEX(IF(UPPER(RIGHT(F38,1))=Low,UnitCostLow, IF(UPPER(RIGHT(F38,1))=High,UnitCostHigh,UnitCostSpecified)),MATCH(UPPER(LEFT(F38,LEN(F38)-1)),CostCode,0)))","v":0},{"$f":"G38*E38","v":0}]
[null,"DEMOBILIZE HEAVY EQUIPMENT"]
[null,"Excavators",null,"km",null,{"$f":"NA()","v":{"$error":"#N/A"}},{"$f":"IF(ISNA(F40),0,INDEX(IF(UPPER(RIGHT(F40,1))=Low,UnitCostLow, IF(UPPER(RIGHT(F40,1))=High,UnitCostHigh,UnitCostSpecified)),MATCH(UPPER(LEFT(F40,LEN(F40)-1)),CostCode,0)))","v":0},{"$f":"G40*E40","v":0}]
[null,"Dump trucks",null,"km",null,{"$f":"NA()","v":{"$error":"#N/A"}},{"$f":"IF(ISNA(F41),0,INDEX(IF(UPPER(RIGHT(F41,1))=Low,UnitCostLow, IF(UPPER(RIGHT(F41,1))=High,UnitCostHigh,UnitCostSpecified)),MATCH(UPPER(LEFT(F41,LEN(F41)-1)),CostCode,0)))","v":0},0]
[null,"Dozers",null,"km",null,{"$f":"NA()","v":{"$error":"#N/A"}},0,0]
[null,"Demolition shears",null,"km",null,{"$f":"NA()","v":{"$error":"#N/A"}},0,0]
[null,"Crane",null,"km",null,{"$f":"NA()","v":{"$error":"#N/A"}},0,0]
[null,"Loader",null,"km",null,{"$f":"NA()","v":{"$error":"#N/A"}},{"$f":"IF(ISNA(F45),0,INDEX(IF(UPPER(RIGHT(F45,1))=Low,UnitCostLow, IF(UPPER(RIGHT(F45,1))=High,UnitCostHigh,UnitCostSpecified)),MATCH(UPPER(LEFT(F45,LEN(F45)-1)),CostCode,0)))","v":0},{"$f":"G45*E45","v":0}]
[null,"Compactor",null,"each",null,{"$f":"NA()","v":{"$error":"#N/A"}},{"$f":"IF(ISNA(F46),0,INDEX(IF(UPPER(RIGHT(F46,1))=Low,UnitCostLow, IF(UPPER(RIGHT(F46,1))=High,UnitCostHigh,UnitCostSpecified)),MATCH(UPPER(LEFT(F46,LEN(F46)-1)),CostCode,0)))","v":0},{"$f":"G46*E46","v":0}]
[null,"Light duty vehicles",null,"km",null,{"$f":"NA()","v":{"$error":"#N/A"}},0,0]
[null,"Other",null,"km",null,{"$f":"NA()","v":{"$error":"#N/A"}},0,0]
[null,"DEMOBILIZE CAMP"]
[null,"Food and Freight",null,"kg",{"$f":"'SBB Comp. Est.'!F165","v":27599.999999999996},"Sabina",{"$f":"'SBB Comp. Est.'!W165","v":12},{"$f":"G50*E50","v":331199.99999999994}]
[null,"Freight",null,"Lot",{"$f":"'SBB Comp. Est.'!F166","v":1},"Sabina",{"$f":"'SBB Comp. Est.'!W166","v":500000},500000]
[null,"Mobilization",null,"tonnes",{"$f":"'SBB Comp. Est.'!F167","v":500},"Sabina",{"$f":"'SBB Comp. Est.'!U167","v":1500},{"$f":"G52*E52","v":750000}]
[null,"MOBILZE & DEMOBILIZE WORKERS"]
[null,"Crew travel time - inbound & outbound ","16 manhours per rotation","manhours",{"$f":"(E55+E56)*16","v":6864},"lab-sh",{"$f":"Unit_Costs!G81","v":49.6},{"$f":"G54*E54","v":340454.40000000002}]
[null,"Crew transportation - in& outbound from Yellowknife","28 day rotations - 12,000 man days - 2/3","each",{"$f":"'SBB Comp. Est.'!F172*2/3","v":286},"Sabina",{"$f":"'SBB Comp. Est.'!W172","v":572.45555555555552},{"$f":"G55*E55","v":163722.28888888887}]
[null,"Crew transportation - in& outbound from south","28 day rotations - 12,000 man days - 1/3","each",{"$f":"'SBB Comp. Est.'!F172*1/3","v":143},"Sabina",{"$f":"'SBB Comp. Est.'!W172+550","v":1122.4555555555555},{"$f":"G56*E56","v":160511.14444444445}]
[null,"WINTER ROAD"]
[null,"Construction and operation","Assumes construction and maintance of 2-160 km winter ice roads; once during Active Closure and once in approximately Year 18.","km",{"$f":"160*2","v":320},"WRCL",{"$f":"IF(ISNA(F58),0,INDEX(IF(UPPER(RIGHT(F58,1))=Low,UnitCostLow, IF(UPPER(RIGHT(F58,1))=High,UnitCostHigh,UnitCostSpecified)),MATCH(UPPER(LEFT(F58,LEN(F58)-1)),CostCode,0)))","v":2000},{"$f":"G58*E58","v":640000},null,"Section 8"]
[null,"Limited winter use",null,"km",null,{"$f":"NA()","v":{"$error":"#N/A"}},{"$f":"IF(ISNA(F59),0,INDEX(IF(UPPER(RIGHT(F59,1))=Low,UnitCostLow, IF(UPPER(RIGHT(F59,1))=High,UnitCostHigh,UnitCostSpecified)),MATCH(UPPER(LEFT(F59,LEN(F59)-1)),CostCode,0)))","v":0},{"$f":"G59*E59","v":0}]
[null,"Winter road tarriff",null,"km",null,{"$f":"NA()","v":{"$error":"#N/A"}},{"$f":"IF(ISNA(F60),0,INDEX(IF(UPPER(RIGHT(F60,1))=Low,UnitCostLow, IF(UPPER(RIGHT(F60,1))=High,UnitCostHigh,UnitCostSpecified)),MATCH(UPPER(LEFT(F60,LEN(F60)-1)),CostCode,0)))","v":0},{"$f":"G60*E60","v":0}]
[null,null,null,null,null,null,"Total",{"$f":"SUM(H5:H60)+0.0001","v":4244387.8334333329}]

{"sheet":"SBB Comp. Est.","index":14,"n_rows":174,"n_cols":24,"rows_kept":174,"cut":false,"hidden":false,"merged":[]}
["Sabina Closure Component Estimating"]
[]
[null,null,null,null,null,null,null,"Labour",null,null,null,null,"Material",null,"Fixed Equipment",null,"Mobile Equip",null,"Const Equip Use",null,"Other",null,"Total"]
["Code","Description","NOTES","EQUIPMENT\nNUMBER","ESTIMATE SOURCE\nDOCUMENT","Qty","Unit of Measure","Unit Man-hrs","Prod Fact","Total Man-hrs","Unit Cost","Total Cost","Unit Cost","Total Cost","Unit Cost","Total Cost","Unit Cost","Total Cost","Unit Cost","Total Cost","Unit Cost","Total Cost","Unit Cost","Total Cost"]
[null,"Open Pit Closure"]
[null,"Place Boulder Fence"]
[null,"Umwelt Open Pit",null,null,"x",1635,"m",0.06,1,{"$f":"F7*H7*I7","v":98.1},95,{"$f":"J7*K7","v":9319.5},0,{"$f":"F7*M7","v":0},0,{"$f":"F7*O7","v":0},0,{"$f":"F7*Q7","v":0},175,{"$f":"S7*J7","v":17167.5},null,{"$f":"$F7*U7","v":0},{"$f":"IF(F7>0,X7/F7,0)","v":16.2},{"$f":"L7+N7+P7+R7+T7+V7","v":26487}]
[null,"Echo open pit",null,null,"x",750,"m",0.06,1,{"$f":"F8*H8*I8","v":45},95,4275,0,0,0,0,0,0,175,{"$f":"S8*J8","v":7875},null,0,16.2,12150]
[null,"Goose open pit",null,null,"x",1900,"m",0.06,1,114,95,10830,0,0,0,0,0,0,175,19950,null,0,16.2,30780]
[null,"Llama open pit","Permieter needed only where pit edge will not abute the final flooded lake footprint. i.e. 400m length.",null,"x",400,"m",0.06,1,{"$f":"F10*H10*I10","v":24},95,{"$f":"J10*K10","v":2280},0,{"$f":"F10*M10","v":0},0,{"$f":"F10*O10","v":0},0,{"$f":"F10*Q10","v":0},175,{"$f":"S10*J10","v":4200},null,{"$f":"$F10*U10","v":0},{"$f":"IF(F10>0,X10/F10,0)","v":16.2},{"$f":"L10+N10+P10+R10+T10+V10","v":6480}]
[null,"Remove Pump and Pipeline"]
[null,"Umwelt pit sump","Occurs during Operations",null,"x",1740,"m",0.04,1,{"$f":"F12*H12*I12","v":69.600000000000009},95,{"$f":"J12*K12","v":6612.0000000000009},0,{"$f":"F12*M12","v":0},0,{"$f":"F12*O12","v":0},0,{"$f":"F12*Q12","v":0},155,{"$f":"S12*J12","v":10788.000000000002},null,0,{"$f":"IF(F12>0,X12/F12,0)","v":10.000000000000002},{"$f":"L12+N12+P12+R12+T12+V12","v":17400.000000000004}]
[null,"Llama pit sump","Occurs during Operations",null,"x",2850,"m",0.04,1,114,95,10830,0,0,0,0,0,0,155,{"$f":"S13*J13","v":17670},null,0,10,28500]
[null,"Goose pit sump",null,null,"x",4325,"m",0.04,1,173,95,16435,0,0,0,0,0,0,155,26815,null,0,10,43250]
[null,"Echo pit sump","Occurs during Operations",null,"x",820,"m",0.04,1,32.799999999999997,95,3115.9999999999995,0,0,0,0,0,0,155,5084,null,0,10,8200]
[null,"Breech Pits into Receiving Waters"]
[null,"Umwelt open pit",null,null,"x",1200,"m3",0.12,1,{"$f":"F17*H17*I17","v":144},null,{"$f":"J17*K17","v":0},0,{"$f":"F17*M17","v":0},0,{"$f":"F17*O17","v":0},0,{"$f":"F17*Q17","v":0},5,{"$f":"S17*F17","v":6000},null,0,{"$f":"IF(F17>0,X17/F17,0)","v":5},{"$f":"L17+N17+P17+R17+T17+V17","v":6000}]
[null,"Llama open pit","Natural drainage connection",null,"x",0,"m3",0.12,1,0,null,0,0,0,0,0,0,0,5,0,null,0,0,{"$f":"L18+N18+P18+R18+T18+V18","v":0}]
[null,"Echo open pit","Natural drainage connection",null,"x",0,"m3",0.12,1,0,null,0,0,0,0,0,0,0,5,0,null,0,0,0]
[null,"Goose open pit",null,null,"x",600,"m3",0.12,1,72,null,0,0,0,0,0,0,0,5,3000,null,0,5,3000]
[null,"Landfill Mobile Equipment"]
[null,"Goose Site Mobile Equipment",null,null,"x",41,"units",24,1,984,95,93480,0,0,0,0,0,0,0,0,null,0,2280,93480]
[null,"Underground Closure"]
[null,"Saline Water Pond (SWP) / WTP"]
[null,"Relocate pipeline to Umwelt UG from Llama UG",null,null,"x",800,"m",0.04,1,32,95,{"$f":"J25*K25","v":3040},0,{"$f":"F25*M25","v":0},0,{"$f":"F25*O25","v":0},0,{"$f":"F25*Q25","v":0},155,{"$f":"S25*J25","v":4960},null,{"$f":"$F25*U25","v":0},{"$f":"IF(F25>0,X25/F25,0)","v":10},{"$f":"L25+N25+P25+R25+T25+V25","v":8000}]
[null,"Dewater SWP to Umwelt UG",null,null,"x",763134,"m3",1,1,153,95,{"$f":"J26*K26","v":14535},0,{"$f":"F26*M26","v":0},0,{"$f":"F26*O26","v":0},0,{"$f":"F26*Q26","v":0},null,{"$f":"S26*250","v":0},0.11,{"$f":"$F26*U26","v":83944.74},{"$f":"IF(F26>0,X26/F26,0)","v":0.12904645842014639},{"$f":"L26+N26+P26+R26+T26+V26","v":98479.74}]
[null,"Decommission SWP to Umwelt UG pipeline",null,null,"x",1200,"m",0.04,1,{"$f":"H27*I27*F27","v":48},95,4560,0,0,0,0,0,0,155,{"$f":"S27*J27","v":7440},null,0,{"$f":"IF(F27>0,X27/F27,0)","v":10},12000]
[null,"Adjust pipeline to route to Llama UG","Completed during Operations",null,"x",500,"m",{"$f":"0.03","v":0.03},1,{"$f":"F28*H28*I28+50","v":65},95,6175,0,0,0,0,0,0,null,0,null,0,{"$f":"IF(F28>0,X28/F28,0)","v":12.35},6175]
[null,"Dewater SWP to Llama UG",null,null,"x",324234,"m3",null,1,80,95,7600,0,0,0,0,0,0,null,0,0.11,35665.74,0.13343986133471505,43265.74]
[null,"Adjust pipeline to route to Goose UG",null,null,"x",4500,"m",0.04,1,{"$f":"F30*H30*I30+50","v":230},95,{"$f":"J30*K30","v":21850},0,{"$f":"F30*M30","v":0},0,{"$f":"F30*O30","v":0},0,{"$f":"F30*Q30","v":0},155,{"$f":"S30*J30","v":35650},null,{"$f":"$F30*U30","v":0},{"$f":"IF(F30>0,X30/F30,0)","v":12.777777777777779},{"$f":"L30+N30+P30+R30+T30+V30","v":57500}]
[null,"Dewater SWP to Goose UG",null,null,"x",391630,"m3",null,1,215,95,20425,0,0,0,0,0,0,null,{"$f":"S31*F31","v":0},0.11,43079.3,{"$f":"IF(F31>0,X31/F31,0)","v":0.16215381865536349},63504.3]
[null,"Decommission SWP to Goose UG pipelines",null,null,"x",10800,"m",0.04,1,{"$f":"H32*I32*F32","v":432},95,41040,0,0,0,0,0,0,155,{"$f":"S32*J32","v":66960},null,0,10,108000]
[null,"Breach SWP Diversion Berms and Containment Dams",null,null,"x",{"$f":"24*5+24*5+19*5*2","v":430},"m3",0.12,1,{"$f":"H33*I33*F33","v":51.6},null,0,0,0,0,0,0,0,8,{"$f":"S33*F33","v":3440},null,0,8,3440]
[null,"Decomission WTP-Goose Lake pipeline",null,null,"x",1140,"m",0.04,1,{"$f":"H34*I34*F34","v":45.6},95,4332,0,0,0,0,0,0,155,{"$f":"S34*J34","v":7068},null,0,10,11400]
[null,"Llama UG"]
[null,"Decommission pipeline","Completed during Operations",null,"x",2700,"m",0.04,1,{"$f":"F36*H36*I36","v":108},95,{"$f":"J36*K36","v":10260},0,{"$f":"F36*M36","v":0},0,{"$f":"F36*O36","v":0},0,{"$f":"F36*Q36","v":0},155,{"$f":"S36*J36","v":16740},null,{"$f":"$F36*U36","v":0},{"$f":"IF(F36>0,X36/F36,0)","v":10},{"$f":"L36+N36+P36+R36+T36+V36","v":27000}]
[null,"Umwelt portal"]
[null,"Plug declines with waste rock",null,null,"x",150,"m3",5.1999999999999998E-2,1,{"$f":"F38*H38*I38","v":7.8},null,{"$f":"J38*K38","v":0},0,{"$f":"F38*M38","v":0},0,{"$f":"F38*O38","v":0},0,{"$f":"F38*Q38","v":0},6,{"$f":"S38*F38","v":900},null,{"$f":"$F38*U38","v":0},{"$f":"IF(F38>0,X38/F38,0)","v":6},{"$f":"L38+N38+P38+R38+T38+V38","v":900}]
[null,"Llama portal"]
[null,"Plug declines with waste rock",null,null,"x",150,"m3",0.05,1,{"$f":"F40*H40*I40","v":7.5},null,{"$f":"J40*K40","v":0},0,{"$f":"F40*M40","v":0},0,{"$f":"F40*O40","v":0},0,{"$f":"F40*Q40","v":0},6,{"$f":"S40*F40","v":900},null,{"$f":"$F40*U40","v":0},{"$f":"IF(F40>0,X40/F40,0)","v":6},{"$f":"L40+N40+P40+R40+T40+V40","v":900}]
[null,"Goose portal"]
[null,"Plug declines with waste rock",null,null,"x",150,"m3",0.05,1,{"$f":"F42*H42*I42","v":7.5},null,{"$f":"J42*K42","v":0},0,{"$f":"F42*M42","v":0},0,{"$f":"F42*O42","v":0},0,{"$f":"F42*Q42","v":0},6,{"$f":"S42*F42","v":900},null,{"$f":"$F42*U42","v":0},{"$f":"IF(F42>0,X42/F42,0)","v":6},{"$f":"L42+N42+P42+R42+T42+V42","v":900}]
[null,"Echo portal"]
[null,"Plug declines with waste rock",null,null,"x",150,"m3",0.05,1,{"$f":"F44*H44*I44","v":7.5},null,{"$f":"J44*K44","v":0},0,{"$f":"F44*M44","v":0},0,{"$f":"F44*O44","v":0},0,{"$f":"F44*Q44","v":0},6,{"$f":"S44*F44","v":900},null,{"$f":"$F44*U44","v":0},{"$f":"IF(F44>0,X44/F44,0)","v":6},{"$f":"L44+N44+P44+R44+T44+V44","v":900}]
[null,"Umwelt vent/circular backfill raises"]
[null,"Plug vent raises with concrete plug",null,null,"x",1,"LS",1,1,60,null,{"$f":"J46*K46","v":0},0,{"$f":"F46*M46","v":0},0,{"$f":"F46*O46","v":0},0,{"$f":"F46*Q46","v":0},0,{"$f":"S46*F46","v":0},null,{"$f":"$F46*U46","v":0},{"$f":"IF(F46>0,X46/F46,0)","v":120000},120000]
[null,"Llama vent/circular backfill raises"]
[null,"Plug vent raises with concrete plug",null,null,"x",1,"LS",1,1,60,null,{"$f":"J48*K48","v":0},0,{"$f":"F48*M48","v":0},0,{"$f":"F48*O48","v":0},0,{"$f":"F48*Q48","v":0},0,{"$f":"S48*F48","v":0},null,{"$f":"$F48*U48","v":0},{"$f":"IF(F48>0,X48/F48,0)","v":50000},50000]
[null,"Goose vent/circular backfill raises"]
[null,"Plug vent raises with concrete plug",null,null,"x",1,"LS",1,1,60,null,{"$f":"J50*K50","v":0},0,{"$f":"F50*M50","v":0},0,{"$f":"F50*O50","v":0},0,{"$f":"F50*Q50","v":0},0,{"$f":"S50*F50","v":0},null,{"$f":"$F50*U50","v":0},{"$f":"IF(F50>0,X50/F50,0)","v":50000},50000]
[null,"Echo vent/circular backfill raises"]
[null,"Plug vent raises with concrete plug",null,null,"x",1,"LS",1,1,60,null,{"$f":"J52*K52","v":0},0,{"$f":"F52*M52","v":0},0,{"$f":"F52*O52","v":0},0,{"$f":"F52*Q52","v":0},0,{"$f":"S52*F52","v":0},null,{"$f":"$F52*U52","v":0},50000,50000]
[null,"Echo crown pillar"]
[null,"Plug UG stopes",null,null,"x",3550,"m3",0.05,1,{"$f":"F54*H54*I54","v":177.5},null,{"$f":"J54*K54","v":0},0,{"$f":"F54*M54","v":0},0,{"$f":"F54*O54","v":0},0,{"$f":"F54*Q54","v":0},6,{"$f":"S54*F54","v":21300},null,{"$f":"$F54*U54","v":0},{"$f":"IF(F54>0,X54/F54,0)","v":6},{"$f":"L54+N54+P54+R54+T54+V54","v":21300}]
[null,"Waste Rock Stockpiles and Landfills"]
[null,"WR Pile Closure"]
[null,"Cap and Slope WR Piles",null,null,"x",3400000,"m3",0.06,1,{"$f":"F57*H57*I57","v":204000},null,{"$f":"J57*K57","v":0},0,{"$f":"F57*M57","v":0},0,{"$f":"F57*O57","v":0},0,{"$f":"F57*Q57","v":0},6,{"$f":"S57*F57","v":20400000},null,{"$f":"$F57*U57","v":0},{"$f":"IF(F57>0,X57/F57,0)","v":6},{"$f":"(L57+N57+P57+R57+T57+V57)","v":20400000}]
[null,"Landfill Closure"]
[null,"Cap and Reslope Landfills",null,null,"x",25000,"m3",0.06,1,{"$f":"F59*H59*I59","v":1500},null,{"$f":"J59*K59","v":0},0,{"$f":"F59*M59","v":0},0,{"$f":"F59*O59","v":0},0,{"$f":"F59*Q59","v":0},6,{"$f":"S59*F59","v":150000},null,{"$f":"$F59*U59","v":0},{"$f":"IF(F59>0,X59/F59,0)","v":6},{"$f":"(L59+N59+P59+R59+T59+V59)","v":150000}]
[null,"Water Management Structures"]
[null,"Llama Structures"]
[null,"Breach Llama Lake Diversion Berms",null,null,"x",{"$f":"19*5*7","v":665},"m3",6.4000000000000001E-2,1,{"$f":"F62*H62*I62","v":42.56},null,{"$f":"J62*K62","v":0},0,{"$f":"F62*M62","v":0},0,{"$f":"F62*O62","v":0},0,{"$f":"F62*Q62","v":0},{"$f":"7.3","v":7.3},{"$f":"S62*F62","v":4854.5},null,{"$f":"$F62*U62","v":0},{"$f":"IF(F62>0,X62/F62,0)","v":7.3},{"$f":"L62+N62+P62+R62+T62+V62","v":4854.5}]
[null,"Breach Llama WRSA Diversion Berm",null,null,"x",{"$f":"19*5*1","v":95},"m3",6.4000000000000001E-2,1,{"$f":"F63*H63*I63","v":6.08},null,{"$f":"J63*K63","v":0},0,{"$f":"F63*M63","v":0},0,{"$f":"F63*O63","v":0},0,{"$f":"F63*Q63","v":0},7.3,{"$f":"S63*F63","v":693.5},null,{"$f":"$F63*U63","v":0},7.3,{"$f":"L63+N63+P63+R63+T63+V63","v":693.5}]
[null,"Breach Llama WRSA Containment Dam",null,null,null,{"$f":"19*5*1","v":95},"m3",6.4000000000000001E-2,1,{"$f":"F64*H64*I64","v":6.08},null,{"$f":"J64*K64","v":0},0,{"$f":"F64*M64","v":0},0,{"$f":"F64*O64","v":0},0,{"$f":"F64*Q64","v":0},7.3,{"$f":"S64*F64","v":693.5},null,{"$f":"$F64*U64","v":0},7.3,{"$f":"L64+N64+P64+R64+T64+V64","v":693.5}]
[null,"Decommission Llama pump and pipeline","24 hrs for pump",null,"x",700,"m",0.04,1,{"$f":"F65*H65*I65+24","v":52},95,{"$f":"J65*K65","v":4940},0,{"$f":"F65*M65","v":0},0,{"$f":"F65*O65","v":0},0,{"$f":"F65*Q65","v":0},155,{"$f":"S65*J65","v":8060},null,{"$f":"$F65*U65","v":0},18.571428571428573,{"$f":"L65+N65+P65+R65+T65+V65","v":13000}]
[null,"Umwelt Structures"]
[null,"Breach Primary Pond Containment Dam",null,null,"x",{"$f":"40*5*1","v":200},"m3",6.4000000000000001E-2,1,{"$f":"F67*H67*I67","v":12.8},null,{"$f":"J67*K67","v":0},0,{"$f":"F67*M67","v":0},0,{"$f":"F67*O67","v":0},0,{"$f":"F67*Q67","v":0},7.3,{"$f":"S67*F67","v":1460},null,{"$f":"$F67*U67","v":0},{"$f":"IF(F67>0,X67/F67,0)","v":7.3},{"$f":"L67+N67+P67+R67+T67+V67","v":1460}]
[null,"Breach Umwelt WRSA Containment Dam",null,null,"x",{"$f":"24*5*1","v":120},"m3",6.4000000000000001E-2,1,{"$f":"F68*H68*I68","v":7.68},null,{"$f":"J68*K68","v":0},0,{"$f":"F68*M68","v":0},0,{"$f":"F68*O68","v":0},0,{"$f":"F68*Q68","v":0},7.3,{"$f":"S68*F68","v":876},null,{"$f":"$F68*U68","v":0},7.3,{"$f":"L68+N68+P68+R68+T68+V68","v":876}]
[null,"Breach Umwelt WRSA Diversion Berm",null,null,"x",{"$f":"19*5*1","v":95},"m3",6.4000000000000001E-2,1,{"$f":"F69*H69*I69","v":6.08},null,{"$f":"J69*K69","v":0},0,{"$f":"F69*M69","v":0},0,{"$f":"F69*O69","v":0},0,{"$f":"F69*Q69","v":0},7.3,{"$f":"S69*F69","v":693.5},null,{"$f":"$F69*U69","v":0},7.3,{"$f":"L69+N69+P69+R69+T69+V69","v":693.5}]
[null,"Remove Umwelt Pond pump and pipeline",null,null,"x",950,"m",0.04,1,{"$f":"I70*H70*F70+30","v":68},95,{"$f":"J70*K70","v":6460},0,{"$f":"F70*M70","v":0},0,{"$f":"F70*O70","v":0},0,{"$f":"F70*Q70","v":0},155,{"$f":"S70*J70","v":10540},null,{"$f":"$F70*U70","v":0},17.894736842105264,{"$f":"L70+N70+P70+R70+T70+V70","v":17000}]
[null,"Remove Primary pond pump and pipeline",null,null,"x",7250,"m",0.04,1,{"$f":"I71*H71*F71+30","v":320},95,{"$f":"J71*K71","v":30400},0,{"$f":"F71*M71","v":0},0,{"$f":"F71*O71","v":0},0,{"$f":"F71*Q71","v":0},155,49600,null,{"$f":"$F71*U71","v":0},11.03448275862069,{"$f":"L71+N71+P71+R71+T71+V71","v":80000}]
[null,"Echo Structures"]
[null,"Breach Echo WRSA Containment Dam",null,null,"x",{"$f":"19*5*2","v":190},"m3",6.3E-2,1,{"$f":"F73*H73*I73","v":11.97},null,{"$f":"J73*K73","v":0},0,{"$f":"F73*M73","v":0},0,{"$f":"F73*O73","v":0},0,{"$f":"F73*Q73","v":0},7.3,{"$f":"S73*F73","v":1387},null,{"$f":"$F73*U73","v":0},{"$f":"IF(F73>0,X73/F73,0)","v":7.3},{"$f":"L73+N73+P73+R73+T73+V73","v":1387}]
[null,"Breach Echo Diversion Berm (East and West)",null,null,"x",{"$f":"19*5*2","v":190},"m3",6.3E-2,1,{"$f":"F74*H74*I74","v":11.97},null,0,0,0,0,0,0,0,7.3,1387,null,0,7.3,1387]
[null,"Breach Echo WRSA Diversion Berm",null,null,"x",{"$f":"19*5*1","v":95},"m3",6.4000000000000001E-2,1,{"$f":"F75*H75*I75","v":6.08},null,0,0,0,0,0,0,0,7.3,693.5,null,0,7.3,693.5]
[null,"Breach East Echo Containment Dam",null,null,"x",{"$f":"19*5*1","v":95},"m3",6.4000000000000001E-2,1,{"$f":"F76*H76*I76","v":6.08},null,0,0,0,0,0,0,0,7.3,693.5,null,0,7.3,693.5]
[null,"Remove Echo WRSA Pond pump and pipeline",null,null,"x",2400,"m",0.04,1,{"$f":"F77*H77*I77","v":96},95,9120,0,0,0,0,0,0,155,{"$f":"S77*J77","v":14880},null,0,10,24000]
[null,"Remove Echo NCW pond pump and pipeline",null,null,"x",220,"m",0.04,1,{"$f":"F78*H78*I78+12","v":20.8},95,1976,0,0,0,0,0,0,155,{"$f":"S78*J78","v":3224},null,0,23.636363636363637,5200]
[null,"Goose Structures"]
[null,"Breach Goose Main Diversion Berm",null,null,"x",{"$f":"19*5*1","v":95},"m3",1,1,{"$f":"F80*H80*I80","v":95},null,{"$f":"J80*K80","v":0},0,{"$f":"F80*M80","v":0},0,{"$f":"F80*O80","v":0},0,{"$f":"F80*Q80","v":0},7.3,{"$f":"S80*F80","v":693.5},null,{"$f":"$F80*U80","v":0},{"$f":"IF(F80>0,X80/F80,0)","v":7.3},{"$f":"L80+N80+P80+R80+T80+V80","v":693.5}]
[null,"TSF Structures"]
[null,"Breach TSF Dam",null,null,"x",{"$f":"550*20","v":11000},"m3",0.05,1,{"$f":"F82*H82*I82","v":550},null,{"$f":"J82*K82","v":0},0,{"$f":"F82*M82","v":0},0,{"$f":"F82*O82","v":0},0,{"$f":"F82*Q82","v":0},7.3,{"$f":"S82*F82","v":80300},null,{"$f":"$F82*U82","v":0},{"$f":"IF(F82>0,X82/F82,0)","v":7.3},{"$f":"L82+N82+P82+R82+T82+V82","v":80300}]
[null,"Breach TSF WRSA Diversion Berm",null,null,"x",{"$f":"19*5*3","v":285},"m3",0.05,1,{"$f":"F83*H83*I83","v":14.25},null,{"$f":"J83*K83","v":0},0,{"$f":"F83*M83","v":0},0,{"$f":"F83*O83","v":0},0,{"$f":"F83*Q83","v":0},7.3,{"$f":"S83*F83","v":2080.5},null,{"$f":"$F83*U83","v":0},{"$f":"IF(F83>0,X83/F83,0)","v":7.3},{"$f":"L83+N83+P83+R83+T83+V83","v":2080.5}]
[null,"Ore Stockpile Structures"]
[null,"Remove pump and pipeline",null,null,"x",4550,"m",0.04,1,{"$f":"F85*H85*I85","v":182},95,{"$f":"J85*K85","v":17290},0,{"$f":"F85*M85","v":0},0,{"$f":"F85*O85","v":0},0,{"$f":"F85*Q85","v":0},155,{"$f":"S85*J85","v":28210},null,{"$f":"$F85*U85","v":0},{"$f":"IF(F85>0,X85/F85,0)","v":10},{"$f":"L85+N85+P85+R85+T85+V85","v":45500}]
[null,"Breach Ore Stockpile Diversion Berm and Containment Dam",null,null,"x",{"$f":"19*5+24*5","v":215},"m3",0.06,1,{"$f":"F86*H86*I86","v":12.9},null,{"$f":"J86*K86","v":0},0,{"$f":"F86*M86","v":0},0,{"$f":"F86*O86","v":0},0,{"$f":"F86*Q86","v":0},7.3,{"$f":"S86*F86","v":1569.5},null,{"$f":"$F86*U86","v":0},{"$f":"IF(F86>0,X86/F86,0)","v":7.3},{"$f":"L86+N86+P86+R86+T86+V86","v":1569.5}]
[null,"Buildings and Equipment"]
[" ","Dissassembly - Goose Plant and Crusher"]
[null,"Dismantle Plant",null,null,"x",{"$f":"ROUNDUP(6463.2,0)","v":6464},"m2",1,1,3200,95,{"$f":"J89*K89","v":304000},0,{"$f":"F89*M89","v":0},0,{"$f":"F89*O89","v":0},0,{"$f":"F89*Q89","v":0},100,{"$f":"J89*S89/3","v":106666.66666666667},0,{"$f":"$F89*U89","v":0},{"$f":"IF(F89>0,X89/F89,0)","v":63.531353135313537},{"$f":"L89+N89+P89+R89+T89+V89","v":410666.66666666669}]
[null,"Dismantle Crushers",null,null,"x",1630,"m2",1,1,800,95,{"$f":"J90*K90","v":76000},0,{"$f":"F90*M90","v":0},0,{"$f":"F90*O90","v":0},0,{"$f":"F90*Q90","v":0},100,{"$f":"J90*S90/3","v":26666.666666666668},0,{"$f":"$F90*U90","v":0},{"$f":"IF(F90>0,X90/F90,0)","v":62.985685071574643},{"$f":"L90+N90+P90+R90+T90+V90","v":102666.66666666667}]
[null,"Dismantle Power Plant",null,null,"x",2040,"m2",1,1,1000,95,{"$f":"J91*K91","v":95000},0,{"$f":"F91*M91","v":0},0,{"$f":"F91*O91","v":0},0,{"$f":"F91*Q91","v":0},100,{"$f":"J91*S91/3","v":33333.333333333336},0,{"$f":"$F91*U91","v":0},{"$f":"IF(F91>0,X91/F91,0)","v":62.908496732026151},{"$f":"L91+N91+P91+R91+T91+V91","v":128333.33333333334}]
[null,"Dismantle Emergency Power - Fuel",null,null,"x",300,"m2",1,1,150,95,{"$f":"J92*K92","v":14250},0,{"$f":"F92*M92","v":0},0,{"$f":"F92*O92","v":0},0,{"$f":"F92*Q92","v":0},100,{"$f":"J92*S92/3","v":5000},0,{"$f":"$F92*U92","v":0},{"$f":"IF(F92>0,X92/F92,0)","v":64.166666666666671},{"$f":"L92+N92+P92+R92+T92+V92","v":19250}]
[null,"Dismantle Fuel Storage and Distribution",null,null,"x",1,"Lot",1,1,1200,95,{"$f":"J93*K93","v":114000},0,{"$f":"F93*M93","v":0},0,{"$f":"F93*O93","v":0},0,{"$f":"F93*Q93","v":0},100,{"$f":"J93*S93/3","v":40000},0,{"$f":"$F93*U93","v":0},{"$f":"IF(F93>0,X93/F93,0)","v":154000},{"$f":"L93+N93+P93+R93+T93+V93","v":154000}]
[" ","Goose Admin Buildings"]
[null,"Demolish Truck Shop/Office",null,null,"x",2349.4499999999998,"m2",1,1,1000,95,{"$f":"J95*K95","v":95000},0,{"$f":"F95*M95","v":0},0,{"$f":"F95*O95","v":0},0,{"$f":"F95*Q95","v":0},100,{"$f":"S95*J95/3","v":33333.333333333336},0,{"$f":"$F95*U95","v":0},{"$f":"IF(F95>0,X95/F95,0)","v":54.622713117254399},{"$f":"L95+N95+P95+R95+T95+V95","v":128333.33333333334}]
[null,"Demolish Kitchen/Camp",null,null,"x",{"$f":"6*300*1.1","v":1980.0000000000002},"m2",1,1,900,95,85500,0,0,0,0,0,0,100,{"$f":"S96*J96/3","v":30000},0,0,{"$f":"IF(F96>0,X96/F96,0)","v":58.333333333333329},115500]
[null,"Demolish Cold Storage",null,"","x",840,"m2",1,1,150,95,14250,0,0,0,0,0,0,100,5000,0,0,22.916666666666668,19250]
[null,"Demolish Waste/Waste Oil Storage",null,"","x",1,"Lot",1,1,100,null,0,0,0,0,0,null,0,100,3333.3333333333335,40000,40000,43333.333333333336,43333.333333333336]
[null,"Remove Freight Storage",null,"","x",1,"Lot",1,1,150,95,14250,0,0,0,0,0,0,100,5000,0,0,19250,19250]
[null,"Demolish Water Treatment Plant",null,"","x",{"$f":"ROUNDUP(0.1*F89,0)","v":647},"m2",8,1,100,95,9500,0,0,0,0,0,0,100,3333.3333333333335,0,0,19.835136527563112,12833.333333333334]
[null,"Demolish Sewage Treatment Plant",null,null,"x",1,"Lot",1,1,90,95,8550,0,0,0,0,0,0,100,3000,0,0,11550,11550]
[" ","MLA Infrastructure"]
[null,"Demolish Port Office",null,null,"x",5,"Units",12,1,{"$f":"H103*F103*I103","v":60},95,{"$f":"J103*K103","v":5700},0,{"$f":"F103*M103","v":0},0,{"$f":"F103*O103","v":0},0,{"$f":"F103*Q103","v":0},100,{"$f":"S103*J103","v":6000},0,{"$f":"$F103*U103","v":0},{"$f":"IF(F103>0,X103/F103,0)","v":2340},{"$f":"L103+N103+P103+R103+T103+V103","v":11700}]
[null,"Remove Pipelines",null,null,"x",10000,"m",0.04,1,{"$f":"F104*H104*I104","v":400},95,{"$f":"J104*K104","v":38000},0,{"$f":"F104*M104","v":0},0,{"$f":"F104*O104","v":0},0,{"$f":"F104*Q104","v":0},155,{"$f":"S104*J104","v":62000},0,{"$f":"$F104*U104","v":0},{"$f":"IF(F104>0,X104/F104,0)","v":10},{"$f":"L104+N104+P104+R104+T104+V104","v":100000}]
[null,"Demolish Incinerator and Waste Management",null,null,"x",1,"Lot",1,1,50,95,{"$f":"J105*K105","v":4750},0,{"$f":"F105*M105","v":0},0,{"$f":"F105*O105","v":0},0,{"$f":"F105*Q105","v":0},100,5000,0,{"$f":"$F105*U105","v":0},{"$f":"IF(F105>0,X105/F105,0)","v":9750},{"$f":"L105+N105+P105+R105+T105+V105","v":9750}]
[null,"Demolish Warehuses",null,null,"x",1,"Lot",1,1,30,95,2850,0,0,0,0,0,0,100,3000,0,0,5850,5850]
[null,"Dismantle Genset",null,null,"x",1,"Lot",1,1,150,95,14250,0,0,0,0,0,0,100,15000,0,0,29250,29250]
[null,"Demolish Maintenance Shop",null,null,"x",1,"Lot",1,1,50,95,4750,0,0,0,0,0,0,100,5000,0,0,9750,9750]
[null,"Demolish Water Storage",null,null,"x",1,"Lot",1,1,50,95,4750,0,0,0,0,0,0,100,5000,0,0,9750,9750]
[null,"Demolish WTP/STP",null,null,"x",1,"Lot",1,1,50,95,4750,0,0,0,0,0,0,100,5000,0,0,9750,9750]
[null,"Demolish camp/offices",null,null,"x",1,"Lot",1,1,50,95,4750,0,0,0,0,0,0,100,5000,0,0,9750,9750]
[null,"Demolish freight storage area",null,null,"x",1,"Lot",1,1,50,95,4750,0,0,0,0,0,0,100,5000,0,0,9750,9750]
[null,"Demolish hazardous wate Area",null,null,"x",1,"Lot",1,1,50,95,4750,0,0,0,0,0,0,100,5000,0,0,9750,9750]
[null,"Dismantle Fuel Storage ",null,null,"x",1,"Lot",1,1,1600,95,152000,0,0,0,0,0,0,100,{"$f":"S114*J114/3","v":53333.333333333336},0,0,205333.33333333334,205333.33333333334]
[" ","Goose Closure Camp"]
[null,"Build 20 Person Camp",null,null,"x",1,"Lot",1,1,150,95,{"$f":"J116*K116","v":14250},0,{"$f":"F116*M116","v":0},null,{"$f":"F116*O116","v":0},0,{"$f":"F116*Q116","v":0},100,{"$f":"J116*S116/3","v":5000},null,{"$f":"$F116*U116","v":0},{"$f":"IF(F116>0,X116/F116,0)","v":19250},{"$f":"L116+N116+P116+R116+T116+V116","v":19250}]
[null,"Build 20 Person Power Plant",null,null,"x",1,"Lot",1,1,150,95,{"$f":"J117*K117","v":14250},0,{"$f":"F117*M117","v":0},null,{"$f":"F117*O117","v":0},0,{"$f":"F117*Q117","v":0},100,{"$f":"J117*S117/3","v":5000},null,{"$f":"$F117*U117","v":0},{"$f":"IF(F117>0,X117/F117,0)","v":19250},{"$f":"L117+N117+P117+R117+T117+V117","v":19250}]
[null,"Camp Operation","Over 13 years of Closure and Post-Closure ",null,"x",12000,"Man Days",1,1,null,{"$f":"0","v":0},{"$f":"J118*K118","v":0},null,{"$f":"F118*M118","v":0},0,{"$f":"F118*O118","v":0},0,{"$f":"F118*Q118","v":0},0,{"$f":"F118*S118","v":0},110,{"$f":"$F118*U118","v":1320000},{"$f":"IF(F118>0,X118/F118,0)","v":110},{"$f":"L118+N118+P118+R118+T118+V118","v":1320000}]
[null,"Roads and Airstrips"]
[null,"Main Haulroad"]
[null,"Maintain Road Surface",null,null,"x",13,"Yr",70,1,{"$f":"F121*H121*I121","v":910},95,{"$f":"J121*K121","v":86450},0,{"$f":"F121*M121","v":0},0,{"$f":"F121*O121","v":0},0,{"$f":"F121*Q121","v":0},100,{"$f":"S121*J121","v":91000},null,{"$f":"$F121*U121","v":0},{"$f":"IF(F121>0,X121/F121,0)","v":13650},{"$f":"SUM(L121,N121,P121,R121,T121,V121)","v":177450}]
[null,"Restore Drainage","Remove Culverts",null,"x",1488,"m3",0.06,1,{"$f":"F122*H122*I122","v":89.28},null,{"$f":"J122*K122","v":0},0,{"$f":"F122*M122","v":0},0,{"$f":"F122*O122","v":0},0,{"$f":"F122*Q122","v":0},11,{"$f":"S122*F122","v":16368},null,{"$f":"$F122*U122","v":0},{"$f":"IF(F122>0,X122/F122,0)","v":11},{"$f":"T122","v":16368}]
[null,"Airstrips"]
[null,"Maintain Airstrip Surface",null,null,"x",13,"Yr",20,1,{"$f":"F124*H124*I124","v":260},95,{"$f":"J124*K124","v":24700},0,{"$f":"F124*M124","v":0},0,{"$f":"F124*O124","v":0},0,{"$f":"F124*Q124","v":0},100,{"$f":"S124*J124","v":26000},null,{"$f":"$F124*U124","v":0},{"$f":"IF(F124>0,X124/F124,0)","v":3900},{"$f":"SUM(L124,N124,P124,R124,T124,V124)","v":50700}]
[null,"Restore Drainage",null,null,"x",1020,"m3",0.06,1,{"$f":"F125*H125*I125","v":61.199999999999996},null,{"$f":"J125*K125","v":0},0,{"$f":"F125*M125","v":0},0,{"$f":"F125*O125","v":0},0,{"$f":"F125*Q125","v":0},12,{"$f":"S125*F125","v":12240},null,{"$f":"$F125*U125","v":0},{"$f":"IF(F125>0,X125/F125,0)","v":12},{"$f":"T125","v":12240}]
[null,"Water Treatment"]
[null,"WTP Pipelines and Treatment Plant"]
[null,"Pump from Goose Main TF to WTP","Pump and treat water in TF at WTP for 7 years, open water season",null,"x",7500000,"m3",null,1,null,null,{"$f":"J128*K128","v":0},0,{"$f":"F128*M128","v":0},0,{"$f":"F128*O128","v":0},0,{"$f":"F128*Q128","v":0},0,{"$f":"S128*F128","v":0},0.11,{"$f":"$F128*U128","v":825000},{"$f":"IF(F128>0,X128/F128,0)","v":0.11},{"$f":"L128+N128+P128+R128+T128+V128","v":825000}]
[null,"Treat water from Goose Main TF in TWP",null,null,"x",7500000,"m3",null,1,{"$f":"365*5.25","v":1916.25},null,0,0,0,0,0,0,0,0,0,0.35,2625000,{"$f":"IF(F129>0,X129/F129,0)","v":0.35},2625000]
[null,"Pump from WTP recirc. into Goose Main TF",null,null,"x",7500000,"m3",null,1,{"$f":"F130*H130*I130","v":0},null,0,0,0,0,0,0,0,0,0,0.11,825000,0.11,825000]
[null,"Decommission WTP pump and pipeline",null,null,"x",6700,"m",0.04,1,{"$f":"F131*H131*I131+24","v":292},95,27740,0,0,0,0,0,0,155,{"$f":"S131*J131","v":45260},null,0,10.895522388059701,{"$f":"L131+N131+P131+R131+T131+V131","v":73000}]
[null,"Decommission WTP pump and return pipeline",null,null,"x",820,"m",0.04,1,{"$f":"F132*H132*I132+24","v":56.8},95,5396,0,0,0,0,0,0,155,{"$f":"S132*J132","v":8804},null,0,17.317073170731707,{"$f":"L132+N132+P132+R132+T132+V132","v":14200}]
[null,"Decommission WTP",null,null,"x",1,"Lot",null,1,50,95,4750,0,0,0,0,0,0,100,5000,null,0,9750,9750]
[null,"Contaminated Soil"]
[null,"Sitewide Investigation"]
[null,"Site Investigation to estimate quantity of contaminated soil","Testpit program with excavator in all parking, fuel storage, washbays truck and maintenance shops and generator areas.",null,"x",1,"Lot",1,1,null,null,{"$f":"J136*K136","v":0},0,{"$f":"F136*M136","v":0},0,{"$f":"F136*O136","v":0},0,{"$f":"F136*Q136","v":0},0,{"$f":"S136*F136","v":0},null,50000,{"$f":"IF(F136>0,X136/F136,0)","v":50000},{"$f":"L136+N136+P136+R136+T136+V136","v":50000}]
[null,"Treatment"]
[null,"Transport contaminated soil",null,null,"x",10000,"m3",0.05,1,{"$f":"F138*H138*I138","v":500},null,{"$f":"J138*K138","v":0},0,{"$f":"F138*M138","v":0},0,{"$f":"F138*O138","v":0},0,{"$f":"F138*Q138","v":0},7.3,{"$f":"S138*F138","v":73000},null,{"$f":"$F138*U138","v":0},{"$f":"IF(F138>0,X138/F138,0)","v":7.3},{"$f":"L138+N138+P138+R138+T138+V138","v":73000}]
[null,"Separation plant","Purchase seperation equipment",null,"x",1,"Lot",1,1,null,null,{"$f":"J139*K139","v":0},0,{"$f":"F139*M139","v":0},0,{"$f":"F139*O139","v":0},0,{"$f":"F139*Q139","v":0},0,{"$f":"S139*F139","v":0},null,100000,{"$f":"IF(F139>0,X139/F139,0)","v":100000},{"$f":"L139+N139+P139+R139+T139+V139","v":100000}]
[null,"Closure / Post-Closure Monitoring"]
[null,"Geotechnical Inspections"]
[null,"TSF embankments",null,null,"x",8,"Units",20,1,{"$f":"F142*H142*I142","v":160},null,{"$f":"J142*K142","v":0},0,{"$f":"F142*M142","v":0},0,{"$f":"F142*O142","v":0},0,{"$f":"F142*Q142","v":0},0,{"$f":"S142*F142","v":0},10000,{"$f":"$F142*U142","v":80000},{"$f":"IF(F142>0,X142/F142,0)","v":10000},{"$f":"L142+N142+P142+R142+T142+V142","v":80000}]
[null,"WR piles",null,null,"x",13,"Units",20,1,{"$f":"F143*H143*I143","v":260},null,{"$f":"J143*K143","v":0},0,{"$f":"F143*M143","v":0},0,{"$f":"F143*O143","v":0},0,{"$f":"F143*Q143","v":0},0,{"$f":"S143*F143","v":0},8300,{"$f":"$F143*U143","v":107900},{"$f":"IF(F143>0,X143/F143,0)","v":8300},{"$f":"(L143+N143+P143+R143+T143+V143)","v":107900}]
[null,"Pit walls",null,null,"x",13,"Units",20,1,{"$f":"F144*H144*I144","v":260},null,{"$f":"J144*K144","v":0},0,{"$f":"F144*M144","v":0},0,{"$f":"F144*O144","v":0},0,{"$f":"F144*Q144","v":0},0,{"$f":"S144*F144","v":0},4000,{"$f":"$F144*U144","v":52000},{"$f":"IF(F144>0,X144/F144,0)","v":4000},{"$f":"(L144+N144+P144+R144+T144+V144)","v":52000}]
[null,"Ground Temperature Monitoring"]
[null,"Umwelt WRSA GTC Monitoring after Closure","Monthly",null,"x",13,"Years",24,1,{"$f":"F146*H146*I146","v":312},200,{"$f":"J146*K146","v":62400},0,{"$f":"F146*M146","v":0},0,{"$f":"F146*O146","v":0},0,{"$f":"F146*Q146","v":0},0,{"$f":"S146*F146","v":0},null,{"$f":"F146*U146","v":0},{"$f":"IF(F146>0,X146/F146,0)","v":4800},{"$f":"L146+N146+P146+R146+T146+V146","v":62400}]
[null,"LLama WRSA GTC Monitoring after Closure","Monthly",null,"x",13,"Years",24,1,312,200,62400,0,0,0,0,0,0,0,0,null,0,4800,62400]
[null,"TSF WRSA GTC Monitoring after Closure","Monthly",null,"x",13,"Years",24,1,312,200,62400,0,0,0,0,0,0,0,0,null,0,4800,62400]
[null,"WQ Monitoring - Closure"]
[null,"Llama pit","Depends on Breech",null,"x",13,"Years",12,1,156,95,{"$f":"J150*K150","v":14820},0,{"$f":"F150*M150","v":0},0,{"$f":"F150*O150","v":0},0,{"$f":"F150*Q150","v":0},0,{"$f":"S150*F150","v":0},null,{"$f":"F150*U150","v":0},{"$f":"IF(F150>0,X150/F150,0)","v":1140},{"$f":"L150+N150+P150+R150+T150+V150","v":14820}]
[null,"Llama WR Pile",null,null,"x",13,"Years",12,1,{"$f":"F151*H151*I151","v":156},95,{"$f":"J151*K151","v":14820},0,{"$f":"F151*M151","v":0},0,{"$f":"F151*O151","v":0},0,{"$f":"F151*Q151","v":0},0,{"$f":"S151*F151","v":0},null,{"$f":"F151*U151","v":0},{"$f":"IF(F151>0,X151/F151,0)","v":1140},{"$f":"L151+N151+P151+R151+T151+V151","v":14820}]
[null,"Umwelt pit","Depends on Breach",null,"x",13,"Years",12,1,156,95,14820,0,0,0,0,0,0,0,0,null,0,1140,14820]
[null,"Umwelt WR Pile",null,null,"x",13,"Years",12,1,156,95,14820,0,0,0,0,0,0,0,0,null,0,1140,14820]
[null,"Echo pit","Depends on Breach",null,"x",13,"Years",12,1,156,95,14820,0,0,0,0,0,0,0,0,null,0,1140,14820]
[null,"Echo WR pile",null,null,"x",13,"Years",12,1,156,95,14820,0,0,0,0,0,0,0,0,null,0,1140,14820]
[null,"Goose pit","Depends on Breach",null,"x",13,"Years",12,1,156,95,14820,0,0,0,0,0,0,0,0,null,0,1140,14820]
[null,"TSF WR Pile",null,null,"x",13,"Years",12,1,156,95,14820,0,0,0,0,0,0,0,0,null,0,1140,14820]
[null,"Aquatic Effects monitoring"]
[null,"Aquatic effects monitoring","Non-contact Water Basins",null,"x",10,"Years",60,1,600,80,{"$f":"J159*K159","v":48000},0,{"$f":"F159*M159","v":0},0,{"$f":"F159*O159","v":0},0,{"$f":"F159*Q159","v":0},0,{"$f":"S159*F159","v":0},null,{"$f":"$F159*U159","v":0},{"$f":"IF(F159>0,X159/F159,0)","v":4800},{"$f":"(L159+N159+P159+R159+T159+V159)","v":48000}]
[null,"Terrestrial Animal Monitoring"]
[null,"Terrestrial Animal Monitoring",null,null,"x",10,"Years",300,1,3000,80,{"$f":"J161*K161","v":240000},0,{"$f":"F161*M161","v":0},0,{"$f":"F161*O161","v":0},0,{"$f":"F161*Q161","v":0},0,{"$f":"S161*F161","v":0},null,{"$f":"$F161*U161","v":0},{"$f":"IF(F161>0,X161/F161,0)","v":24000},{"$f":"(L161+N161+P161+R161+T161+V161)","v":240000}]
[null,"Total Direct Costs",null,null,null,null,null,null,null,null,null,null,null,null,null,null,null,null,null,null,null,null,null,{"$f":"SUM(X5:X161)","v":30471385.279999997}]
[" ","CONSTRUCTION INDIRECTS"]
[" ","Freight & Transport"]
[null,"Food & Freight","Total Mandays factored",null,"x",{"$f":"F118*2.3","v":27599.999999999996},"kg",null,1,null,{"$f":"0","v":0},{"$f":"J165*K165","v":0},null,null,null,{"$f":"F165*O165","v":0},null,{"$f":"F165*Q165","v":0},null,{"$f":"F165*S165","v":0},12,{"$f":"$F165*U165","v":331199.99999999994},{"$f":"IF(F165>0,X165/F165,0)","v":12},{"$f":"(L165+N165+P165+R165+T165+V165)","v":331199.99999999994}]
[null,"Freight","Rental equip, offices, etc..","","x",1,"Lot",0,1,{"$f":"F166*H166*I166","v":0},{"$f":"0","v":0},{"$f":"J166*K166","v":0},0,{"$f":"F166*M166","v":0},0,{"$f":"F166*O166","v":0},0,{"$f":"F166*Q166","v":0},0,{"$f":"F166*S166","v":0},500000,{"$f":"$F166*U166","v":500000},{"$f":"IF(F166>0,X166/F166,0)","v":500000},{"$f":"(L166+N166+P166+R166+T166+V166)","v":500000}]
[null,"Mobilization",null,null,"x",500,"Tonnes",null,null,null,null,null,null,null,null,null,null,null,null,null,1500,{"$f":"$F167*U167","v":750000},{"$f":"IF(F167>0,X167/F167,0)","v":1500},{"$f":"V167","v":750000}]
[" ","General Construction Indirects"]
[null,"Site Services Labour",null,"","x",16000,"HRS",1,1,{"$f":"F169*H169*I169","v":16000},65,{"$f":"J169*K169","v":1040000},0,{"$f":"F169*M169","v":0},0,{"$f":"F169*O169","v":0},0,{"$f":"F169*Q169","v":0},0,{"$f":"F169*S169","v":0},0,{"$f":"$F169*U169","v":0},{"$f":"IF(F169>0,X169/F169,0)","v":65},{"$f":"(L169+N169+P169+R169+T169+V169)","v":1040000}]
[" ","Accomodations & Travel"]
[null,"Camp Accomodations/Operation",null,null,"x",{"$f":"F118","v":12000},"Man Days",1,1,null,{"$f":"0","v":0},{"$f":"J171*K171","v":0},null,{"$f":"F171*M171","v":0},0,{"$f":"F171*O171","v":0},0,{"$f":"F171*Q171","v":0},0,{"$f":"F171*S171","v":0},110,{"$f":"$F171*U171","v":1320000},{"$f":"IF(F171>0,X171/F171,0)","v":110},{"$f":"(L171+N171+P171+R171+T171+V171)","v":1320000}]
[null,"Airfare & Transportation",null,null,"x",{"$f":"ROUNDUP(F118/28,0)","v":429},"Each",0,1,null,{"$f":"0","v":0},{"$f":"J172*K172","v":0},0,{"$f":"F172*M172","v":0},0,{"$f":"F172*O172","v":0},0,{"$f":"F172*Q172","v":0},0,{"$f":"F172*S172","v":0},{"$f":"51521/90","v":572.45555555555552},{"$f":"$F172*U172","v":245583.43333333332},{"$f":"IF(F172>0,X172/F172,0)","v":572.45555555555552},{"$f":"(L172+N172+P172+R172+T172+V172)","v":245583.43333333332}]
[" ","Contractor Profit"]
[null,"Total Component Estimate",null,null,null,null,null,null,null,null,null,null,null,null,null,null,null,null,null,null,null,null,null,{"$f":"SUM(X163:X173)+X162","v":34658168.713333331}]

{"sheet":"Unit_Costs","index":15,"n_rows":172,"n_cols":12,"rows_kept":172,"cut":false,"hidden":false,"merged":[]}
["Unit Cost Table (for refining unit costs see \"Estimator\" worksheet)"]
[null,null,null,"Filter by unit",null,"",""]
[null,null,null,null,null,"","",""]
["ITEM","Detail",null,"COST CODE","UNITS","LOW $","HIGH $","SPECIFIED $",null,"COMMENTS"]
[null,null,null,null,null,"","",""]
["Accomodation"]
[null,null,null,"ACCM","manday",100,175]
["Buildings - Decontaminate",null,null,null,null,"","",""]
[null,"Asbestos",null,"BDA","m2",25.6,51.2,null,null,"Low: removal of asbestos siding & flooring; High: removal of insulated pipes, friable asbestos"]
["Buildings - Remove",null,null,null,null,"","","",null,"Unit costs are based on 3m high, single storey building.  Scale areas accordingly."]
[null,"Wood",null,"BRW","m2",27.5,41]
[null,"Concrete",null,"BRC","m2",40,65,6,null,"Specified: puncture concrete foundation slabs"]
[null,"Steel - teardown",null,"BRS1","m2",45,65]
[null,"Steel - for salvage",null,"BRS2","m2",67,100]
["Concrete work",null,null,null,null,"","",""]
[null,"Small pour",null,"CSF","m3",426.5,639.75,null,null,"Low: YK; High=1.5xLow"]
[null,"Large pour",null,"CLF","m3",353.5,530.25,2130,null,"Specified: concrete crown pillar"]
["Contaminated Soils",null,null,null,null,"","",""]
[null,"ESA Phase 1",null,"CS1","each",7500,null,null,null,"Low: small, \"clean\" site"]
[null,"ESA Phase 1",null,"CS2","each",50000,null,null,null,"Low: small, \"clean\" site"]
[null,"Remediate on site",null,"CSR","m3",47,146]
["Dozing",null,null,null,null,"","",""]
[null,"doze rock piles",null,"DR","m3",1.05,2.4,null,null,"Low cost: doze crest off dump"]
[null,"doze overburden/soil piles",null,"DS","m3",0.95,3.8,null,null,"High cost: push up to 300 m"]
["Excavate Rock; Low Spec's and QA/QC",null,null,null,null,"","",""]
[null,"drill/blast/load/short haul",null,"RB1","m3",11.4,17.05,null,null,"Low:quarry operations for bulk fill"]
[null,"drill/blast/load/long haul",null,"RB2","m3",12.05,17.8]
[null,"RB1 + spread and compact",null,"RB3","m3",12.05,17.8]
[null,"RB2 + spread and compact",null,"RB4","m3",12.5,30.75]
[null,"Specified activity",null,"RBS","m3"]
["Excavate Rock; High Spec's and QA/QC ",null,null,null,null,"","","",null,"(e.g. ditch/spillway excavation)"]
[null,"drill/blast/load/short haul",null,"RC1","m3",12.05,17.8,null,null,"Low:foundation excavation;High:spillway excavation"]
[null,"drill/blast/load/long haul",null,"RC2","m3",12.7,18.399999999999999]
[null,"RC1 + spread and compact",null,"RC3","m3",12.7,18.399999999999999,null,null,"e,g, cover construction"]
[null,"RC2 + spread and compact",null,"RC4","m3",13.5,19.2,null,null,"e,g, cover construction"]
[null,"Specified activity",null,"RCS","m3",null,null,175,null,"Specified-drift excavation"]
["Excavate Rip Rap",null,null,null,null,"","",""]
[null,"drill/blast/load/short haul/place",null,"RR1","m3",13.5,17.75,null,null,"High: quarry & place rip rap in channel"]
[null,"drill/blast/load/long haul/place",null,"RR2","m3",14.2,20.65]
[null,"source is waste dump/short haul",null,"RR3","m3",7,null,null,null,"cost includes sorting"]
[null,"source is waste dump/long haul",null,"RR4","m3",7.6]
[null,"Specified activity",null,"RRS","m3"]
["Excavate Soil; Low Spec's and QA/QC",null,null,null,null,"","",""]
[null,"clear & grub",null,"SBC","m2",3.4,5,""]
[null,"excavate/load/short haul",null,"SB1","m3",4.3,5.9]
[null,"excavate/load/long haul",null,"SB2","m3",4.5999999999999996,7.3]
[null,"SB1 + spread and compact",null,"SB3","m3",5.0999999999999996,8.9,null,null,"Low: non-engineered; High:engineered"]
[null,"SB2 + spread and compact",null,"SB4","m3",5.5,11,null,null,"Low: non-engineered; High:engineered"]
[null,"Specified activity",null,"SBS","m3",3.2,6.3,"",null,"Low: rehandle waste rock dump by dozing; High:rehandle waste rock by hauling"]
[null,"Tailings ",null,"SBT","m3",1.35,3.7,15.5,null,"High:contour surface - wet or frozen; Specified:haul/place wet infill"]
["Excavate Soil, High Spec's and QA/QC",null,null,null,null,"","",""]
[null,"excavate/load/short haul",null,"SC1","m3",6.8,9.3000000000000007]
[null,"excavate/load/long haul",null,"SC2","m3",7.1,11.75]
[null,"SC1 + spread and compact",null,"SC3","m3",8.9,14.2,null,null,"Low: non-engineered; High:engineered"]
[null,"SC2 + spread and compact",null,"SC4","m3",9.3000000000000007,23.2,null,null,"Low: non-engineered; High:engineered (e.g. complex covers, low volume dam construction)"]
[null,"Specified activity",null,"SCS","m3",null,null,18.8,null,"Backfill adit with waste rock"]
["Fence",null,null,null,null,"","",""]
[null,null,null,"FNC","m",13.55,203]
["Fuel and Electricity",null,null,null,null,"","",""]
[null,"Fuel cost - gas",null,"FCG","litre",1.05,1.4,null,null,null,null," "]
[null,"Fuel cost - diesel",null,"FCD","litre",0.99,1.39]
[null,"Fuel mobilization",null,"FCM","litre",0.22,0.42,null,null,"High: winter road usage"]
[null,"Electricity",null,"FCE","kW-h",0.17,0.19,0.49,null,"Low and High:Yellowknife; Specified:diesel generator"]
["Geo-Synthetics",null,null,null,null,"","",""]
[null,"geotextile",null,"GST","m2",3.44,null,null,null,"Supply and install"]
[null,"geogrid",null,"GSG","m2",5.75,""]
[null,"liner, HDPE",null,"GSHDPE","m2",7.95,"",null,null,"Supply and install; large quantity"]
[null,"liner, ES3",null,"GSES3","m2",20.2,"","",null,"FOB Yellowknife"]
[null,"geosynthetic installation",null,"GSI","m2",3.16,14,null,null,"Low:geotextile; High:ES3 or HDPE"]
[null,"bentonite soil ammendment",null,"GSBA","tonne",308.3,348.5,null,null,"FOB Edmonton, add shipping & mixing"]
["Grouting (/m3 of rock grouted)",null,null,null,null,"","",""]
[null,null,null,"grout","m3",236.55,286.75,null,null,"High: cement, FOB Yellowknife"]
["Labour & Equipment Rates",null,null,null,null,"","",""]
[null,"Site manager",null,"sman","$/hr",125,152]
[null,"Supervisor",null,"super","$/hr",52,91.84]
[null,"Registered engineer",null,"eng","$/hr",95,220]
[null,"Environmental coordinator",null,"envco","$/hr",74.16,130]
[null,"Evironmental technologist",null,"envtech","$/hr",36]
[null,"Electrician",null,"elec","$/hr",74,95]
[null,"Journeyman - various",null,"journey","$/hr",44,71.790000000000006]
[null,"Labour - skilled ",null,"lab-s","$/hr",41,49.6]
[null,"Labour - unskilled",null,"lab-us","$/hr",31,43.98]
[null,"Equipment operator",null,"oper","$/hr",41,65]
[null,"Heavy duty mechanic",null,"mech","$/hr",49,72.849999999999994]
[null,"Water treatment plant operator",null,"oper-wt","$/hr",41,59.86]
[null,"Security / first aid",null,"safety","$/hr",36,66.97]
[null,"Administative staff",null,"admin","$/hr",38,57.89]
[]
[null,"Equipment rates include operator and fuel"]
[null,"Loader - 4 cu.yd (3.06m3)",null,"load-s","$/hr",175,null,""]
[null,"Loader - 7 cu.yd (5.35m3)",null,"load-l","$/hr",315]
[null,"Excavator - 26.76-30.84 tonnes",null,"exc-s","$/hr",190]
[null,"Excavator - 68.95+tonnes",null,"exc-l","$/hr",420,null,""]
[null,"Grader",null,"grad","$/hr",190]
[null,"Dump truck off hwy 30-50 tonnes",null,"truck-s","$/hr",225,null,""]
[null,"Dump truck off hwy 55-75 tonnes",null,"truck-l","$/hr",300]
[null,"dozer, small",null,"dozers","$/hr",205,260,""]
[null,"dozer, large",null,"dozerl","$/hr",490,565,""]
[null,"smooth drum compactor",null,"comp","$/hr",155,null,""]
[null,"scooptram, 6 yd3 bucket",null,"scoop","$/hr",170,null,""]
[null,"flat bed truck with hiab",null,"hiab","$/hr",155,null,""]
[null,"fuel truck",null,"ftruck","$/hr",150]
[null,"water truck",null,"wtruck","$/hr",58,150]
["Mobilize Heavy Equipment",null,null,null,null,"","",""]
[null,"Road access",null,"MHER","kmtonne",3.4,10.25]
[null,"Air access",null,"MHEA","kmtonne",12,null,null,null,"cargo rate>500lb"]
["Mobilize Camp",null,null,null,null,"","",""]
[null,"Road access",null,"MCR","each",50000,null,null,null,"refurbish existing camp"]
["Mobilize Workers",null,null,null,null,"","",""]
[null,"flight",null,"MW","each",4500,9100,null,null,"Low:e.g. 8 passenger; High: Dash 7"]
["Oil Removal",null,null,null,null,"","",""]
[null,"oil removal",null,"OR","litre",0.43,1.2,null,null,"Low:waste oil heater; High: ship offsite"]
["PCB Removal"]
[null,"Remove from site",null,"PCBR","litre",40.200000000000003,46.9,null,null,"Low: shipping, handling & disposal from Yellowknife"]
["Pipes, small (<6in dia.)",null,null,null,null,"","",""]
[null,"remove/dispose on site",null,"PSR","m",1,24,null,null,"Low: remove/dispose on site; High: remove/re-use"]
[null,"supply",null,"PSS","m",6.1,11.1,null,null,"Low:supply; High:supply and ship"]
[null,"install",null,"PSI","m",25]
["Pipes, large (>6in dia.)",null,null,null,null,"","",""]
[null,"remove/dispose on site",null,"PLR","m",22,72,null,null,"Low: remove/dispose on site; High: remove/re-use"]
[null,"supply",null,"PLS","m",129,143,null,null,"Low:supply; High:supply and ship"]
[null,"install",null,"PLI","m",50]
["Power Lines",null,null,null,null,"","",""]
[null,"remove/dispose on site",null,"POWR","m",25.5]
["Process Chemicals",null,null,null,null,"","",""]
[null,"Remove from site",null,"PCR","kg",0.45,2.5,null,null,"Low: shipping, handling & disposal from Yellowknife"]
["Pumps",null,null,null,null,"","",""]
[null,"Pump capital cost",null,"PC","each",195000]
[null,"Pump shipping",null,"PS","each",2500]
[null,"Pump operating cost",null,"POC","m3",0.12,null,null,null,"pump operating costs should be calculated based on pump capacity, fuel costs, etc."]
[null,"Pump maintenance",null,"PM","allow",25000]
["Pump sand BackFill",null,null,null,null,"","",""]
[null,null,null,"PBF","m3",85,300]
["Scarify - road/mine site"]
[null,null,null,"SCFY","ha",4300,6030,2150]
["Shaft, Raise & Portal Closures",null,null,null,null,"","",""]
[null,"Shaft & Raises",null,"SR","m2",645,2132,null,null,"Low:pre-cast concrete slabs, little site prep. Area=shaft+>1m all around"]
[null,"Portals",null,"POR","m3",18.8,250,1200,null,"Low:unit cost code SCS;High:excavate & backfill collapsed portal;Spec: installed pressure plug"]
["Site Inspection Report"]
[null,null,null,"RPT","each",10000,20000]
["SpillWay - Clear"]
[null,null,null,"SW","each",3000,7000]
["Survey/Instrumentation"]
[null,null,null,"SI","each",1800,3600,null,null,"2 person crew"]
["Treatment Plant - Construct",null,null,null,null,"","",""]
[null,"Small (< 1000 m3/d)",null,"TPS","lump sum",9000000,15000000]
[null,"Large (> 1000 m3/d)",null,"TPL","lump sum",15000000,46000000]
[null,"Constructed Wetland",null,"CWTS","ha",200000,300000]
["Treatment Plant - Operate"]
[null,null,null,"TPO","m3",0.35,2]
["Treatment Chemicals",null,null,null,null,"","",""]
[null,"ferric sulphate",null,"ferric","kg",1.19,"",""]
[null,"ferrous sulphate",null,"ferrous","kg",1.32,"",""]
[null,"lime",null,"lime","kg",0.56000000000000005,null,""]
[null,"hydrogen peroxide, 35%",null,"hperox","kg",1.5,"",""]
[null,"Sodium Metabisulfate",null,"Nametab","kg",1.18,"",""]
[null,"Caustic soda, 50%",null,"caustic","kg",0.74,"",""]
[null,"Sulfuric acid, 93%",null,"sulfuric","kg",0.31,"",""]
[null,"flocculant",null,"flocc","kg",6,"",""]
[null,"copper sulphate",null,"copper","kg","","",""]
[null,"shipping",null,"shipping","kg",0.2,"",""]
["Vegetation",null,null,null,null,"","",""]
[null,"Hydroseed, Flat",null,"VHF","ha",4000]
[null,"Hydroseed, Sloped",null,"VHS","ha",4500]
[null,"Veg. blanket/erosion mat",null,"VB","ha",13000]
[null,"Tree planting",null,"VT","ha",2600,6000]
[null,"Wetland species",null,"VW","ha",null,null,47.72,null,"Specified= /m3, Wetland Growth Media Substrate mixed and installed (sand, biochar and fertilizer, woodchips)"]
["Water Sampling/Analysis/Reporting"]
[null,null,null,"WS","each",7000,10000]
["Winter Road"]
[null,"Construction",null,"WRC","km",2000,11500]
[null,"Usage",null,"WRU","kmtonne",0.28999999999999998]

{"sheet":"Estimator","index":16,"n_rows":55,"n_cols":15,"rows_kept":55,"cut":false,"hidden":false,"merged":[]}
[null,"Unit Cost Estimator",null,1,"Equipment Productivity Figures and Graphs have been reproduced from Caterpillar Performance Handbook - Edition 42 "]
[null,"EXCAVATION",null,null,null,null,"HAUL AND DUMPING",null,null,null,null,"SPREADING/DOZING"]
[null,"Productivity",null,null,null,null,"Productivity",null,null,null,null,"Productivity"]
[null,"Machine","Cat 336EL",null,null,null,"Machine","Cat 770",null,null,null,"Machine","Cat D8"]
[null,"bucket capacity",null,3.16,"m3",null,"truck capacity",null,25.1,"m3",null,"Estimate production using example curves provided or ",null,600,"m3/hr"]
[null,"fill factor",null,0.75,"%",null,"fill factor",null,0.8,"%",null,"equivalent from other supplier"]
[null,"cycle time",null,45,"seconds",null,null,null,null,null,null,"Correction factors (see table provided)"]
[null,"operator skill",null,0.8,"%",null,"load time",null,6,"min.",null,"      operator skill",null,0.75]
[null,"machine availability",null,0.83,"%",null,"haul distance",null,1.5,"km",null,"      material type, see table",null,0.8]
[null,"altitude adjustment",null,1,"%",null,"average velocity",null,20,"km/hr",null,"      slot dozing",null,1]
[null,"Hourly productivity",null,{"$f":"D5*D6*(60*60/D7)*D8*D9*D10","v":125.89440000000002},"m3/hr",null,"haul time + return time",null,{"$f":"+I9/I10*60*2","v":9},"min.",null,"     side by side dozing",null,1]
[null,null,null,null,null,null,"wait time",null,0.5,"min.",null,"     visibility",null,1]
[null,null,null,null,null,null,"dump time",null,1,"min.",null,"     job efficiency",null,0.83]
[null,null,null,null,null,null,"cycle time",null,{"$f":"I8+SUM(I11:I13)","v":16.5},"min.",null,"     altitude adjustment",null,1]
[null,null,null,null,null,null,"machine availability",null,0.83,"%",null,"     slope adjustment",null,1]
[null,null,null,null,null,null,"altitude adjustment",null,1,"%",null,"Hourly productivity",null,{"$f":"+N5*N8*N9*N10*N11*N12*N13*N14*N15","v":298.8},"m3/hr"]
[null,null,null,null,null,null,null,null,{"$f":"I14*I15*I16","v":13.694999999999999},"ave. min/cycle"]
[null,null,null,null,null,null,"Hourly productivity",null,{"$f":"I5*I6*60/I17","v":87.973713033954027},"m3/hr"]
[null,"Operating Costs",null,null,null,null,"Operating Costs",null,null,null,null,"Operating Costs"]
[null," - Contractor",null,null,null,null," - Contractor",null,null,null,null," - Contractor"]
[null,"Contractor  hourly rate",null,180,"$/hr",null,"Contractor  hourly rate",null,225,"$/hr",null,"Hourly rate - contractor supplied",null,260,"$/hr"]
[null,"Excavation cost - contractor rate",null,{"$f":"D21/D11","v":1.4297697117584258},"$/m3",null,"Haul and Dump - contractor rate",null,{"$f":"I21/I18","v":2.5575821713147402},"$/m3",null,"Dozing - contractor rate",null,{"$f":"N21/N16","v":0.8701472556894243},"$/m3"]
[]
[null," - Owner",null,null,null,null," - Owner",null,null,null,null," - Owner"]
[null,"ownership, daily",null,null,"$/day",null,"ownership, daily",null,null,"$/day",null,"ownership, daily",null,null,"$/day"]
[null,"maintenance",null,null,"$/hr",null,"maintenance",null,null,"$/hr",null,"maintenance",null,null,"$/hr"]
[null,"fuel",null,null,"$/hr",null,"fuel",null,null,"$/hr",null,"fuel",null,null,"$/hr"]
[null,"consumables (cutters, tires)",null,null,"$/hr",null,"consumables (cutters, tires)",null,null,"$/hr",null,"consumables (cutters, tires)",null,null,"$/hr"]
[null,"operator",null,null,"$/hr",null,"operator",null,null,"$/hr",null,"operator",null,null,"$/hr"]
[null,"Owner hourly rate",null,{"$f":"D25/10+SUM(D26:D29)","v":0},"$/hr",null,"Owner hourly rate",null,{"$f":"I25/10+SUM(I26:I29)","v":0},"$/hr",null,"Owner hourly rate",null,{"$f":"N25/10+SUM(N26:N29)","v":0}]
[null,"Excavation cost - owner rate",null,{"$f":"D30/D11","v":0},"$/m3",null,"Haul/Dumping Cost - owner rate",null,{"$f":"I30/I18","v":0},"$/m3",null,"Spreading/Dozing Cost - owner rate",null,{"$f":"N30/N16","v":0},"$/hr"]
[null,"Excavation cost - select contractor or owner rate (D22 or D31)",null,null,"$/m3",null,"Haul/Dumping Cost - select contractor or owner rate (I22 or I31",null,null,"$/m3",null,"Spreading/Dozing Cost - select contractor or owner rate (N22 or N31)",null,null,"$/m3"]
[]
[]
[]
[null,"Excavator",null,null,null,null,"Trucking",null,null,null,null,"Dozing"]
[null,null,"Cat 320","Cat 325B","Cat 375",null,null,"Cat 771 D","Cat 777D","Cat 789C"]
[null,"heaped bucket capacity, m3",1.5,2.2000000000000002,5.4,null,"Truck capacity - heaped, m3",27.5,60.5,137]
[null,null,null,"Typical Cycle Times (seconds)"]
[null,"easy digging, shallow digging, small swing angle",16,18,20]
[null,"med. to  hard digging, rocky soil, swing angle to 90 deg.",23,23,25]
[null,"tough digging, sandstone, caliche, at max.  machine depth, swing angle > 120 deg. ",27,29,35]
[]
[null,"Material","Fill Factor (% of heaped bucket capacity"]
[null,"Moist loam or sandy clay",null,"100 - 110"]
[null,"sand and gravel (not till)",null,"95 - 110"]
[null,"hard tough clay",null,"80 - 90"]
[null,"rock - will blasted",null,"60 - 75"]
[null,"rock - poorly blasted",null,"40 -60"]
[]
[null,"Operator Skill","poor","average","good"]
[null,"Correction factor",0.6,0.75,1]
[]
[null,"Machine availability","poor","average","good"]
[null,"Correction factor",0.9,0.95,1]

{"sheet":"Tools","index":17,"n_rows":12,"n_cols":12,"rows_kept":12,"cut":false,"hidden":false,"merged":[]}
["The functions in this worksheet serve as a back up in the event that the menu item \"Add-Ins\" is not shown in Excel menu bar"]
[]
[]
[null,null,"Save file before clearing all data"]
[]
[null,null,null,null,null,null,null,null,null,null,null,"These functions duplicate components within worksheet"]
[]
[]
[null,null,"Shows both active worksheet as well as table of Unit Costs in a separate window"]
[]
[]
[null,null,"Prints all worksheets having non-zero sums"]